Workbook

Sheet HORIZ-PlanC-Valores TOTAIS
B1: Superior Tribunal de Justiça
B2: Secretaria Judiciária
B3: CEJU - Seção de Precatórios e RPVs
B4: Relação das Requisições de Pequeno Valor pagas em abril de 2020
B5: RPV | F5: PROCESSO DE ORIGEM | K5: ENTIDADES | N5: CRÉDITO | R5: INDICADORES | AA5: VALORES REQUISITADOS | AU5: VALORES ATUALIZADOS E PAGOS
B6: Nº | C6: Registro | D6: Autuada em | F6: Ação | G6: Autuada em | H6: Tipo de causa | I6: Trânsito | K6: Entidade devedora | L6: Órgão de origem | N6: Origem do crédito do requerente | O6: Origem do crédito dos advs | P6: Natureza do Crédito | R6: Tributário | S6: EC 94 2016 | T6: Lei 13.463 2017 | U6: PRC/RPV de origem | V6: Nº DA GRU | W6: DOENÇA GRAVE | X6: Deficiência física | Y6: Isento de IR | AA6: TOTAL REQUISITADO | AE6: REQUERENTE | AH6: ADV I | AK6: ADV II | AN6: RRA | AQ6: PSS | AU6: data do pgto | AV6: Beneficiários | AZ6: RRA | BB6: PSS
AA7: Data base | AB7: principal | AC7: juros | AD7: total | AE7: principal | AF7: juros | AG7: total | AH7: principal | AI7: juros | AJ7: total | AK7: principal | AL7: juros | AM7: total | AN7: Exercícios anteriores | AO7: NMA | AP7: desc | AQ7: BASE desc | AR7: Desc | AS7: Patronal | AV7: Total | AW7: Reqte | AX7: Adv I | AY7: Adv II | AZ7: Exercícios anteriores | BA7: Dedução | BB7: BASE desc | BC7: Desc | BD7: Patronal
B9: 8972 | C9: 2019/0327300-2 | D9: 2019-10-30 | F9: AR 1.169/CE | G9: 1999-10-18 | H9: Administrativo - Servidor Público Civil - Sistema Remuneratório e Benefícios | I9: 2004-06-07 | K9: Instituto Nacional do Seguro Social - INSS | L9: Instituto Nacional do Seguro Social - INSS | N9: Anuênios | O9: Dedução de Honorários Contratuais | P9: Alimentar | R9: Não | S9: Não | T9: Não | U9: - | V9: - | W9: Não informada | X9: Não Informada | Y9: Não | AA9: 2019-10-01 | AB9: 1733.9 | AC9: 2003.16 | AD9: 3737.06 | AE9: 1560.51 | AF9: 1802.85 | AG9: 3363.36 | AH9: 173.39 | AI9: 200.31 | AJ9: 373.7 | AK9: 0 | AL9: 0 | AM9: 0 | AN9: 3363.36 | AO9: 47 | AP9: 190.72 | AQ9: 1733.9 | AR9: 190.72 | AS9: 381.44 | AU9: 2020-04-02 | AV9: 3821.01 | AW9: 3438.92 | AX9: 382.09 | AY9: 0 | AZ9: 3438.92 | BA9: 195.01 | BB9: 1772.85 | BC9: 195.01 | BD9: 390.02
B10: 9062 | C10: 2019/0358737-7 | D10: 2019-11-28 | F10: MS 10.424/DF | G10: 2005-02-17 | H10: Administrativo - Servidor Público Civil - Sistema Remuneratório e Benefícios - Gratificações | I10: 2005-10-27 | K10: UNIÃO | L10: Ministério do Planejamento, Orçamento e Gestão | N10: Gratificação Específica de Atividade Docente - GEAD | O10: Dedução de Honorários Contratuais | P10: Alimentar | R10: Não | S10: Não | T10: Não | U10: - | V10: - | W10: Não informada | X10: Não Informada | Y10: Não | AA10: 2019-11-01 | AB10: 8228.45 | AC10: 6763.4 | AD10: 14991.85 | AE10: 7323.33 | AF10: 6019.42 | AG10: 13342.75 | AH10: 905.12 | AI10: 743.98 | AJ10: 1649.1 | AK10: 0 | AL10: 0 | AM10: 0 | AN10: 13342.75 | AO10: 9 | AP10: 905.12 | AQ10: 8228.45 | AR10: 905.12 | AS10: 0 | AU10: 2020-04-02 | AV10: 15314.85 | AW10: 13630.22 | AX10: 1684.63 | AY10: 0 | AZ10: 13630.22 | BA10: 924.63 | BB10: 8405.73 | BC10: 924.63 | BD10: 0
B11: 9063 | C11: 2019/0358743-0 | D11: 2019-11-28 | F11: MS 10.424/DF | G11: 2005-02-17 | H11: Administrativo - Servidor Público Civil - Sistema Remuneratório e Benefícios - Gratificações | I11: 2005-10-27 | K11: UNIÃO | L11: Ministério do Planejamento, Orçamento e Gestão | N11: Gratificação Específica de Atividade Docente - GEAD | O11: Dedução de Honorários Contratuais | P11: Alimentar | R11: Não | S11: Não | T11: Não | U11: - | V11: - | W11: Não informada | X11: Não Informada | Y11: Não | AA11: 2019-11-01 | AB11: 8228.45 | AC11: 6763.4 | AD11: 14991.85 | AE11: 7323.33 | AF11: 6019.42 | AG11: 13342.75 | AH11: 905.12 | AI11: 743.98 | AJ11: 1649.1 | AK11: 0 | AL11: 0 | AM11: 0 | AN11: 13342.75 | AO11: 9 | AP11: 905.12 | AQ11: 8228.45 | AR11: 905.12 | AS11: 0 | AU11: 2020-04-02 | AV11: 15314.85 | AW11: 13630.22 | AX11: 1684.63 | AY11: 0 | AZ11: 13630.22 | BA11: 924.63 | BB11: 8405.73 | BC11: 924.63 | BD11: 0
B12: 9082 | C12: 2019/0358796-0 | D12: 2019-11-28 | F12: MS 10.424/DF | G12: 2005-02-17 | H12: Administrativo - Servidor Público Civil - Sistema Remuneratório e Benefícios - Gratificações | I12: 2005-10-27 | K12: UNIÃO | L12: Ministério do Planejamento, Orçamento e Gestão | N12: Gratificação Específica de Atividade Docente - GEAD | O12: Dedução de Honorários Contratuais | P12: Alimentar | R12: Não | S12: Não | T12: Não | U12: - | V12: - | W12: Não informada | X12: Não Informada | Y12: Não | AA12: 2019-11-01 | AB12: 8228.45 | AC12: 6763.4 | AD12: 14991.85 | AE12: 7323.33 | AF12: 6019.42 | AG12: 13342.75 | AH12: 905.12 | AI12: 743.98 | AJ12: 1649.1 | AK12: 0 | AL12: 0 | AM12: 0 | AN12: 13342.75 | AO12: 9 | AP12: 905.12 | AQ12: 8228.45 | AR12: 905.12 | AS12: 1810.24 | AU12: 2020-04-02 | AV12: 15314.85 | AW12: 13630.22 | AX12: 1684.63 | AY12: 0 | AZ12: 13630.22 | BA12: 924.63 | BB12: 8405.73 | BC12: 924.63 | BD12: 1849.26
B13: 9095 | C13: 2019/0359902-9 | D13: 2019-11-29 | F13: MS 10.424/DF | G13: 2005-02-17 | H13: Administrativo - Servidor Público Civil - Sistema Remuneratório e Benefícios - Gratificações | I13: 2005-10-27 | K13: UNIÃO | L13: Ministério do Planejamento, Orçamento e Gestão | N13: Gratificação Específica de Atividade Docente - GEAD | O13: Dedução de Honorários Contratuais | P13: Alimentar | R13: Não | S13: Não | T13: Não | U13: - | V13: - | W13: Não informada | X13: Não Informada | Y13: Não | AA13: 2019-11-01 | AB13: 8228.45 | AC13: 6763.4 | AD13: 14991.85 | AE13: 7323.33 | AF13: 6019.42 | AG13: 13342.75 | AH13: 905.12 | AI13: 743.98 | AJ13: 1649.1 | AK13: 0 | AL13: 0 | AM13: 0 | AN13: 13342.75 | AO13: 9 | AP13: 905.12 | AQ13: 8228.45 | AR13: 905.12 | AS13: 0 | AU13: 2020-04-02 | AV13: 15314.85 | AW13: 13630.22 | AX13: 1684.63 | AY13: 0 | AZ13: 13630.22 | BA13: 924.63 | BB13: 8405.73 | BC13: 924.63 | BD13: 0
B14: 9097 | C14: 2019/0359914-3 | D14: 2019-11-29 | F14: MS 10.424/DF | G14: 2005-02-17 | H14: Administrativo - Servidor Público Civil - Sistema Remuneratório e Benefícios - Gratificações | I14: 2005-10-27 | K14: UNIÃO | L14: Ministério do Planejamento, Orçamento e Gestão | N14: Gratificação Específica de Atividade Docente - GEAD | O14: Dedução de Honorários Contratuais | P14: Alimentar | R14: Não | S14: Não | T14: Não | U14: - | V14: - | W14: Não informada | X14: Não Informada | Y14: Não | AA14: 2019-11-01 | AB14: 8228.45 | AC14: 6763.4 | AD14: 14991.85 | AE14: 7323.33 | AF14: 6019.42 | AG14: 13342.75 | AH14: 905.12 | AI14: 743.98 | AJ14: 1649.1 | AK14: 0 | AL14: 0 | AM14: 0 | AN14: 13342.75 | AO14: 9 | AP14: 905.12 | AQ14: 8228.45 | AR14: 905.12 | AS14: 0 | AU14: 2020-04-02 | AV14: 15314.85 | AW14: 13630.22 | AX14: 1684.63 | AY14: 0 | AZ14: 13630.22 | BA14: 924.63 | BB14: 8405.73 | BC14: 924.63 | BD14: 0
B15: 9102 | C15: 2019/0359941-0 | D15: 2019-11-29 | F15: MS 10.424/DF | G15: 2005-02-17 | H15: Administrativo - Servidor Público Civil - Sistema Remuneratório e Benefícios - Gratificações | I15: 2005-10-27 | K15: UNIÃO | L15: Ministério do Planejamento, Orçamento e Gestão | N15: Gratificação Específica de Atividade Docente - GEAD | O15: Dedução de Honorários Contratuais | P15: Alimentar | R15: Não | S15: Não | T15: Não | U15: - | V15: - | W15: Não informada | X15: Não Informada | Y15: Não | AA15: 2019-11-01 | AB15: 8228.45 | AC15: 6763.4 | AD15: 14991.85 | AE15: 7323.33 | AF15: 6019.42 | AG15: 13342.75 | AH15: 905.12 | AI15: 743.98 | AJ15: 1649.1 | AK15: 0 | AL15: 0 | AM15: 0 | AN15: 13342.75 | AO15: 9 | AP15: 905.12 | AQ15: 8228.45 | AR15: 905.12 | AS15: 0 | AU15: 2020-04-02 | AV15: 15314.85 | AW15: 13630.22 | AX15: 1684.63 | AY15: 0 | AZ15: 13630.22 | BA15: 924.63 | BB15: 8405.73 | BC15: 924.63 | BD15: 0
B16: 9103 | C16: 2019/0359943-4 | D16: 2019-11-29 | F16: MS 10.424/DF | G16: 2005-02-17 | H16: Administrativo - Servidor Público Civil - Sistema Remuneratório e Benefícios - Gratificações | I16: 2005-10-27 | K16: UNIÃO | L16: Ministério do Planejamento, Orçamento e Gestão | N16: Gratificação Específica de Atividade Docente - GEAD | O16: Dedução de Honorários Contratuais | P16: Alimentar | R16: Não | S16: Não | T16: Não | U16: - | V16: - | W16: Não informada | X16: Não Informada | Y16: Não | AA16: 2019-11-01 | AB16: 8228.45 | AC16: 6763.4 | AD16: 14991.85 | AE16: 7323.33 | AF16: 6019.42 | AG16: 13342.75 | AH16: 905.12 | AI16: 743.98 | AJ16: 1649.1 | AK16: 0 | AL16: 0 | AM16: 0 | AN16: 13342.75 | AO16: 9 | AP16: 905.12 | AQ16: 8228.45 | AR16: 905.12 | AS16: 0 | AU16: 2020-04-02 | AV16: 15314.85 | AW16: 13630.22 | AX16: 1684.63 | AY16: 0 | AZ16: 13630.22 | BA16: 924.63 | BB16: 8405.73 | BC16: 924.63 | BD16: 0
B17: 9111 | C17: 2019/0359970-1 | D17: 2019-11-29 | F17: MS 10.424/DF | G17: 2005-02-17 | H17: Administrativo - Servidor Público Civil - Sistema Remuneratório e Benefícios - Gratificações | I17: 2005-10-27 | K17: UNIÃO | L17: Ministério do Planejamento, Orçamento e Gestão | N17: Gratificação Específica de Atividade Docente - GEAD | O17: Dedução de Honorários Contratuais | P17: Alimentar | R17: Não | S17: Não | T17: Não | U17: - | V17: - | W17: Não informada | X17: Não Informada | Y17: Não | AA17: 2019-11-01 | AB17: 8228.45 | AC17: 6763.4 | AD17: 14991.85 | AE17: 7323.33 | AF17: 6019.42 | AG17: 13342.75 | AH17: 905.12 | AI17: 743.98 | AJ17: 1649.1 | AK17: 0 | AL17: 0 | AM17: 0 | AN17: 13342.75 | AO17: 9 | AP17: 905.12 | AQ17: 8228.45 | AR17: 905.12 | AS17: 1810.24 | AU17: 2020-04-02 | AV17: 15314.85 | AW17: 13630.22 | AX17: 1684.63 | AY17: 0 | AZ17: 13630.22 | BA17: 924.63 | BB17: 8405.73 | BC17: 924.63 | BD17: 1849.26
B18: 9115 | C18: 2019/0359979-8 | D18: 2019-11-29 | F18: MS 10.424/DF | G18: 2005-02-17 | H18: Administrativo - Servidor Público Civil - Sistema Remuneratório e Benefícios - Gratificações | I18: 2005-10-27 | K18: UNIÃO | L18: Ministério do Planejamento, Orçamento e Gestão | N18: Gratificação Específica de Atividade Docente - GEAD | O18: Dedução de Honorários Contratuais | P18: Alimentar | R18: Não | S18: Não | T18: Não | U18: - | V18: - | W18: Não informada | X18: Não Informada | Y18: Não | AA18: 2019-11-01 | AB18: 8228.45 | AC18: 6763.4 | AD18: 14991.85 | AE18: 7323.33 | AF18: 6019.42 | AG18: 13342.75 | AH18: 905.12 | AI18: 743.98 | AJ18: 1649.1 | AK18: 0 | AL18: 0 | AM18: 0 | AN18: 13342.75 | AO18: 9 | AP18: 905.12 | AQ18: 8228.45 | AR18: 905.12 | AS18: 0 | AU18: 2020-04-02 | AV18: 15314.85 | AW18: 13630.22 | AX18: 1684.63 | AY18: 0 | AZ18: 13630.22 | BA18: 924.63 | BB18: 8405.73 | BC18: 924.63 | BD18: 0
B19: 9119 | C19: 2019/0360099-7 | D19: 2019-11-29 | F19: MS 10.424/DF | G19: 2005-02-17 | H19: Administrativo - Servidor Público Civil - Sistema Remuneratório e Benefícios - Gratificações | I19: 2005-10-27 | K19: UNIÃO | L19: Ministério do Planejamento, Orçamento e Gestão | N19: Gratificação Específica de Atividade Docente - GEAD | O19: Dedução de Honorários Contratuais | P19: Alimentar | R19: Não | S19: Não | T19: Não | U19: - | V19: - | W19: Não informada | X19: Não Informada | Y19: Não | AA19: 2019-11-01 | AB19: 8228.45 | AC19: 6763.4 | AD19: 14991.85 | AE19: 7323.33 | AF19: 6019.42 | AG19: 13342.75 | AH19: 905.12 | AI19: 743.98 | AJ19: 1649.1 | AK19: 0 | AL19: 0 | AM19: 0 | AN19: 13342.75 | AO19: 9 | AP19: 905.12 | AQ19: 8228.45 | AR19: 905.12 | AS19: 0 | AU19: 2020-04-02 | AV19: 15314.85 | AW19: 13630.22 | AX19: 1684.63 | AY19: 0 | AZ19: 13630.22 | BA19: 924.63 | BB19: 8405.73 | BC19: 924.63 | BD19: 0
B20: 9120 | C20: 2019/0360106-1 | D20: 2019-11-29 | F20: MS 10.424/DF | G20: 2005-02-17 | H20: Administrativo - Servidor Público Civil - Sistema Remuneratório e Benefícios - Gratificações | I20: 2005-10-27 | K20: UNIÃO | L20: Ministério do Planejamento, Orçamento e Gestão | N20: Gratificação Específica de Atividade Docente - GEAD | O20: Dedução de Honorários Contratuais | P20: Alimentar | R20: Não | S20: Não | T20: Não | U20: - | V20: - | W20: Não informada | X20: Não Informada | Y20: Não | AA20: 2019-11-01 | AB20: 8228.45 | AC20: 6763.4 | AD20: 14991.85 | AE20: 7323.33 | AF20: 6019.42 | AG20: 13342.75 | AH20: 905.12 | AI20: 743.98 | AJ20: 1649.1 | AK20: 0 | AL20: 0 | AM20: 0 | AN20: 13342.75 | AO20: 9 | AP20: 905.12 | AQ20: 8228.45 | AR20: 905.12 | AS20: 1810.24 | AU20: 2020-04-02 | AV20: 15314.85 | AW20: 13630.22 | AX20: 1684.63 | AY20: 0 | AZ20: 13630.22 | BA20: 924.63 | BB20: 8405.73 | BC20: 924.63 | BD20: 1849.26
B21: 9131 | C21: 2019/0360517-7 | D21: 2019-11-29 | F21: MS 10.424/DF | G21: 2005-02-17 | H21: Administrativo - Servidor Público Civil - Sistema Remuneratório e Benefícios - Gratificações | I21: 2005-10-27 | K21: UNIÃO | L21: Ministério do Planejamento, Orçamento e Gestão | N21: Gratificação Específica de Atividade Docente - GEAD | O21: Dedução de Honorários Contratuais | P21: Alimentar | R21: Não | S21: Não | T21: Não | U21: - | V21: - | W21: Não informada | X21: Não Informada | Y21: Não | AA21: 2019-11-01 | AB21: 8228.45 | AC21: 6763.4 | AD21: 14991.85 | AE21: 7323.33 | AF21: 6019.42 | AG21: 13342.75 | AH21: 905.12 | AI21: 743.98 | AJ21: 1649.1 | AK21: 0 | AL21: 0 | AM21: 0 | AN21: 13342.75 | AO21: 9 | AP21: 905.12 | AQ21: 8228.45 | AR21: 905.12 | AS21: 0 | AU21: 2020-04-02 | AV21: 15314.85 | AW21: 13630.22 | AX21: 1684.63 | AY21: 0 | AZ21: 13630.22 | BA21: 924.63 | BB21: 8405.73 | BC21: 924.63 | BD21: 0
B22: 9138 | C22: 2019/0361443-1 | D22: 2019-12-02 | F22: MS 10.424/DF | G22: 2005-02-17 | H22: Administrativo - Servidor Público Civil - Sistema Remuneratório e Benefícios - Gratificações | I22: 2005-10-27 | K22: UNIÃO | L22: Ministério do Planejamento, Orçamento e Gestão | N22: Gratificação Específica de Atividade Docente - GEAD | O22: Dedução de Honorários Contratuais | P22: Alimentar | R22: Não | S22: Não | T22: Não | U22: - | V22: - | W22: Não informada | X22: Não Informada | Y22: Não | AA22: 2019-11-01 | AB22: 8228.45 | AC22: 6763.4 | AD22: 14991.85 | AE22: 7323.33 | AF22: 6019.42 | AG22: 13342.75 | AH22: 905.12 | AI22: 743.98 | AJ22: 1649.1 | AK22: 0 | AL22: 0 | AM22: 0 | AN22: 13342.75 | AO22: 9 | AP22: 905.12 | AQ22: 8228.45 | AR22: 905.12 | AS22: 0 | AU22: 2020-04-02 | AV22: 15314.85 | AW22: 13630.22 | AX22: 1684.63 | AY22: 0 | AZ22: 13630.22 | BA22: 924.63 | BB22: 8405.73 | BC22: 924.63 | BD22: 0
B23: 9143 | C23: 2019/0365387-3 | D23: 2019-12-04 | F23: MS 10.424/DF | G23: 2005-02-17 | H23: Administrativo - Servidor Público Civil - Sistema Remuneratório e Benefícios - Gratificações | I23: 2005-10-27 | K23: UNIÃO | L23: Ministério do Planejamento, Orçamento e Gestão | N23: Gratificação Específica de Atividade Docente - GEAD | O23: Dedução de Honorários Contratuais | P23: Alimentar | R23: Não | S23: Não | T23: Não | U23: - | V23: - | W23: Não informada | X23: Não Informada | Y23: Não | AA23: 2019-11-01 | AB23: 8228.45 | AC23: 6763.4 | AD23: 14991.85 | AE23: 7323.33 | AF23: 6019.42 | AG23: 13342.75 | AH23: 905.12 | AI23: 743.98 | AJ23: 1649.1 | AK23: 0 | AL23: 0 | AM23: 0 | AN23: 13342.75 | AO23: 9 | AP23: 905.12 | AQ23: 8228.45 | AR23: 905.12 | AS23: 0 | AU23: 2020-04-02 | AV23: 15314.85 | AW23: 13630.22 | AX23: 1684.63 | AY23: 0 | AZ23: 13630.22 | BA23: 924.63 | BB23: 8405.73 | BC23: 924.63 | BD23: 0
B24: 9149 | C24: 2019/0365401-3 | D24: 2019-12-04 | F24: MS 10.424/DF | G24: 2005-02-17 | H24: Administrativo - Servidor Público Civil - Sistema Remuneratório e Benefícios - Gratificações | I24: 2005-10-27 | K24: UNIÃO | L24: Ministério do Planejamento, Orçamento e Gestão | N24: Gratificação Específica de Atividade Docente - GEAD | O24: Dedução de Honorários Contratuais | P24: Alimentar | R24: Não | S24: Não | T24: Não | U24: - | V24: - | W24: Não informada | X24: Não Informada | Y24: Não | AA24: 2019-11-01 | AB24: 8228.45 | AC24: 6763.4 | AD24: 14991.85 | AE24: 7323.33 | AF24: 6019.42 | AG24: 13342.75 | AH24: 905.12 | AI24: 743.98 | AJ24: 1649.1 | AK24: 0 | AL24: 0 | AM24: 0 | AN24: 13342.75 | AO24: 9 | AP24: 905.12 | AQ24: 8228.45 | AR24: 905.12 | AS24: 0 | AU24: 2020-04-02 | AV24: 15314.85 | AW24: 13630.22 | AX24: 1684.63 | AY24: 0 | AZ24: 13630.22 | BA24: 924.63 | BB24: 8405.73 | BC24: 924.63 | BD24: 0
B25: 9153 | C25: 2019/0365421-5 | D25: 2019-12-04 | F25: MS 10.424/DF | G25: 2005-02-17 | H25: Administrativo - Servidor Público Civil - Sistema Remuneratório e Benefícios - Gratificações | I25: 2005-10-27 | K25: UNIÃO | L25: Ministério do Planejamento, Orçamento e Gestão | N25: Gratificação Específica de Atividade Docente - GEAD | O25: Dedução de Honorários Contratuais | P25: Alimentar | R25: Não | S25: Não | T25: Não | U25: - | V25: - | W25: Não informada | X25: Não Informada | Y25: Não | AA25: 2019-11-01 | AB25: 8228.45 | AC25: 6763.4 | AD25: 14991.85 | AE25: 7323.33 | AF25: 6019.42 | AG25: 13342.75 | AH25: 905.12 | AI25: 743.98 | AJ25: 1649.1 | AK25: 0 | AL25: 0 | AM25: 0 | AN25: 13342.75 | AO25: 9 | AP25: 905.12 | AQ25: 8228.45 | AR25: 905.12 | AS25: 0 | AU25: 2020-04-02 | AV25: 15314.85 | AW25: 13630.22 | AX25: 1684.63 | AY25: 0 | AZ25: 13630.22 | BA25: 924.63 | BB25: 8405.73 | BC25: 924.63 | BD25: 0
B26: 9162 | C26: 2019/0365448-0 | D26: 2019-12-04 | F26: MS 10.424/DF | G26: 2005-02-17 | H26: Administrativo - Servidor Público Civil - Sistema Remuneratório e Benefícios - Gratificações | I26: 2005-10-27 | K26: UNIÃO | L26: Ministério do Planejamento, Orçamento e Gestão | N26: Gratificação Específica de Atividade Docente - GEAD | O26: Dedução de Honorários Contratuais | P26: Alimentar | R26: Não | S26: Não | T26: Não | U26: - | V26: - | W26: Não informada | X26: Não Informada | Y26: Não | AA26: 2019-11-01 | AB26: 8228.45 | AC26: 6763.4 | AD26: 14991.85 | AE26: 7323.33 | AF26: 6019.42 | AG26: 13342.75 | AH26: 905.12 | AI26: 743.98 | AJ26: 1649.1 | AK26: 0 | AL26: 0 | AM26: 0 | AN26: 13342.75 | AO26: 9 | AP26: 905.12 | AQ26: 8228.45 | AR26: 905.12 | AS26: 0 | AU26: 2020-04-02 | AV26: 15314.85 | AW26: 13630.22 | AX26: 1684.63 | AY26: 0 | AZ26: 13630.22 | BA26: 924.63 | BB26: 8405.73 | BC26: 924.63 | BD26: 0
B27: 9167 | C27: 2019/0367777-0 | D27: 2019-12-06 | F27: MS 10.424/DF | G27: 2005-02-17 | H27: Administrativo - Servidor Público Civil - Sistema Remuneratório e Benefícios - Gratificações | I27: 2005-10-27 | K27: UNIÃO | L27: Ministério do Planejamento, Orçamento e Gestão | N27: Gratificação Específica de Atividade Docente - GEAD | O27: Dedução de Honorários Contratuais | P27: Alimentar | R27: Não | S27: Não | T27: Não | U27: - | V27: - | W27: Não informada | X27: Não Informada | Y27: Não | AA27: 2019-11-01 | AB27: 8228.45 | AC27: 6763.4 | AD27: 14991.85 | AE27: 7323.33 | AF27: 6019.42 | AG27: 13342.75 | AH27: 905.12 | AI27: 743.98 | AJ27: 1649.1 | AK27: 0 | AL27: 0 | AM27: 0 | AN27: 13342.75 | AO27: 9 | AP27: 905.12 | AQ27: 8228.45 | AR27: 905.12 | AS27: 0 | AU27: 2020-04-02 | AV27: 15314.85 | AW27: 13630.22 | AX27: 1684.63 | AY27: 0 | AZ27: 13630.22 | BA27: 924.63 | BB27: 8405.73 | BC27: 924.63 | BD27: 0
B28: 9173 | C28: 2019/0367811-1 | D28: 2019-12-06 | F28: MS 10.424/DF | G28: 2005-02-17 | H28: Administrativo - Servidor Público Civil - Sistema Remuneratório e Benefícios - Gratificações | I28: 2005-10-27 | K28: UNIÃO | L28: Ministério do Planejamento, Orçamento e Gestão | N28: Gratificação Específica de Atividade Docente - GEAD | O28: Dedução de Honorários Contratuais | P28: Alimentar | R28: Não | S28: Não | T28: Não | U28: - | V28: - | W28: Não informada | X28: Não Informada | Y28: Não | AA28: 2019-11-01 | AB28: 8228.45 | AC28: 6763.4 | AD28: 14991.85 | AE28: 7323.33 | AF28: 6019.42 | AG28: 13342.75 | AH28: 905.12 | AI28: 743.98 | AJ28: 1649.1 | AK28: 0 | AL28: 0 | AM28: 0 | AN28: 13342.75 | AO28: 9 | AP28: 905.12 | AQ28: 8228.45 | AR28: 905.12 | AS28: 0 | AU28: 2020-04-02 | AV28: 15314.85 | AW28: 13630.22 | AX28: 1684.63 | AY28: 0 | AZ28: 13630.22 | BA28: 924.63 | BB28: 8405.73 | BC28: 924.63 | BD28: 0
B29: 9182 | C29: 2019/0367843-8 | D29: 2019-12-06 | F29: MS 10.424/DF | G29: 2005-02-17 | H29: Administrativo - Servidor Público Civil - Sistema Remuneratório e Benefícios - Gratificações | I29: 2005-10-27 | K29: UNIÃO | L29: - | N29: Honorários de sucumbência | O29: X X X | P29: Alimentar | R29: Não | S29: Não | T29: Não | U29: - | V29: - | W29: Não informada | X29: Não Informada | Y29: Não | AA29: 2019-11-01 | AB29: 123.54 | AC29: 0 | AD29: 123.54 | AE29: 123.54 | AF29: 0 | AG29: 123.54 | AH29: 0 | AI29: 0 | AJ29: 0 | AK29: 0 | AL29: 0 | AM29: 0 | AN29: 0 | AO29: 0 | AP29: 0 | AQ29: 0 | AR29: 0 | AS29: 0 | AU29: 2020-04-02 | AV29: 126.2 | AW29: 126.2 | AX29: 0 | AY29: 0 | AZ29: 0 | BA29: 0 | BB29: 0 | BC29: 0 | BD29: 0
B30: 9188 | C30: 2019/0367871-7 | D30: 2019-12-06 | F30: MS 10.424/DF | G30: 2005-02-17 | H30: Administrativo - Servidor Público Civil - Sistema Remuneratório e Benefícios - Gratificações | I30: 2005-10-27 | K30: UNIÃO | L30: Ministério do Planejamento, Orçamento e Gestão | N30: Gratificação Específica de Atividade Docente - GEAD | O30: Dedução de Honorários Contratuais | P30: Alimentar | R30: Não | S30: Não | T30: Não | U30: - | V30: - | W30: Não informada | X30: Não Informada | Y30: Não | AA30: 2019-11-01 | AB30: 8228.45 | AC30: 6763.4 | AD30: 14991.85 | AE30: 7323.33 | AF30: 6019.42 | AG30: 13342.75 | AH30: 905.12 | AI30: 743.98 | AJ30: 1649.1 | AK30: 0 | AL30: 0 | AM30: 0 | AN30: 13342.75 | AO30: 9 | AP30: 905.12 | AQ30: 8228.45 | AR30: 905.12 | AS30: 1810.24 | AU30: 2020-04-02 | AV30: 15314.85 | AW30: 13630.22 | AX30: 1684.63 | AY30: 0 | AZ30: 13630.22 | BA30: 924.63 | BB30: 8405.73 | BC30: 924.63 | BD30: 1849.26
B31: 9200 | C31: 2019/0367926-0 | D31: 2019-12-06 | F31: MS 10.424/DF | G31: 2005-02-17 | H31: Administrativo - Servidor Público Civil - Sistema Remuneratório e Benefícios - Gratificações | I31: 2005-10-27 | K31: UNIÃO | L31: Ministério do Planejamento, Orçamento e Gestão | N31: Gratificação Específica de Atividade Docente - GEAD | O31: Dedução de Honorários Contratuais | P31: Alimentar | R31: Não | S31: Não | T31: Não | U31: - | V31: - | W31: Não informada | X31: Não Informada | Y31: Não | AA31: 2019-11-01 | AB31: 8228.45 | AC31: 6763.4 | AD31: 14991.85 | AE31: 7323.33 | AF31: 6019.42 | AG31: 13342.75 | AH31: 905.12 | AI31: 743.98 | AJ31: 1649.1 | AK31: 0 | AL31: 0 | AM31: 0 | AN31: 13342.75 | AO31: 9 | AP31: 905.12 | AQ31: 8228.45 | AR31: 905.12 | AS31: 0 | AU31: 2020-04-02 | AV31: 15314.85 | AW31: 13630.22 | AX31: 1684.63 | AY31: 0 | AZ31: 13630.22 | BA31: 924.63 | BB31: 8405.73 | BC31: 924.63 | BD31: 0
B32: 9201 | C32: 2019/0367928-3 | D32: 2019-12-06 | F32: MS 10.424/DF | G32: 2005-02-17 | H32: Administrativo - Servidor Público Civil - Sistema Remuneratório e Benefícios - Gratificações | I32: 2005-10-27 | K32: UNIÃO | L32: Ministério do Planejamento, Orçamento e Gestão | N32: Gratificação Específica de Atividade Docente - GEAD | O32: Dedução de Honorários Contratuais | P32: Alimentar | R32: Não | S32: Não | T32: Não | U32: - | V32: - | W32: Não informada | X32: Não Informada | Y32: Não | AA32: 2019-11-01 | AB32: 8228.45 | AC32: 6763.4 | AD32: 14991.85 | AE32: 7323.33 | AF32: 6019.42 | AG32: 13342.75 | AH32: 905.12 | AI32: 743.98 | AJ32: 1649.1 | AK32: 0 | AL32: 0 | AM32: 0 | AN32: 13342.75 | AO32: 9 | AP32: 905.12 | AQ32: 8228.45 | AR32: 905.12 | AS32: 0 | AU32: 2020-04-02 | AV32: 15314.85 | AW32: 13630.22 | AX32: 1684.63 | AY32: 0 | AZ32: 13630.22 | BA32: 924.63 | BB32: 8405.73 | BC32: 924.63 | BD32: 0
B33: 9210 | C33: 2019/0369511-1 | D33: 2019-12-06 | F33: MS 10.424/DF | G33: 2005-02-17 | H33: Administrativo - Servidor Público Civil - Sistema Remuneratório e Benefícios - Gratificações | I33: 2005-10-27 | K33: UNIÃO | L33: Ministério do Planejamento, Orçamento e Gestão | N33: Gratificação Específica de Atividade Docente - GEAD | O33: Dedução de Honorários Contratuais | P33: Alimentar | R33: Não | S33: Não | T33: Não | U33: - | V33: - | W33: Não informada | X33: Não Informada | Y33: Não | AA33: 2019-11-01 | AB33: 8228.45 | AC33: 6763.4 | AD33: 14991.85 | AE33: 7323.33 | AF33: 6019.42 | AG33: 13342.75 | AH33: 905.12 | AI33: 743.98 | AJ33: 1649.1 | AK33: 0 | AL33: 0 | AM33: 0 | AN33: 13342.75 | AO33: 9 | AP33: 905.12 | AQ33: 8228.45 | AR33: 905.12 | AS33: 0 | AU33: 2020-04-02 | AV33: 15314.85 | AW33: 13630.22 | AX33: 1684.63 | AY33: 0 | AZ33: 13630.22 | BA33: 924.63 | BB33: 8405.73 | BC33: 924.63 | BD33: 0
B34: 9211 | C34: 2019/0369512-3 | D34: 2019-12-06 | F34: MS 10.424/DF | G34: 2005-02-17 | H34: Administrativo - Servidor Público Civil - Sistema Remuneratório e Benefícios - Gratificações | I34: 2005-10-27 | K34: UNIÃO | L34: Ministério do Planejamento, Orçamento e Gestão | N34: Gratificação Específica de Atividade Docente - GEAD | O34: Dedução de Honorários Contratuais | P34: Alimentar | R34: Não | S34: Não | T34: Não | U34: - | V34: - | W34: Não informada | X34: Não Informada | Y34: Não | AA34: 2019-11-01 | AB34: 8228.45 | AC34: 6763.4 | AD34: 14991.85 | AE34: 7323.33 | AF34: 6019.42 | AG34: 13342.75 | AH34: 905.12 | AI34: 743.98 | AJ34: 1649.1 | AK34: 0 | AL34: 0 | AM34: 0 | AN34: 13342.75 | AO34: 9 | AP34: 905.12 | AQ34: 8228.45 | AR34: 905.12 | AS34: 0 | AU34: 2020-04-02 | AV34: 15314.85 | AW34: 13630.22 | AX34: 1684.63 | AY34: 0 | AZ34: 13630.22 | BA34: 924.63 | BB34: 8405.73 | BC34: 924.63 | BD34: 0
B35: 9212 | C35: 2019/0369514-7 | D35: 2019-12-06 | F35: MS 10.424/DF | G35: 2005-02-17 | H35: Administrativo - Servidor Público Civil - Sistema Remuneratório e Benefícios - Gratificações | I35: 2005-10-27 | K35: UNIÃO | L35: Ministério do Planejamento, Orçamento e Gestão | N35: Gratificação Específica de Atividade Docente - GEAD | O35: Dedução de Honorários Contratuais | P35: Alimentar | R35: Não | S35: Não | T35: Não | U35: - | V35: - | W35: Não informada | X35: Não Informada | Y35: Não | AA35: 2019-11-01 | AB35: 8228.45 | AC35: 6763.4 | AD35: 14991.85 | AE35: 7323.33 | AF35: 6019.42 | AG35: 13342.75 | AH35: 905.12 | AI35: 743.98 | AJ35: 1649.1 | AK35: 0 | AL35: 0 | AM35: 0 | AN35: 13342.75 | AO35: 9 | AP35: 905.12 | AQ35: 8228.45 | AR35: 905.12 | AS35: 1810.24 | AU35: 2020-04-02 | AV35: 15314.85 | AW35: 13630.22 | AX35: 1684.63 | AY35: 0 | AZ35: 13630.22 | BA35: 924.63 | BB35: 8405.73 | BC35: 924.63 | BD35: 1849.26
B36: 9215 | C36: 2019/0369521-2 | D36: 2019-12-06 | F36: MS 10.424/DF | G36: 2005-02-17 | H36: Administrativo - Servidor Público Civil - Sistema Remuneratório e Benefícios - Gratificações | I36: 2005-10-27 | K36: UNIÃO | L36: Ministério do Planejamento, Orçamento e Gestão | N36: Gratificação Específica de Atividade Docente - GEAD | O36: Dedução de Honorários Contratuais | P36: Alimentar | R36: Não | S36: Não | T36: Não | U36: - | V36: - | W36: Não informada | X36: Não Informada | Y36: Não | AA36: 2019-11-01 | AB36: 8228.45 | AC36: 6763.4 | AD36: 14991.85 | AE36: 7323.33 | AF36: 6019.42 | AG36: 13342.75 | AH36: 905.12 | AI36: 743.98 | AJ36: 1649.1 | AK36: 0 | AL36: 0 | AM36: 0 | AN36: 13342.75 | AO36: 9 | AP36: 905.12 | AQ36: 8228.45 | AR36: 905.12 | AS36: 0 | AU36: 2020-04-02 | AV36: 15314.85 | AW36: 13630.22 | AX36: 1684.63 | AY36: 0 | AZ36: 13630.22 | BA36: 924.63 | BB36: 8405.73 | BC36: 924.63 | BD36: 0
B37: 9217 | C37: 2019/0369533-7 | D37: 2019-12-06 | F37: MS 10.424/DF | G37: 2005-02-17 | H37: Administrativo - Servidor Público Civil - Sistema Remuneratório e Benefícios - Gratificações | I37: 2005-10-27 | K37: UNIÃO | L37: Ministério do Planejamento, Orçamento e Gestão | N37: Gratificação Específica de Atividade Docente - GEAD | O37: Dedução de Honorários Contratuais | P37: Alimentar | R37: Não | S37: Não | T37: Não | U37: - | V37: - | W37: Não informada | X37: Não Informada | Y37: Não | AA37: 2019-11-01 | AB37: 8228.45 | AC37: 6763.4 | AD37: 14991.85 | AE37: 7323.33 | AF37: 6019.42 | AG37: 13342.75 | AH37: 905.12 | AI37: 743.98 | AJ37: 1649.1 | AK37: 0 | AL37: 0 | AM37: 0 | AN37: 13342.75 | AO37: 9 | AP37: 905.12 | AQ37: 8228.45 | AR37: 905.12 | AS37: 0 | AU37: 2020-04-02 | AV37: 15314.85 | AW37: 13630.22 | AX37: 1684.63 | AY37: 0 | AZ37: 13630.22 | BA37: 924.63 | BB37: 8405.73 | BC37: 924.63 | BD37: 0
B38: 9218 | C38: 2019/0369537-4 | D38: 2019-12-06 | F38: MS 10.424/DF | G38: 2005-02-17 | H38: Administrativo - Servidor Público Civil - Sistema Remuneratório e Benefícios - Gratificações | I38: 2005-10-27 | K38: UNIÃO | L38: Ministério do Planejamento, Orçamento e Gestão | N38: Gratificação Específica de Atividade Docente - GEAD | O38: Dedução de Honorários Contratuais | P38: Alimentar | R38: Não | S38: Não | T38: Não | U38: - | V38: - | W38: Não informada | X38: Não Informada | Y38: Não | AA38: 2019-11-01 | AB38: 8228.45 | AC38: 6763.4 | AD38: 14991.85 | AE38: 7323.33 | AF38: 6019.42 | AG38: 13342.75 | AH38: 905.12 | AI38: 743.98 | AJ38: 1649.1 | AK38: 0 | AL38: 0 | AM38: 0 | AN38: 13342.75 | AO38: 9 | AP38: 905.12 | AQ38: 8228.45 | AR38: 905.12 | AS38: 0 | AU38: 2020-04-02 | AV38: 15314.85 | AW38: 13630.22 | AX38: 1684.63 | AY38: 0 | AZ38: 13630.22 | BA38: 924.63 | BB38: 8405.73 | BC38: 924.63 | BD38: 0
B39: 9222 | C39: 2019/0369550-3 | D39: 2019-12-06 | F39: MS 10.424/DF | G39: 2005-02-17 | H39: Administrativo - Servidor Público Civil - Sistema Remuneratório e Benefícios - Gratificações | I39: 2005-10-27 | K39: UNIÃO | L39: Ministério do Planejamento, Orçamento e Gestão | N39: Gratificação Específica de Atividade Docente - GEAD | O39: Dedução de Honorários Contratuais | P39: Alimentar | R39: Não | S39: Não | T39: Não | U39: - | V39: - | W39: Não informada | X39: Não Informada | Y39: Não | AA39: 2019-11-01 | AB39: 8228.45 | AC39: 6763.4 | AD39: 14991.85 | AE39: 7323.33 | AF39: 6019.42 | AG39: 13342.75 | AH39: 905.12 | AI39: 743.98 | AJ39: 1649.1 | AK39: 0 | AL39: 0 | AM39: 0 | AN39: 13342.75 | AO39: 9 | AP39: 905.12 | AQ39: 8228.45 | AR39: 905.12 | AS39: 1810.24 | AU39: 2020-04-02 | AV39: 15314.85 | AW39: 13630.22 | AX39: 1684.63 | AY39: 0 | AZ39: 13630.22 | BA39: 924.63 | BB39: 8405.73 | BC39: 924.63 | BD39: 1849.26
B40: 9223 | C40: 2019/0369559-0 | D40: 2019-12-06 | F40: MS 10.424/DF | G40: 2005-02-17 | H40: Administrativo - Servidor Público Civil - Sistema Remuneratório e Benefícios - Gratificações | I40: 2005-10-27 | K40: UNIÃO | L40: Ministério do Planejamento, Orçamento e Gestão | N40: Gratificação Específica de Atividade Docente - GEAD | O40: Dedução de Honorários Contratuais | P40: Alimentar | R40: Não | S40: Não | T40: Não | U40: - | V40: - | W40: Não informada | X40: Não Informada | Y40: Não | AA40: 2019-11-01 | AB40: 8228.45 | AC40: 6763.4 | AD40: 14991.85 | AE40: 7323.33 | AF40: 6019.42 | AG40: 13342.75 | AH40: 905.12 | AI40: 743.98 | AJ40: 1649.1 | AK40: 0 | AL40: 0 | AM40: 0 | AN40: 13342.75 | AO40: 9 | AP40: 905.12 | AQ40: 8228.45 | AR40: 905.12 | AS40: 0 | AU40: 2020-04-02 | AV40: 15314.85 | AW40: 13630.22 | AX40: 1684.63 | AY40: 0 | AZ40: 13630.22 | BA40: 924.63 | BB40: 8405.73 | BC40: 924.63 | BD40: 0
B41: 9227 | C41: 2019/0369571-7 | D41: 2019-12-06 | F41: MS 10.424/DF | G41: 2005-02-17 | H41: Administrativo - Servidor Público Civil - Sistema Remuneratório e Benefícios - Gratificações | I41: 2005-10-27 | K41: UNIÃO | L41: Ministério do Planejamento, Orçamento e Gestão | N41: Gratificação Específica de Atividade Docente - GEAD | O41: Dedução de Honorários Contratuais | P41: Alimentar | R41: Não | S41: Não | T41: Não | U41: - | V41: - | W41: Não informada | X41: Não Informada | Y41: Não | AA41: 2019-11-01 | AB41: 8228.45 | AC41: 6763.4 | AD41: 14991.85 | AE41: 7323.33 | AF41: 6019.42 | AG41: 13342.75 | AH41: 905.12 | AI41: 743.98 | AJ41: 1649.1 | AK41: 0 | AL41: 0 | AM41: 0 | AN41: 13342.75 | AO41: 9 | AP41: 905.12 | AQ41: 8228.45 | AR41: 905.12 | AS41: 1810.24 | AU41: 2020-04-02 | AV41: 15314.85 | AW41: 13630.22 | AX41: 1684.63 | AY41: 0 | AZ41: 13630.22 | BA41: 924.63 | BB41: 8405.73 | BC41: 924.63 | BD41: 1849.26
B42: 9228 | C42: 2019/0369574-2 | D42: 2019-12-06 | F42: MS 10.424/DF | G42: 2005-02-17 | H42: Administrativo - Servidor Público Civil - Sistema Remuneratório e Benefícios - Gratificações | I42: 2005-10-27 | K42: UNIÃO | L42: Ministério do Planejamento, Orçamento e Gestão | N42: Gratificação Específica de Atividade Docente - GEAD | O42: Dedução de Honorários Contratuais | P42: Alimentar | R42: Não | S42: Não | T42: Não | U42: - | V42: - | W42: Não informada | X42: Não Informada | Y42: Não | AA42: 2019-11-01 | AB42: 8228.45 | AC42: 6763.4 | AD42: 14991.85 | AE42: 7323.33 | AF42: 6019.42 | AG42: 13342.75 | AH42: 905.12 | AI42: 743.98 | AJ42: 1649.1 | AK42: 0 | AL42: 0 | AM42: 0 | AN42: 13342.75 | AO42: 9 | AP42: 905.12 | AQ42: 8228.45 | AR42: 905.12 | AS42: 0 | AU42: 2020-04-02 | AV42: 15314.85 | AW42: 13630.22 | AX42: 1684.63 | AY42: 0 | AZ42: 13630.22 | BA42: 924.63 | BB42: 8405.73 | BC42: 924.63 | BD42: 0
B43: 9237 | C43: 2019/0369601-9 | D43: 2019-12-07 | F43: MS 6.019/DF | G43: 1998-10-22 | H43: Administrativo - Servidor Público Civil - Sistema Remuneratório e Benefícios | I43: 2007-12-10 | K43: Instituto Nacional do Seguro Social - INSS | L43: Instituto Nacional do Seguro Social - INSS | N43: Reajuste Salarial - Resíduo de 3,17% | O43: Dedução de Honorários Contratuais | P43: Alimentar | R43: Não | S43: Não | T43: Não | U43: - | V43: - | W43: Não informada | X43: Não Informada | Y43: Não | AA43: 2019-11-01 | AB43: 6577.03 | AC43: 9418.83 | AD43: 15995.86 | AE43: 6149.53 | AF43: 8806.6 | AG43: 14956.13 | AH43: 427.5 | AI43: 612.23 | AJ43: 1039.73 | AK43: 0 | AL43: 0 | AM43: 0 | AN43: 14956.13 | AO43: 23 | AP43: 0 | AQ43: 0 | AR43: 0 | AS43: 0 | AU43: 2020-04-02 | AV43: 16340.5 | AW43: 15278.37 | AX43: 1062.13 | AY43: 0 | AZ43: 15278.37 | BA43: 0 | BB43: 0 | BC43: 0 | BD43: 0
B44: 9238 | C44: 2019/0369602-0 | D44: 2019-12-07 | F44: MS 6.019/DF | G44: 1998-10-22 | H44: Administrativo - Servidor Público Civil - Sistema Remuneratório e Benefícios | I44: 2007-12-10 | K44: Instituto Nacional do Seguro Social - INSS | L44: Instituto Nacional do Seguro Social - INSS | N44: Reajuste Salarial - Resíduo de 3,17% | O44: Dedução de Honorários Contratuais | P44: Alimentar | R44: Não | S44: Não | T44: Não | U44: - | V44: - | W44: Não informada | X44: Não Informada | Y44: Não | AA44: 2019-11-01 | AB44: 3970.21 | AC44: 5709.05 | AD44: 9679.26 | AE44: 3712.15 | AF44: 5337.96 | AG44: 9050.11 | AH44: 258.06 | AI44: 371.09 | AJ44: 629.15 | AK44: 0 | AL44: 0 | AM44: 0 | AN44: 9050.11 | AO44: 23 | AP44: 0 | AQ44: 0 | AR44: 0 | AS44: 0 | AU44: 2020-04-02 | AV44: 9887.8 | AW44: 9245.1 | AX44: 642.7 | AY44: 0 | AZ44: 9245.1 | BA44: 0 | BB44: 0 | BC44: 0 | BD44: 0
B45: 9243 | C45: 2019/0369607-0 | D45: 2019-12-07 | F45: MS 6.019/DF | G45: 1998-10-22 | H45: Administrativo - Servidor Público Civil - Sistema Remuneratório e Benefícios | I45: 2007-12-10 | K45: Instituto Nacional do Seguro Social - INSS | L45: Instituto Nacional do Seguro Social - INSS | N45: Reajuste Salarial - Resíduo de 3,17% | O45: Dedução de Honorários Contratuais | P45: Alimentar | R45: Não | S45: Não | T45: Não | U45: - | V45: - | W45: Não informada | X45: Não Informada | Y45: Não | AA45: 2019-11-01 | AB45: 3759.89 | AC45: 5305.51 | AD45: 9065.4 | AE45: 3515.5 | AF45: 4960.65 | AG45: 8476.15 | AH45: 244.39 | AI45: 344.86 | AJ45: 589.25 | AK45: 0 | AL45: 0 | AM45: 0 | AN45: 8476.15 | AO45: 23 | AP45: 0 | AQ45: 0 | AR45: 0 | AS45: 0 | AU45: 2020-04-02 | AV45: 9260.71 | AW45: 8658.77 | AX45: 601.94 | AY45: 0 | AZ45: 8658.77 | BA45: 0 | BB45: 0 | BC45: 0 | BD45: 0
B46: 9248 | C46: 2019/0369612-1 | D46: 2019-12-07 | F46: MS 6.019/DF | G46: 1998-10-22 | H46: Administrativo - Servidor Público Civil - Sistema Remuneratório e Benefícios | I46: 2007-12-10 | K46: Instituto Nacional do Seguro Social - INSS | L46: Instituto Nacional do Seguro Social - INSS | N46: Reajuste Salarial - Resíduo de 3,17% | O46: Dedução de Honorários Contratuais | P46: Alimentar | R46: Não | S46: Não | T46: Não | U46: - | V46: - | W46: Não informada | X46: Não Informada | Y46: Não | AA46: 2019-11-01 | AB46: 3462.8 | AC46: 5010.8 | AD46: 8473.6 | AE46: 3237.72 | AF46: 4685.1 | AG46: 7922.82 | AH46: 225.08 | AI46: 325.7 | AJ46: 550.78 | AK46: 0 | AL46: 0 | AM46: 0 | AN46: 7922.82 | AO46: 23 | AP46: 0 | AQ46: 0 | AR46: 0 | AS46: 0 | AU46: 2020-04-02 | AV46: 8656.16 | AW46: 8093.52 | AX46: 562.64 | AY46: 0 | AZ46: 8093.52 | BA46: 0 | BB46: 0 | BC46: 0 | BD46: 0
B47: 9255 | C47: 2019/0369619-4 | D47: 2019-12-07 | F47: MS 6.019/DF | G47: 1998-10-22 | H47: Administrativo - Servidor Público Civil - Sistema Remuneratório e Benefícios | I47: 2007-12-10 | K47: Instituto Nacional do Seguro Social - INSS | L47: Instituto Nacional do Seguro Social - INSS | N47: Reajuste Salarial - Resíduo de 3,17% | O47: Dedução de Honorários Contratuais | P47: Alimentar | R47: Não | S47: Não | T47: Não | U47: - | V47: - | W47: Não informada | X47: Não Informada | Y47: Não | AA47: 2019-11-01 | AB47: 6567.72 | AC47: 9395.48 | AD47: 15963.2 | AE47: 6140.82 | AF47: 8784.78 | AG47: 14925.6 | AH47: 426.9 | AI47: 610.7 | AJ47: 1037.6 | AK47: 0 | AL47: 0 | AM47: 0 | AN47: 14925.6 | AO47: 23 | AP47: 0 | AQ47: 0 | AR47: 0 | AS47: 0 | AU47: 2020-04-02 | AV47: 16307.13 | AW47: 15247.18 | AX47: 1059.95 | AY47: 0 | AZ47: 15247.18 | BA47: 0 | BB47: 0 | BC47: 0 | BD47: 0
B48: 9258 | C48: 2019/0369622-2 | D48: 2019-12-07 | F48: MS 6.019/DF | G48: 1998-10-22 | H48: Administrativo - Servidor Público Civil - Sistema Remuneratório e Benefícios | I48: 2007-12-10 | K48: Instituto Nacional do Seguro Social - INSS | L48: Instituto Nacional do Seguro Social - INSS | N48: Reajuste Salarial - Resíduo de 3,17% | O48: Dedução de Honorários Contratuais | P48: Alimentar | R48: Não | S48: Não | T48: Não | U48: - | V48: - | W48: Não informada | X48: Não Informada | Y48: Não | AA48: 2019-11-01 | AB48: 3933.62 | AC48: 5402.69 | AD48: 9336.31 | AE48: 3677.94 | AF48: 5051.51 | AG48: 8729.45 | AH48: 255.68 | AI48: 351.18 | AJ48: 606.86 | AK48: 0 | AL48: 0 | AM48: 0 | AN48: 8729.45 | AO48: 23 | AP48: 0 | AQ48: 0 | AR48: 0 | AS48: 0 | AU48: 2020-04-02 | AV48: 9537.46 | AW48: 8917.53 | AX48: 619.93 | AY48: 0 | AZ48: 8917.53 | BA48: 0 | BB48: 0 | BC48: 0 | BD48: 0
B49: 9260 | C49: 2019/0369624-6 | D49: 2019-12-07 | F49: MS 6.019/DF | G49: 1998-10-22 | H49: Administrativo - Servidor Público Civil - Sistema Remuneratório e Benefícios | I49: 2007-12-10 | K49: Instituto Nacional do Seguro Social - INSS | L49: Instituto Nacional do Seguro Social - INSS | N49: Reajuste Salarial - Resíduo de 3,17% | O49: Dedução de Honorários Contratuais | P49: Alimentar | R49: Não | S49: Não | T49: Não | U49: - | V49: - | W49: Não informada | X49: Não Informada | Y49: Não | AA49: 2019-11-01 | AB49: 1720.63 | AC49: 2233.26 | AD49: 3953.89 | AE49: 1608.79 | AF49: 2088.1 | AG49: 3696.89 | AH49: 111.84 | AI49: 145.16 | AJ49: 257 | AK49: 0 | AL49: 0 | AM49: 0 | AN49: 3696.89 | AO49: 23 | AP49: 0 | AQ49: 0 | AR49: 0 | AS49: 0 | AU49: 2020-04-02 | AV49: 4039.07 | AW49: 3776.54 | AX49: 262.53 | AY49: 0 | AZ49: 3776.54 | BA49: 0 | BB49: 0 | BC49: 0 | BD49: 0
B50: 9261 | C50: 2019/0369625-8 | D50: 2019-12-07 | F50: MS 6.019/DF | G50: 1998-10-22 | H50: Administrativo - Servidor Público Civil - Sistema Remuneratório e Benefícios | I50: 2007-12-10 | K50: Instituto Nacional do Seguro Social - INSS | L50: Instituto Nacional do Seguro Social - INSS | N50: Reajuste Salarial - Resíduo de 3,17% | O50: Dedução de Honorários Contratuais | P50: Alimentar | R50: Não | S50: Não | T50: Não | U50: - | V50: - | W50: Não informada | X50: Não Informada | Y50: Não | AA50: 2019-11-01 | AB50: 4595.14 | AC50: 6111.31 | AD50: 10706.45 | AE50: 4296.46 | AF50: 5714.08 | AG50: 10010.54 | AH50: 298.68 | AI50: 397.23 | AJ50: 695.91 | AK50: 0 | AL50: 0 | AM50: 0 | AN50: 10010.54 | AO50: 23 | AP50: 0 | AQ50: 0 | AR50: 0 | AS50: 0 | AU50: 2020-04-02 | AV50: 10937.12 | AW50: 10226.22 | AX50: 710.9 | AY50: 0 | AZ50: 10226.22 | BA50: 0 | BB50: 0 | BC50: 0 | BD50: 0
B51: 9266 | C51: 2019/0369630-0 | D51: 2019-12-07 | F51: MS 6.019/DF | G51: 1998-10-22 | H51: Administrativo - Servidor Público Civil - Sistema Remuneratório e Benefícios | I51: 2007-12-10 | K51: Instituto Nacional do Seguro Social - INSS | L51: Instituto Nacional do Seguro Social - INSS | N51: Reajuste Salarial - Resíduo de 3,17% | O51: Dedução de Honorários Contratuais | P51: Alimentar | R51: Não | S51: Não | T51: Não | U51: - | V51: - | W51: Não informada | X51: Não Informada | Y51: Não | AA51: 2019-11-01 | AB51: 7647.47 | AC51: 10961.88 | AD51: 18609.35 | AE51: 7150.39 | AF51: 10249.36 | AG51: 17399.75 | AH51: 497.08 | AI51: 712.52 | AJ51: 1209.6 | AK51: 0 | AL51: 0 | AM51: 0 | AN51: 17399.75 | AO51: 23 | AP51: 0 | AQ51: 0 | AR51: 0 | AS51: 0 | AU51: 2020-04-02 | AV51: 19010.29 | AW51: 17774.63 | AX51: 1235.66 | AY51: 0 | AZ51: 17774.63 | BA51: 0 | BB51: 0 | BC51: 0 | BD51: 0
B52: 9267 | C52: 2019/0369631-1 | D52: 2019-12-07 | F52: MS 6.019/DF | G52: 1998-10-22 | H52: Administrativo - Servidor Público Civil - Sistema Remuneratório e Benefícios | I52: 2007-12-10 | K52: Instituto Nacional do Seguro Social - INSS | L52: Instituto Nacional do Seguro Social - INSS | N52: Reajuste Salarial - Resíduo de 3,17% | O52: Dedução de Honorários Contratuais | P52: Alimentar | R52: Não | S52: Não | T52: Não | U52: - | V52: - | W52: Não informada | X52: Não Informada | Y52: Não | AA52: 2019-11-01 | AB52: 3032.15 | AC52: 6429.88 | AD52: 9462.03 | AE52: 2835.07 | AF52: 6011.93 | AG52: 8847 | AH52: 197.08 | AI52: 417.95 | AJ52: 615.03 | AK52: 0 | AL52: 0 | AM52: 0 | AN52: 8847 | AO52: 23 | AP52: 0 | AQ52: 0 | AR52: 0 | AS52: 0 | AU52: 2020-04-02 | AV52: 9665.89 | AW52: 9037.61 | AX52: 628.28 | AY52: 0 | AZ52: 9037.61 | BA52: 0 | BB52: 0 | BC52: 0 | BD52: 0
B53: 9268 | C53: 2019/0369632-3 | D53: 2019-12-07 | F53: MS 6.019/DF | G53: 1998-10-22 | H53: Administrativo - Servidor Público Civil - Sistema Remuneratório e Benefícios | I53: 2007-12-10 | K53: Instituto Nacional do Seguro Social - INSS | L53: Instituto Nacional do Seguro Social - INSS | N53: Reajuste Salarial - Resíduo de 3,17% | O53: Dedução de Honorários Contratuais | P53: Alimentar | R53: Não | S53: Não | T53: Não | U53: - | V53: - | W53: Não informada | X53: Não Informada | Y53: Não | AA53: 2019-11-01 | AB53: 1297.23 | AC53: 1861.41 | AD53: 3158.64 | AE53: 1212.92 | AF53: 1740.41 | AG53: 2953.33 | AH53: 84.31 | AI53: 121 | AJ53: 205.31 | AK53: 0 | AL53: 0 | AM53: 0 | AN53: 2953.33 | AO53: 23 | AP53: 0 | AQ53: 0 | AR53: 0 | AS53: 0 | AU53: 2020-04-02 | AV53: 3226.69 | AW53: 3016.96 | AX53: 209.73 | AY53: 0 | AZ53: 3016.96 | BA53: 0 | BB53: 0 | BC53: 0 | BD53: 0
B54: 9272 | C54: 2019/0369636-0 | D54: 2019-12-07 | F54: MS 6.019/DF | G54: 1998-10-22 | H54: Administrativo - Servidor Público Civil - Sistema Remuneratório e Benefícios | I54: 2007-12-10 | K54: Instituto Nacional do Seguro Social - INSS | L54: Instituto Nacional do Seguro Social - INSS | N54: Reajuste Salarial - Resíduo de 3,17% | O54: Dedução de Honorários Contratuais | P54: Alimentar | R54: Não | S54: Não | T54: Não | U54: - | V54: - | W54: Não informada | X54: Não Informada | Y54: Não | AA54: 2019-11-01 | AB54: 3694.37 | AC54: 5364.02 | AD54: 9058.39 | AE54: 3454.24 | AF54: 5015.36 | AG54: 8469.6 | AH54: 240.13 | AI54: 348.66 | AJ54: 588.79 | AK54: 0 | AL54: 0 | AM54: 0 | AN54: 8469.6 | AO54: 23 | AP54: 0 | AQ54: 0 | AR54: 0 | AS54: 0 | AU54: 2020-04-02 | AV54: 9253.55 | AW54: 8652.08 | AX54: 601.47 | AY54: 0 | AZ54: 8652.08 | BA54: 0 | BB54: 0 | BC54: 0 | BD54: 0
B55: 9276 | C55: 2019/0370002-2 | D55: 2019-12-07 | F55: MS 6.019/DF | G55: 1998-10-22 | H55: Administrativo - Servidor Público Civil - Sistema Remuneratório e Benefícios | I55: 2007-12-10 | K55: Instituto Nacional do Seguro Social - INSS | L55: Instituto Nacional do Seguro Social - INSS | N55: Reajuste Salarial - Resíduo de 3,17% | O55: Dedução de Honorários Contratuais | P55: Alimentar | R55: Não | S55: Não | T55: Não | U55: - | V55: - | W55: Não informada | X55: Não Informada | Y55: Não | AA55: 2019-11-01 | AB55: 6549.17 | AC55: 9460.82 | AD55: 16009.99 | AE55: 6123.48 | AF55: 8845.87 | AG55: 14969.35 | AH55: 425.69 | AI55: 614.95 | AJ55: 1040.64 | AK55: 0 | AL55: 0 | AM55: 0 | AN55: 14969.35 | AO55: 23 | AP55: 0 | AQ55: 0 | AR55: 0 | AS55: 0 | AU55: 2020-04-02 | AV55: 16354.93 | AW55: 15291.87 | AX55: 1063.06 | AY55: 0 | AZ55: 15291.87 | BA55: 0 | BB55: 0 | BC55: 0 | BD55: 0
B56: 9277 | C56: 2019/0370004-6 | D56: 2019-12-07 | F56: MS 6.019/DF | G56: 1998-10-22 | H56: Administrativo - Servidor Público Civil - Sistema Remuneratório e Benefícios | I56: 2007-12-10 | K56: Instituto Nacional do Seguro Social - INSS | L56: Instituto Nacional do Seguro Social - INSS | N56: Reajuste Salarial - Resíduo de 3,17% | O56: Dedução de Honorários Contratuais | P56: Alimentar | R56: Não | S56: Não | T56: Não | U56: - | V56: - | W56: Não informada | X56: Não Informada | Y56: Não | AA56: 2019-11-01 | AB56: 7104.62 | AC56: 9412.27 | AD56: 16516.89 | AE56: 6642.82 | AF56: 8800.48 | AG56: 15443.3 | AH56: 461.8 | AI56: 611.79 | AJ56: 1073.59 | AK56: 0 | AL56: 0 | AM56: 0 | AN56: 15443.3 | AO56: 23 | AP56: 0 | AQ56: 0 | AR56: 0 | AS56: 0 | AU56: 2020-04-02 | AV56: 16872.75 | AW56: 15776.03 | AX56: 1096.72 | AY56: 0 | AZ56: 15776.03 | BA56: 0 | BB56: 0 | BC56: 0 | BD56: 0
B57: 9281 | C57: 2019/0370015-9 | D57: 2019-12-07 | F57: MS 6.019/DF | G57: 1998-10-22 | H57: Administrativo - Servidor Público Civil - Sistema Remuneratório e Benefícios | I57: 2007-12-10 | K57: Instituto Nacional do Seguro Social - INSS | L57: Instituto Nacional do Seguro Social - INSS | N57: Reajuste Salarial - Resíduo de 3,17% | O57: Dedução de Honorários Contratuais | P57: Alimentar | R57: Não | S57: Não | T57: Não | U57: - | V57: - | W57: Não informada | X57: Não Informada | Y57: Não | AA57: 2019-11-01 | AB57: 3625.22 | AC57: 4938.63 | AD57: 8563.85 | AE57: 3389.59 | AF57: 4617.61 | AG57: 8007.2 | AH57: 235.63 | AI57: 321.02 | AJ57: 556.65 | AK57: 0 | AL57: 0 | AM57: 0 | AN57: 8007.2 | AO57: 23 | AP57: 0 | AQ57: 0 | AR57: 0 | AS57: 0 | AU57: 2020-04-02 | AV57: 8748.36 | AW57: 8179.72 | AX57: 568.64 | AY57: 0 | AZ57: 8179.72 | BA57: 0 | BB57: 0 | BC57: 0 | BD57: 0
B58: 9282 | C58: 2019/0370021-2 | D58: 2019-12-07 | F58: MS 6.019/DF | G58: 1998-10-22 | H58: Administrativo - Servidor Público Civil - Sistema Remuneratório e Benefícios | I58: 2007-12-10 | K58: Instituto Nacional do Seguro Social - INSS | L58: Instituto Nacional do Seguro Social - INSS | N58: Reajuste Salarial - Resíduo de 3,17% | O58: Dedução de Honorários Contratuais | P58: Alimentar | R58: Não | S58: Não | T58: Não | U58: - | V58: - | W58: Não informada | X58: Não Informada | Y58: Não | AA58: 2019-11-01 | AB58: 1182.54 | AC58: 1620.08 | AD58: 2802.62 | AE58: 1105.68 | AF58: 1514.77 | AG58: 2620.45 | AH58: 76.86 | AI58: 105.31 | AJ58: 182.17 | AK58: 0 | AL58: 0 | AM58: 0 | AN58: 2620.45 | AO58: 23 | AP58: 0 | AQ58: 0 | AR58: 0 | AS58: 0 | AU58: 2020-04-02 | AV58: 2863 | AW58: 2676.91 | AX58: 186.09 | AY58: 0 | AZ58: 2676.91 | BA58: 0 | BB58: 0 | BC58: 0 | BD58: 0
B59: 9285 | C59: 2019/0370029-7 | D59: 2019-12-07 | F59: MS 6.019/DF | G59: 1998-10-22 | H59: Administrativo - Servidor Público Civil - Sistema Remuneratório e Benefícios | I59: 2007-12-10 | K59: Instituto Nacional do Seguro Social - INSS | L59: Instituto Nacional do Seguro Social - INSS | N59: Reajuste Salarial - Resíduo de 3,17% | O59: Dedução de Honorários Contratuais | P59: Alimentar | R59: Não | S59: Não | T59: Não | U59: - | V59: - | W59: Não informada | X59: Não Informada | Y59: Não | AA59: 2019-11-01 | AB59: 7377.22 | AC59: 9858.8 | AD59: 17236.02 | AE59: 6897.71 | AF59: 9217.97 | AG59: 16115.68 | AH59: 479.51 | AI59: 640.83 | AJ59: 1120.34 | AK59: 0 | AL59: 0 | AM59: 0 | AN59: 16115.68 | AO59: 23 | AP59: 0 | AQ59: 0 | AR59: 0 | AS59: 0 | AU59: 2020-04-02 | AV59: 17607.38 | AW59: 16462.91 | AX59: 1144.47 | AY59: 0 | AZ59: 16462.91 | BA59: 0 | BB59: 0 | BC59: 0 | BD59: 0
B60: 9286 | C60: 2019/0370030-1 | D60: 2019-12-07 | F60: MS 6.019/DF | G60: 1998-10-22 | H60: Administrativo - Servidor Público Civil - Sistema Remuneratório e Benefícios | I60: 2007-12-10 | K60: Instituto Nacional do Seguro Social - INSS | L60: Instituto Nacional do Seguro Social - INSS | N60: Reajuste Salarial - Resíduo de 3,17% | O60: Dedução de Honorários Contratuais | P60: Alimentar | R60: Não | S60: Não | T60: Não | U60: - | V60: - | W60: Não informada | X60: Não Informada | Y60: Não | AA60: 2019-11-01 | AB60: 7938.01 | AC60: 11414.18 | AD60: 19352.19 | AE60: 7422.04 | AF60: 10672.26 | AG60: 18094.3 | AH60: 515.97 | AI60: 741.92 | AJ60: 1257.89 | AK60: 0 | AL60: 0 | AM60: 0 | AN60: 18094.3 | AO60: 23 | AP60: 0 | AQ60: 0 | AR60: 0 | AS60: 0 | AU60: 2020-04-02 | AV60: 19769.14 | AW60: 18484.15 | AX60: 1284.99 | AY60: 0 | AZ60: 18484.15 | BA60: 0 | BB60: 0 | BC60: 0 | BD60: 0
B61: 9287 | C61: 2019/0370034-9 | D61: 2019-12-07 | F61: MS 6.019/DF | G61: 1998-10-22 | H61: Administrativo - Servidor Público Civil - Sistema Remuneratório e Benefícios | I61: 2007-12-10 | K61: Instituto Nacional do Seguro Social - INSS | L61: Instituto Nacional do Seguro Social - INSS | N61: Reajuste Salarial - Resíduo de 3,17% | O61: Dedução de Honorários Contratuais | P61: Alimentar | R61: Não | S61: Não | T61: Não | U61: - | V61: - | W61: Não informada | X61: Não Informada | Y61: Não | AA61: 2019-11-01 | AB61: 2127.7 | AC61: 2966.88 | AD61: 5094.58 | AE61: 1989.4 | AF61: 2774.04 | AG61: 4763.44 | AH61: 138.3 | AI61: 192.84 | AJ61: 331.14 | AK61: 0 | AL61: 0 | AM61: 0 | AN61: 4763.44 | AO61: 23 | AP61: 0 | AQ61: 0 | AR61: 0 | AS61: 0 | AU61: 2020-04-02 | AV61: 5204.34 | AW61: 4866.07 | AX61: 338.27 | AY61: 0 | AZ61: 4866.07 | BA61: 0 | BB61: 0 | BC61: 0 | BD61: 0
B62: 9288 | C62: 2019/0370036-2 | D62: 2019-12-07 | F62: MS 6.019/DF | G62: 1998-10-22 | H62: Administrativo - Servidor Público Civil - Sistema Remuneratório e Benefícios | I62: 2007-12-10 | K62: Instituto Nacional do Seguro Social - INSS | L62: Instituto Nacional do Seguro Social - INSS | N62: Reajuste Salarial - Resíduo de 3,17% | O62: Dedução de Honorários Contratuais | P62: Alimentar | R62: Não | S62: Não | T62: Não | U62: - | V62: - | W62: Não informada | X62: Não Informada | Y62: Não | AA62: 2019-11-01 | AB62: 7893.75 | AC62: 11197.41 | AD62: 19091.16 | AE62: 7380.66 | AF62: 10469.58 | AG62: 17850.24 | AH62: 513.09 | AI62: 727.83 | AJ62: 1240.92 | AK62: 0 | AL62: 0 | AM62: 0 | AN62: 17850.24 | AO62: 23 | AP62: 0 | AQ62: 0 | AR62: 0 | AS62: 0 | AU62: 2020-04-02 | AV62: 19502.49 | AW62: 18234.84 | AX62: 1267.65 | AY62: 0 | AZ62: 18234.84 | BA62: 0 | BB62: 0 | BC62: 0 | BD62: 0
B63: 9289 | C63: 2019/0370039-8 | D63: 2019-12-07 | F63: MS 6.019/DF | G63: 1998-10-22 | H63: Administrativo - Servidor Público Civil - Sistema Remuneratório e Benefícios | I63: 2007-12-10 | K63: Instituto Nacional do Seguro Social - INSS | L63: Instituto Nacional do Seguro Social - INSS | N63: Reajuste Salarial - Resíduo de 3,17% | O63: Dedução de Honorários Contratuais | P63: Alimentar | R63: Não | S63: Não | T63: Não | U63: - | V63: - | W63: Não informada | X63: Não Informada | Y63: Não | AA63: 2019-11-01 | AB63: 6574.53 | AC63: 9343.94 | AD63: 15918.47 | AE63: 6147.19 | AF63: 8736.58 | AG63: 14883.77 | AH63: 427.34 | AI63: 607.36 | AJ63: 1034.7 | AK63: 0 | AL63: 0 | AM63: 0 | AN63: 14883.77 | AO63: 23 | AP63: 0 | AQ63: 0 | AR63: 0 | AS63: 0 | AU63: 2020-04-02 | AV63: 16261.44 | AW63: 15204.45 | AX63: 1056.99 | AY63: 0 | AZ63: 15204.45 | BA63: 0 | BB63: 0 | BC63: 0 | BD63: 0
B64: 9291 | C64: 2019/0370043-8 | D64: 2019-12-07 | F64: MS 6.019/DF | G64: 1998-10-22 | H64: Administrativo - Servidor Público Civil - Sistema Remuneratório e Benefícios | I64: 2007-12-10 | K64: Instituto Nacional do Seguro Social - INSS | L64: Instituto Nacional do Seguro Social - INSS | N64: Reajuste Salarial - Resíduo de 3,17% | O64: Dedução de Honorários Contratuais | P64: Alimentar | R64: Não | S64: Não | T64: Não | U64: - | V64: - | W64: Não informada | X64: Não Informada | Y64: Não | AA64: 2019-11-01 | AB64: 2698.66 | AC64: 3507.29 | AD64: 6205.95 | AE64: 2523.25 | AF64: 3279.32 | AG64: 5802.57 | AH64: 175.41 | AI64: 227.97 | AJ64: 403.38 | AK64: 0 | AL64: 0 | AM64: 0 | AN64: 5802.57 | AO64: 23 | AP64: 0 | AQ64: 0 | AR64: 0 | AS64: 0 | AU64: 2020-04-02 | AV64: 6339.66 | AW64: 5927.59 | AX64: 412.07 | AY64: 0 | AZ64: 5927.59 | BA64: 0 | BB64: 0 | BC64: 0 | BD64: 0
B65: 9295 | C65: 2019/0370437-7 | D65: 2019-12-09 | F65: MS 6.864/DF | G65: 2000-04-05 | H65: Administrativo - Servidor Público Civil - Sistema Remuneratório e Benefícios | I65: 2006-05-03 | K65: Instituto Nacional do Seguro Social - INSS | L65: Ministério do Planejamento, Orçamento e Gestão | N65: Reajuste 3,17% - Lei 8.880/94 | O65: Dedução de Honorários Contratuais | P65: Alimentar | R65: Não | S65: Não | T65: Não | U65: - | V65: - | W65: Não informada | X65: Não Informada | Y65: Não | AA65: 2019-11-01 | AB65: 13803.26 | AC65: 29244.42 | AD65: 43047.68 | AE65: 12975.07 | AF65: 27489.75 | AG65: 40464.82 | AH65: 828.19 | AI65: 1754.67 | AJ65: 2582.86 | AK65: 0 | AL65: 0 | AM65: 0 | AN65: 40464.82 | AO65: 47 | AP65: 1518.35 | AQ65: 13803.26 | AR65: 1518.35 | AS65: 3036.7 | AU65: 2020-04-02 | AV65: 43975.16 | AW65: 41336.66 | AX65: 2638.5 | AY65: 0 | AZ65: 41336.66 | BA65: 1551.07 | BB65: 14100.65 | BC65: 1551.07 | BD65: 3102.14
B66: 9297 | C66: 2019/0370470-8 | D66: 2019-12-09 | F66: MS 6.864/DF | G66: 2000-04-05 | H66: Administrativo - Servidor Público Civil - Sistema Remuneratório e Benefícios | I66: 2006-05-03 | K66: Instituto Nacional do Seguro Social - INSS | L66: Ministério do Planejamento, Orçamento e Gestão | N66: Reajuste 3,17% - Lei 8.880/94 | O66: Dedução de Honorários Contratuais | P66: Alimentar | R66: Não | S66: Não | T66: Não | U66: - | V66: - | W66: Não informada | X66: Não Informada | Y66: Não | AA66: 2019-11-01 | AB66: 11348.13 | AC66: 23939.79 | AD66: 35287.92 | AE66: 10667.25 | AF66: 22503.4 | AG66: 33170.65 | AH66: 680.88 | AI66: 1436.39 | AJ66: 2117.27 | AK66: 0 | AL66: 0 | AM66: 0 | AN66: 33170.65 | AO66: 45 | AP66: 0 | AQ66: 0 | AR66: 0 | AS66: 0 | AU66: 2020-04-02 | AV66: 36048.21 | AW66: 33885.33 | AX66: 2162.88 | AY66: 0 | AZ66: 33885.33 | BA66: 0 | BB66: 0 | BC66: 0 | BD66: 0
B67: 9303 | C67: 2019/0372224-9 | D67: 2019-12-10 | F67: MS 6.019/DF | G67: 1998-10-22 | H67: Administrativo - Servidor Público Civil - Sistema Remuneratório e Benefícios | I67: 2007-12-10 | K67: Instituto Nacional do Seguro Social - INSS | L67: Instituto Nacional do Seguro Social - INSS | N67: Reajuste Salarial - Resíduo de 3,17% | O67: Dedução de Honorários Contratuais | P67: Alimentar | R67: Não | S67: Não | T67: Não | U67: - | V67: - | W67: Não informada | X67: Não Informada | Y67: Não | AA67: 2019-11-01 | AB67: 98.18 | AC67: 407.69 | AD67: 505.87 | AE67: 91.8 | AF67: 381.19 | AG67: 472.99 | AH67: 6.38 | AI67: 26.5 | AJ67: 32.88 | AK67: 0 | AL67: 0 | AM67: 0 | AN67: 472.99 | AO67: 3 | AP67: 0 | AQ67: 0 | AR67: 0 | AS67: 0 | AU67: 2020-04-02 | AV67: 516.76 | AW67: 483.18 | AX67: 33.58 | AY67: 0 | AZ67: 483.18 | BA67: 0 | BB67: 0 | BC67: 0 | BD67: 0
B68: 9304 | C68: 2019/0372225-0 | D68: 2019-12-10 | F68: MS 6.019/DF | G68: 1998-10-22 | H68: Administrativo - Servidor Público Civil - Sistema Remuneratório e Benefícios | I68: 2007-12-10 | K68: Instituto Nacional do Seguro Social - INSS | L68: Instituto Nacional do Seguro Social - INSS | N68: Reajuste Salarial - Resíduo de 3,17% | O68: Dedução de Honorários Contratuais | P68: Alimentar | R68: Não | S68: Não | T68: Não | U68: - | V68: - | W68: Não informada | X68: Não Informada | Y68: Não | AA68: 2019-11-01 | AB68: 9311.19 | AC68: 12399.82 | AD68: 21711.01 | AE68: 8705.97 | AF68: 11593.83 | AG68: 20299.8 | AH68: 605.22 | AI68: 805.99 | AJ68: 1411.21 | AK68: 0 | AL68: 0 | AM68: 0 | AN68: 20299.8 | AO68: 23 | AP68: 0 | AQ68: 0 | AR68: 0 | AS68: 0 | AU68: 2020-04-02 | AV68: 22178.78 | AW68: 20737.17 | AX68: 1441.61 | AY68: 0 | AZ68: 20737.17 | BA68: 0 | BB68: 0 | BC68: 0 | BD68: 0
B69: 9308 | C69: 2019/0372233-8 | D69: 2019-12-10 | F69: MS 6.019/DF | G69: 1998-10-22 | H69: Administrativo - Servidor Público Civil - Sistema Remuneratório e Benefícios | I69: 2007-12-10 | K69: Instituto Nacional do Seguro Social - INSS | L69: Instituto Nacional do Seguro Social - INSS | N69: Reajuste Salarial - Resíduo de 3,17% | O69: Dedução de Honorários Contratuais | P69: Alimentar | R69: Não | S69: Não | T69: Não | U69: - | V69: - | W69: Não informada | X69: Não Informada | Y69: Não | AA69: 2019-11-01 | AB69: 3874.97 | AC69: 5107.17 | AD69: 8982.14 | AE69: 3623.1 | AF69: 4775.21 | AG69: 8398.31 | AH69: 251.87 | AI69: 331.96 | AJ69: 583.83 | AK69: 0 | AL69: 0 | AM69: 0 | AN69: 8398.31 | AO69: 23 | AP69: 0 | AQ69: 0 | AR69: 0 | AS69: 0 | AU69: 2020-04-02 | AV69: 9175.66 | AW69: 8579.26 | AX69: 596.4 | AY69: 0 | AZ69: 8579.26 | BA69: 0 | BB69: 0 | BC69: 0 | BD69: 0
B70: 9310 | C70: 2019/0372240-3 | D70: 2019-12-10 | F70: MS 6.019/DF | G70: 1998-10-22 | H70: Administrativo - Servidor Público Civil - Sistema Remuneratório e Benefícios | I70: 2007-12-10 | K70: Instituto Nacional do Seguro Social - INSS | L70: Instituto Nacional do Seguro Social - INSS | N70: Reajuste Salarial - Resíduo de 3,17% | O70: Dedução de Honorários Contratuais | P70: Alimentar | R70: Não | S70: Não | T70: Não | U70: - | V70: - | W70: Não informada | X70: Não Informada | Y70: Não | AA70: 2019-11-01 | AB70: 2344.29 | AC70: 3106.67 | AD70: 5450.96 | AE70: 2191.92 | AF70: 2904.73 | AG70: 5096.65 | AH70: 152.37 | AI70: 201.94 | AJ70: 354.31 | AK70: 0 | AL70: 0 | AM70: 0 | AN70: 5096.65 | AO70: 23 | AP70: 0 | AQ70: 0 | AR70: 0 | AS70: 0 | AU70: 2020-04-02 | AV70: 5568.4 | AW70: 5206.46 | AX70: 361.94 | AY70: 0 | AZ70: 5206.46 | BA70: 0 | BB70: 0 | BC70: 0 | BD70: 0
B71: 9312 | C71: 2019/0372252-8 | D71: 2019-12-10 | F71: MS 6.019/DF | G71: 1998-10-22 | H71: Administrativo - Servidor Público Civil - Sistema Remuneratório e Benefícios | I71: 2007-12-10 | K71: Instituto Nacional do Seguro Social - INSS | L71: Instituto Nacional do Seguro Social - INSS | N71: Reajuste Salarial - Resíduo de 3,17% | O71: Dedução de Honorários Contratuais | P71: Alimentar | R71: Não | S71: Não | T71: Não | U71: - | V71: - | W71: Não informada | X71: Não Informada | Y71: Não | AA71: 2019-11-01 | AB71: 7911.05 | AC71: 11347.11 | AD71: 19258.16 | AE71: 7396.84 | AF71: 10609.54 | AG71: 18006.38 | AH71: 514.21 | AI71: 737.57 | AJ71: 1251.78 | AK71: 0 | AL71: 0 | AM71: 0 | AN71: 18006.38 | AO71: 23 | AP71: 0 | AQ71: 0 | AR71: 0 | AS71: 0 | AU71: 2020-04-02 | AV71: 19673.08 | AW71: 18394.33 | AX71: 1278.75 | AY71: 0 | AZ71: 18394.33 | BA71: 0 | BB71: 0 | BC71: 0 | BD71: 0
B72: 9314 | C72: 2019/0373724-7 | D72: 2019-12-11 | F72: MS 6.019/DF | G72: 1998-10-22 | H72: Administrativo - Servidor Público Civil - Sistema Remuneratório e Benefícios | I72: 2007-12-10 | K72: Instituto Nacional do Seguro Social - INSS | L72: Instituto Nacional do Seguro Social - INSS | N72: Reajuste Salarial - Resíduo de 3,17% | O72: Dedução de Honorários Contratuais | P72: Alimentar | R72: Não | S72: Não | T72: Não | U72: - | V72: - | W72: Não informada | X72: Não Informada | Y72: Não | AA72: 2019-11-01 | AB72: 6558.94 | AC72: 9456.99 | AD72: 16015.93 | AE72: 6132.61 | AF72: 8842.29 | AG72: 14974.9 | AH72: 426.33 | AI72: 614.7 | AJ72: 1041.03 | AK72: 0 | AL72: 0 | AM72: 0 | AN72: 14974.9 | AO72: 23 | AP72: 0 | AQ72: 0 | AR72: 0 | AS72: 0 | AU72: 2020-04-02 | AV72: 16361 | AW72: 15297.55 | AX72: 1063.45 | AY72: 0 | AZ72: 15297.55 | BA72: 0 | BB72: 0 | BC72: 0 | BD72: 0
B73: 9316 | C73: 2019/0373731-2 | D73: 2019-12-11 | F73: MS 6.019/DF | G73: 1998-10-22 | H73: Administrativo - Servidor Público Civil - Sistema Remuneratório e Benefícios | I73: 2007-12-10 | K73: Instituto Nacional do Seguro Social - INSS | L73: Instituto Nacional do Seguro Social - INSS | N73: Reajuste Salarial - Resíduo de 3,17% | O73: Dedução de Honorários Contratuais | P73: Alimentar | R73: Não | S73: Não | T73: Não | U73: - | V73: - | W73: Não informada | X73: Não Informada | Y73: Não | AA73: 2019-11-01 | AB73: 3648.88 | AC73: 4892.25 | AD73: 8541.13 | AE73: 3411.71 | AF73: 4574.25 | AG73: 7985.96 | AH73: 237.17 | AI73: 318 | AJ73: 555.17 | AK73: 0 | AL73: 0 | AM73: 0 | AN73: 7985.96 | AO73: 23 | AP73: 0 | AQ73: 0 | AR73: 0 | AS73: 0 | AU73: 2020-04-02 | AV73: 8725.15 | AW73: 8158.02 | AX73: 567.13 | AY73: 0 | AZ73: 8158.02 | BA73: 0 | BB73: 0 | BC73: 0 | BD73: 0
B74: 9318 | C74: 2019/0373737-3 | D74: 2019-12-11 | F74: MS 6.019/DF | G74: 1998-10-22 | H74: Administrativo - Servidor Público Civil - Sistema Remuneratório e Benefícios | I74: 2007-12-10 | K74: Instituto Nacional do Seguro Social - INSS | L74: Instituto Nacional do Seguro Social - INSS | N74: Reajuste Salarial - Resíduo de 3,17% | O74: Dedução de Honorários Contratuais | P74: Alimentar | R74: Não | S74: Não | T74: Não | U74: - | V74: - | W74: Não informada | X74: Não Informada | Y74: Não | AA74: 2019-11-01 | AB74: 6269.51 | AC74: 9093.8 | AD74: 15363.31 | AE74: 5862 | AF74: 8502.7 | AG74: 14364.7 | AH74: 407.51 | AI74: 591.1 | AJ74: 998.61 | AK74: 0 | AL74: 0 | AM74: 0 | AN74: 14364.7 | AO74: 23 | AP74: 0 | AQ74: 0 | AR74: 0 | AS74: 0 | AU74: 2020-04-02 | AV74: 15694.32 | AW74: 14674.2 | AX74: 1020.12 | AY74: 0 | AZ74: 14674.2 | BA74: 0 | BB74: 0 | BC74: 0 | BD74: 0
B75: 9319 | C75: 2019/0373743-7 | D75: 2019-12-11 | F75: MS 6.019/DF | G75: 1998-10-22 | H75: Administrativo - Servidor Público Civil - Sistema Remuneratório e Benefícios | I75: 2007-12-10 | K75: Instituto Nacional do Seguro Social - INSS | L75: Instituto Nacional do Seguro Social - INSS | N75: Reajuste Salarial - Resíduo de 3,17% | O75: Dedução de Honorários Contratuais | P75: Alimentar | R75: Não | S75: Não | T75: Não | U75: - | V75: - | W75: Não informada | X75: Não Informada | Y75: Não | AA75: 2019-11-01 | AB75: 9630.13 | AC75: 12796.6 | AD75: 22426.73 | AE75: 9004.18 | AF75: 11964.82 | AG75: 20969 | AH75: 625.95 | AI75: 831.78 | AJ75: 1457.73 | AK75: 0 | AL75: 0 | AM75: 0 | AN75: 20969 | AO75: 23 | AP75: 0 | AQ75: 0 | AR75: 0 | AS75: 0 | AU75: 2020-04-02 | AV75: 22909.92 | AW75: 21420.79 | AX75: 1489.13 | AY75: 0 | AZ75: 21420.79 | BA75: 0 | BB75: 0 | BC75: 0 | BD75: 0
B76: 9320 | C76: 2019/0373752-6 | D76: 2019-12-11 | F76: MS 6.019/DF | G76: 1998-10-22 | H76: Administrativo - Servidor Público Civil - Sistema Remuneratório e Benefícios | I76: 2007-12-10 | K76: Instituto Nacional do Seguro Social - INSS | L76: Instituto Nacional do Seguro Social - INSS | N76: Reajuste Salarial - Resíduo de 3,17% | O76: Dedução de Honorários Contratuais | P76: Alimentar | R76: Não | S76: Não | T76: Não | U76: - | V76: - | W76: Não informada | X76: Não Informada | Y76: Não | AA76: 2019-11-01 | AB76: 8237.1 | AC76: 11084.61 | AD76: 19321.71 | AE76: 7701.69 | AF76: 10364.11 | AG76: 18065.8 | AH76: 535.41 | AI76: 720.5 | AJ76: 1255.91 | AK76: 0 | AL76: 0 | AM76: 0 | AN76: 18065.8 | AO76: 23 | AP76: 0 | AQ76: 0 | AR76: 0 | AS76: 0 | AU76: 2020-04-02 | AV76: 19738 | AW76: 18455.04 | AX76: 1282.96 | AY76: 0 | AZ76: 18455.04 | BA76: 0 | BB76: 0 | BC76: 0 | BD76: 0
B77: 9321 | C77: 2019/0373754-0 | D77: 2019-12-11 | F77: MS 6.019/DF | G77: 1998-10-22 | H77: Administrativo - Servidor Público Civil - Sistema Remuneratório e Benefícios | I77: 2007-12-10 | K77: Instituto Nacional do Seguro Social - INSS | L77: Instituto Nacional do Seguro Social - INSS | N77: Reajuste Salarial - Resíduo de 3,17% | O77: Dedução de Honorários Contratuais | P77: Alimentar | R77: Não | S77: Não | T77: Não | U77: - | V77: - | W77: Não informada | X77: Não Informada | Y77: Não | AA77: 2019-11-01 | AB77: 4223.55 | AC77: 5862.69 | AD77: 10086.24 | AE77: 3949.02 | AF77: 5481.62 | AG77: 9430.64 | AH77: 274.53 | AI77: 381.07 | AJ77: 655.6 | AK77: 0 | AL77: 0 | AM77: 0 | AN77: 9430.64 | AO77: 23 | AP77: 0 | AQ77: 0 | AR77: 0 | AS77: 0 | AU77: 2020-04-02 | AV77: 10303.55 | AW77: 9633.83 | AX77: 669.72 | AY77: 0 | AZ77: 9633.83 | BA77: 0 | BB77: 0 | BC77: 0 | BD77: 0
B78: 9328 | C78: 2019/0373792-0 | D78: 2019-12-11 | F78: MS 6.019/DF | G78: 1998-10-22 | H78: Administrativo - Servidor Público Civil - Sistema Remuneratório e Benefícios | I78: 2007-12-10 | K78: Instituto Nacional do Seguro Social - INSS | L78: Instituto Nacional do Seguro Social - INSS | N78: Reajuste Salarial - Resíduo de 3,17% | O78: Dedução de Honorários Contratuais | P78: Alimentar | R78: Não | S78: Não | T78: Não | U78: - | V78: - | W78: Não informada | X78: Não Informada | Y78: Não | AA78: 2019-11-01 | AB78: 7436.72 | AC78: 9740.69 | AD78: 17177.41 | AE78: 6953.34 | AF78: 9107.54 | AG78: 16060.88 | AH78: 483.38 | AI78: 633.15 | AJ78: 1116.53 | AK78: 0 | AL78: 0 | AM78: 0 | AN78: 16060.88 | AO78: 23 | AP78: 0 | AQ78: 0 | AR78: 0 | AS78: 0 | AU78: 2020-04-02 | AV78: 17547.5 | AW78: 16406.92 | AX78: 1140.58 | AY78: 0 | AZ78: 16406.92 | BA78: 0 | BB78: 0 | BC78: 0 | BD78: 0
B79: 9329 | C79: 2019/0373794-3 | D79: 2019-12-11 | F79: MS 6.019/DF | G79: 1998-10-22 | H79: Administrativo - Servidor Público Civil - Sistema Remuneratório e Benefícios | I79: 2007-12-10 | K79: Instituto Nacional do Seguro Social - INSS | L79: Instituto Nacional do Seguro Social - INSS | N79: Reajuste Salarial - Resíduo de 3,17% | O79: Dedução de Honorários Contratuais | P79: Alimentar | R79: Não | S79: Não | T79: Não | U79: - | V79: - | W79: Não informada | X79: Não Informada | Y79: Não | AA79: 2019-11-01 | AB79: 7564.06 | AC79: 10142.82 | AD79: 17706.88 | AE79: 7072.4 | AF79: 9483.54 | AG79: 16555.94 | AH79: 491.66 | AI79: 659.28 | AJ79: 1150.94 | AK79: 0 | AL79: 0 | AM79: 0 | AN79: 16555.94 | AO79: 23 | AP79: 0 | AQ79: 0 | AR79: 0 | AS79: 0 | AU79: 2020-04-02 | AV79: 18088.38 | AW79: 16912.65 | AX79: 1175.73 | AY79: 0 | AZ79: 16912.65 | BA79: 0 | BB79: 0 | BC79: 0 | BD79: 0
B80: 9331 | C80: 2019/0373801-8 | D80: 2019-12-11 | F80: MS 6.019/DF | G80: 1998-10-22 | H80: Administrativo - Servidor Público Civil - Sistema Remuneratório e Benefícios | I80: 2007-12-10 | K80: Instituto Nacional do Seguro Social - INSS | L80: Instituto Nacional do Seguro Social - INSS | N80: Reajuste Salarial - Resíduo de 3,17% | O80: Dedução de Honorários Contratuais | P80: Alimentar | R80: Não | S80: Não | T80: Não | U80: - | V80: - | W80: Não informada | X80: Não Informada | Y80: Não | AA80: 2019-11-01 | AB80: 1516.54 | AC80: 2032.23 | AD80: 3548.77 | AE80: 1417.97 | AF80: 1900.13 | AG80: 3318.1 | AH80: 98.57 | AI80: 132.1 | AJ80: 230.67 | AK80: 0 | AL80: 0 | AM80: 0 | AN80: 3318.1 | AO80: 23 | AP80: 0 | AQ80: 0 | AR80: 0 | AS80: 0 | AU80: 2020-04-02 | AV80: 3625.23 | AW80: 3389.6 | AX80: 235.63 | AY80: 0 | AZ80: 3389.6 | BA80: 0 | BB80: 0 | BC80: 0 | BD80: 0
B81: 9333 | C81: 2019/0373806-7 | D81: 2019-12-11 | F81: MS 6.019/DF | G81: 1998-10-22 | H81: Administrativo - Servidor Público Civil - Sistema Remuneratório e Benefícios | I81: 2007-12-10 | K81: Instituto Nacional do Seguro Social - INSS | L81: Instituto Nacional do Seguro Social - INSS | N81: Reajuste Salarial - Resíduo de 3,17% | O81: Dedução de Honorários Contratuais | P81: Alimentar | R81: Não | S81: Não | T81: Não | U81: - | V81: - | W81: Não informada | X81: Não Informada | Y81: Não | AA81: 2019-11-01 | AB81: 6845.41 | AC81: 9450.72 | AD81: 16296.13 | AE81: 6400.46 | AF81: 8836.43 | AG81: 15236.89 | AH81: 444.95 | AI81: 614.29 | AJ81: 1059.24 | AK81: 0 | AL81: 0 | AM81: 0 | AN81: 15236.89 | AO81: 23 | AP81: 0 | AQ81: 0 | AR81: 0 | AS81: 0 | AU81: 2020-04-02 | AV81: 16647.23 | AW81: 15565.17 | AX81: 1082.06 | AY81: 0 | AZ81: 15565.17 | BA81: 0 | BB81: 0 | BC81: 0 | BD81: 0
B82: 9334 | C82: 2019/0373809-2 | D82: 2019-12-11 | F82: MS 6.019/DF | G82: 1998-10-22 | H82: Administrativo - Servidor Público Civil - Sistema Remuneratório e Benefícios | I82: 2007-12-10 | K82: Instituto Nacional do Seguro Social - INSS | L82: Instituto Nacional do Seguro Social - INSS | N82: Reajuste Salarial - Resíduo de 3,17% | O82: Dedução de Honorários Contratuais | P82: Alimentar | R82: Não | S82: Não | T82: Não | U82: - | V82: - | W82: Não informada | X82: Não Informada | Y82: Não | AA82: 2019-11-01 | AB82: 2859.35 | AC82: 3872.53 | AD82: 6731.88 | AE82: 2673.5 | AF82: 3620.81 | AG82: 6294.31 | AH82: 185.85 | AI82: 251.72 | AJ82: 437.57 | AK82: 0 | AL82: 0 | AM82: 0 | AN82: 6294.31 | AO82: 19 | AP82: 0 | AQ82: 0 | AR82: 0 | AS82: 0 | AU82: 2020-04-02 | AV82: 6876.92 | AW82: 6429.93 | AX82: 446.99 | AY82: 0 | AZ82: 6429.93 | BA82: 0 | BB82: 0 | BC82: 0 | BD82: 0
B83: 9335 | C83: 2019/0373873-8 | D83: 2019-12-11 | F83: MS 6.019/DF | G83: 1998-10-22 | H83: Administrativo - Servidor Público Civil - Sistema Remuneratório e Benefícios | I83: 2007-12-10 | K83: Instituto Nacional do Seguro Social - INSS | L83: Instituto Nacional do Seguro Social - INSS | N83: Reajuste Salarial - Resíduo de 3,17% | O83: Dedução de Honorários Contratuais | P83: Alimentar | R83: Não | S83: Não | T83: Não | U83: - | V83: - | W83: Não informada | X83: Não Informada | Y83: Não | AA83: 2019-11-01 | AB83: 4774.71 | AC83: 6271.57 | AD83: 11046.28 | AE83: 4464.36 | AF83: 5863.92 | AG83: 10328.28 | AH83: 310.35 | AI83: 407.65 | AJ83: 718 | AK83: 0 | AL83: 0 | AM83: 0 | AN83: 10328.28 | AO83: 23 | AP83: 0 | AQ83: 0 | AR83: 0 | AS83: 0 | AU83: 2020-04-02 | AV83: 11284.27 | AW83: 10550.81 | AX83: 733.46 | AY83: 0 | AZ83: 10550.81 | BA83: 0 | BB83: 0 | BC83: 0 | BD83: 0
B84: 9338 | C84: 2019/0373885-2 | D84: 2019-12-11 | F84: MS 6.019/DF | G84: 1998-10-22 | H84: Administrativo - Servidor Público Civil - Sistema Remuneratório e Benefícios | I84: 2007-12-10 | K84: Instituto Nacional do Seguro Social - INSS | L84: Instituto Nacional do Seguro Social - INSS | N84: Reajuste Salarial - Resíduo de 3,17% | O84: Dedução de Honorários Contratuais | P84: Alimentar | R84: Não | S84: Não | T84: Não | U84: - | V84: - | W84: Não informada | X84: Não Informada | Y84: Não | AA84: 2019-11-01 | AB84: 2698.66 | AC84: 3507.29 | AD84: 6205.95 | AE84: 2523.25 | AF84: 3279.32 | AG84: 5802.57 | AH84: 175.41 | AI84: 227.97 | AJ84: 403.38 | AK84: 0 | AL84: 0 | AM84: 0 | AN84: 5802.57 | AO84: 23 | AP84: 0 | AQ84: 0 | AR84: 0 | AS84: 0 | AU84: 2020-04-02 | AV84: 6339.66 | AW84: 5927.59 | AX84: 412.07 | AY84: 0 | AZ84: 5927.59 | BA84: 0 | BB84: 0 | BC84: 0 | BD84: 0
B85: 9341 | C85: 2019/0373896-5 | D85: 2019-12-11 | F85: MS 6.019/DF | G85: 1998-10-22 | H85: Administrativo - Servidor Público Civil - Sistema Remuneratório e Benefícios | I85: 2007-12-10 | K85: Instituto Nacional do Seguro Social - INSS | L85: Instituto Nacional do Seguro Social - INSS | N85: Reajuste Salarial - Resíduo de 3,17% | O85: Dedução de Honorários Contratuais | P85: Alimentar | R85: Não | S85: Não | T85: Não | U85: - | V85: - | W85: Não informada | X85: Não Informada | Y85: Não | AA85: 2019-11-01 | AB85: 3174.34 | AC85: 6528.52 | AD85: 9702.86 | AE85: 2968.01 | AF85: 6104.17 | AG85: 9072.18 | AH85: 206.33 | AI85: 424.35 | AJ85: 630.68 | AK85: 0 | AL85: 0 | AM85: 0 | AN85: 9072.18 | AO85: 23 | AP85: 0 | AQ85: 0 | AR85: 0 | AS85: 0 | AU85: 2020-04-02 | AV85: 9911.91 | AW85: 9267.65 | AX85: 644.26 | AY85: 0 | AZ85: 9267.65 | BA85: 0 | BB85: 0 | BC85: 0 | BD85: 0
B86: 9343 | C86: 2019/0373904-1 | D86: 2019-12-11 | F86: MS 6.019/DF | G86: 1998-10-22 | H86: Administrativo - Servidor Público Civil - Sistema Remuneratório e Benefícios | I86: 2007-12-10 | K86: Instituto Nacional do Seguro Social - INSS | L86: Instituto Nacional do Seguro Social - INSS | N86: Reajuste Salarial - Resíduo de 3,17% | O86: Dedução de Honorários Contratuais | P86: Alimentar | R86: Não | S86: Não | T86: Não | U86: - | V86: - | W86: Não informada | X86: Não Informada | Y86: Não | AA86: 2019-11-01 | AB86: 7769.24 | AC86: 11188.11 | AD86: 18957.35 | AE86: 7264.24 | AF86: 10460.89 | AG86: 17725.13 | AH86: 505 | AI86: 727.22 | AJ86: 1232.22 | AK86: 0 | AL86: 0 | AM86: 0 | AN86: 17725.13 | AO86: 23 | AP86: 0 | AQ86: 0 | AR86: 0 | AS86: 0 | AU86: 2020-04-02 | AV86: 19365.79 | AW86: 18107.03 | AX86: 1258.76 | AY86: 0 | AZ86: 18107.03 | BA86: 0 | BB86: 0 | BC86: 0 | BD86: 0
B87: 9345 | C87: 2019/0373928-0 | D87: 2019-12-11 | F87: MS 6.019/DF | G87: 1998-10-22 | H87: Administrativo - Servidor Público Civil - Sistema Remuneratório e Benefícios | I87: 2007-12-10 | K87: Instituto Nacional do Seguro Social - INSS | L87: Instituto Nacional do Seguro Social - INSS | N87: Reajuste Salarial - Resíduo de 3,17% | O87: Dedução de Honorários Contratuais | P87: Alimentar | R87: Não | S87: Não | T87: Não | U87: - | V87: - | W87: Não informada | X87: Não Informada | Y87: Não | AA87: 2019-11-01 | AB87: 3277.09 | AC87: 4652.93 | AD87: 7930.02 | AE87: 3064.08 | AF87: 4350.49 | AG87: 7414.57 | AH87: 213.01 | AI87: 302.44 | AJ87: 515.45 | AK87: 0 | AL87: 0 | AM87: 0 | AN87: 7414.57 | AO87: 23 | AP87: 0 | AQ87: 0 | AR87: 0 | AS87: 0 | AU87: 2020-04-02 | AV87: 8100.87 | AW87: 7574.32 | AX87: 526.55 | AY87: 0 | AZ87: 7574.32 | BA87: 0 | BB87: 0 | BC87: 0 | BD87: 0
B88: 9346 | C88: 2019/0373935-6 | D88: 2019-12-11 | F88: MS 6.019/DF | G88: 1998-10-22 | H88: Administrativo - Servidor Público Civil - Sistema Remuneratório e Benefícios | I88: 2007-12-10 | K88: Instituto Nacional do Seguro Social - INSS | L88: Instituto Nacional do Seguro Social - INSS | N88: Reajuste Salarial - Resíduo de 3,17% | O88: Dedução de Honorários Contratuais | P88: Alimentar | R88: Não | S88: Não | T88: Não | U88: - | V88: - | W88: Não informada | X88: Não Informada | Y88: Não | AA88: 2019-11-01 | AB88: 7417.71 | AC88: 9911.7 | AD88: 17329.41 | AE88: 6935.56 | AF88: 9267.44 | AG88: 16203 | AH88: 482.15 | AI88: 644.26 | AJ88: 1126.41 | AK88: 0 | AL88: 0 | AM88: 0 | AN88: 16203 | AO88: 23 | AP88: 0 | AQ88: 0 | AR88: 0 | AS88: 0 | AU88: 2020-04-02 | AV88: 17702.78 | AW88: 16552.11 | AX88: 1150.67 | AY88: 0 | AZ88: 16552.11 | BA88: 0 | BB88: 0 | BC88: 0 | BD88: 0
B89: 9347 | C89: 2019/0373953-4 | D89: 2019-12-11 | F89: MS 6.019/DF | G89: 1998-10-22 | H89: Administrativo - Servidor Público Civil - Sistema Remuneratório e Benefícios | I89: 2007-12-10 | K89: Instituto Nacional do Seguro Social - INSS | L89: Instituto Nacional do Seguro Social - INSS | N89: Reajuste Salarial - Resíduo de 3,17% | O89: Dedução de Honorários Contratuais | P89: Alimentar | R89: Não | S89: Não | T89: Não | U89: - | V89: - | W89: Não informada | X89: Não Informada | Y89: Não | AA89: 2019-11-01 | AB89: 4337.7 | AC89: 5932.01 | AD89: 10269.71 | AE89: 4055.75 | AF89: 5546.43 | AG89: 9602.18 | AH89: 281.95 | AI89: 385.58 | AJ89: 667.53 | AK89: 0 | AL89: 0 | AM89: 0 | AN89: 9602.18 | AO89: 23 | AP89: 0 | AQ89: 0 | AR89: 0 | AS89: 0 | AU89: 2020-04-02 | AV89: 10490.97 | AW89: 9809.06 | AX89: 681.91 | AY89: 0 | AZ89: 9809.06 | BA89: 0 | BB89: 0 | BC89: 0 | BD89: 0
B90: 9348 | C90: 2019/0373957-1 | D90: 2019-12-11 | F90: MS 6.019/DF | G90: 1998-10-22 | H90: Administrativo - Servidor Público Civil - Sistema Remuneratório e Benefícios | I90: 2007-12-10 | K90: Instituto Nacional do Seguro Social - INSS | L90: Instituto Nacional do Seguro Social - INSS | N90: Reajuste Salarial - Resíduo de 3,17% | O90: Dedução de Honorários Contratuais | P90: Alimentar | R90: Não | S90: Não | T90: Não | U90: - | V90: - | W90: Não informada | X90: Não Informada | Y90: Não | AA90: 2019-11-01 | AB90: 8998.95 | AC90: 12052.43 | AD90: 21051.38 | AE90: 8414.02 | AF90: 11269.03 | AG90: 19683.05 | AH90: 584.93 | AI90: 783.4 | AJ90: 1368.33 | AK90: 0 | AL90: 0 | AM90: 0 | AN90: 19683.05 | AO90: 23 | AP90: 0 | AQ90: 0 | AR90: 0 | AS90: 0 | AU90: 2020-04-02 | AV90: 21504.94 | AW90: 20107.13 | AX90: 1397.81 | AY90: 0 | AZ90: 20107.13 | BA90: 0 | BB90: 0 | BC90: 0 | BD90: 0
B91: 9351 | C91: 2019/0375266-8 | D91: 2019-12-12 | F91: MS 6.019/DF | G91: 1998-10-22 | H91: Administrativo - Servidor Público Civil - Sistema Remuneratório e Benefícios | I91: 2007-12-10 | K91: Instituto Nacional do Seguro Social - INSS | L91: Instituto Nacional do Seguro Social - INSS | N91: Reajuste Salarial - Resíduo de 3,17% | O91: Dedução de Honorários Contratuais | P91: Alimentar | R91: Não | S91: Não | T91: Não | U91: - | V91: - | W91: Não informada | X91: Não Informada | Y91: Não | AA91: 2019-11-01 | AB91: 3476.5 | AC91: 4766.78 | AD91: 8243.28 | AE91: 3250.53 | AF91: 4456.94 | AG91: 7707.47 | AH91: 225.97 | AI91: 309.84 | AJ91: 535.81 | AK91: 0 | AL91: 0 | AM91: 0 | AN91: 7707.47 | AO91: 23 | AP91: 0 | AQ91: 0 | AR91: 0 | AS91: 0 | AU91: 2020-04-02 | AV91: 8420.88 | AW91: 7873.53 | AX91: 547.35 | AY91: 0 | AZ91: 7873.53 | BA91: 0 | BB91: 0 | BC91: 0 | BD91: 0
B92: 9354 | C92: 2019/0375288-3 | D92: 2019-12-12 | F92: MS 6.019/DF | G92: 1998-10-22 | H92: Administrativo - Servidor Público Civil - Sistema Remuneratório e Benefícios | I92: 2007-12-10 | K92: Instituto Nacional do Seguro Social - INSS | L92: Instituto Nacional do Seguro Social - INSS | N92: Reajuste Salarial - Resíduo de 3,17% | O92: Dedução de Honorários Contratuais | P92: Alimentar | R92: Não | S92: Não | T92: Não | U92: - | V92: - | W92: Não informada | X92: Não Informada | Y92: Não | AA92: 2019-11-01 | AB92: 2037.78 | AC92: 2890.42 | AD92: 4928.2 | AE92: 1905.33 | AF92: 2702.54 | AG92: 4607.87 | AH92: 132.45 | AI92: 187.88 | AJ92: 320.33 | AK92: 0 | AL92: 0 | AM92: 0 | AN92: 4607.87 | AO92: 23 | AP92: 0 | AQ92: 0 | AR92: 0 | AS92: 0 | AU92: 2020-04-02 | AV92: 5034.38 | AW92: 4707.15 | AX92: 327.23 | AY92: 0 | AZ92: 4707.15 | BA92: 0 | BB92: 0 | BC92: 0 | BD92: 0
B93: 9356 | C93: 2019/0375295-9 | D93: 2019-12-12 | F93: MS 6.019/DF | G93: 1998-10-22 | H93: Administrativo - Servidor Público Civil - Sistema Remuneratório e Benefícios | I93: 2007-12-10 | K93: Instituto Nacional do Seguro Social - INSS | L93: Instituto Nacional do Seguro Social - INSS | N93: Reajuste Salarial - Resíduo de 3,17% | O93: Dedução de Honorários Contratuais | P93: Alimentar | R93: Não | S93: Não | T93: Não | U93: - | V93: - | W93: Não informada | X93: Não Informada | Y93: Não | AA93: 2019-11-01 | AB93: 4819.5 | AC93: 6357.83 | AD93: 11177.33 | AE93: 4506.24 | AF93: 5944.57 | AG93: 10450.81 | AH93: 313.26 | AI93: 413.26 | AJ93: 726.52 | AK93: 0 | AL93: 0 | AM93: 0 | AN93: 10450.81 | AO93: 23 | AP93: 0 | AQ93: 0 | AR93: 0 | AS93: 0 | AU93: 2020-04-02 | AV93: 11418.15 | AW93: 10675.98 | AX93: 742.17 | AY93: 0 | AZ93: 10675.98 | BA93: 0 | BB93: 0 | BC93: 0 | BD93: 0
B94: 9357 | C94: 2019/0375299-6 | D94: 2019-12-12 | F94: MS 6.019/DF | G94: 1998-10-22 | H94: Administrativo - Servidor Público Civil - Sistema Remuneratório e Benefícios | I94: 2007-12-10 | K94: Instituto Nacional do Seguro Social - INSS | L94: Instituto Nacional do Seguro Social - INSS | N94: Reajuste Salarial - Resíduo de 3,17% | O94: Dedução de Honorários Contratuais | P94: Alimentar | R94: Não | S94: Não | T94: Não | U94: - | V94: - | W94: Não informada | X94: Não Informada | Y94: Não | AA94: 2019-11-01 | AB94: 1182.54 | AC94: 1620.08 | AD94: 2802.62 | AE94: 1105.68 | AF94: 1514.77 | AG94: 2620.45 | AH94: 76.86 | AI94: 105.31 | AJ94: 182.17 | AK94: 0 | AL94: 0 | AM94: 0 | AN94: 2620.45 | AO94: 23 | AP94: 0 | AQ94: 0 | AR94: 0 | AS94: 0 | AU94: 2020-04-02 | AV94: 2863 | AW94: 2676.91 | AX94: 186.09 | AY94: 0 | AZ94: 2676.91 | BA94: 0 | BB94: 0 | BC94: 0 | BD94: 0
B95: 9358 | C95: 2019/0375304-7 | D95: 2019-12-12 | F95: MS 6.019/DF | G95: 1998-10-22 | H95: Administrativo - Servidor Público Civil - Sistema Remuneratório e Benefícios | I95: 2007-12-10 | K95: Instituto Nacional do Seguro Social - INSS | L95: Instituto Nacional do Seguro Social - INSS | N95: Reajuste Salarial - Resíduo de 3,17% | O95: Dedução de Honorários Contratuais | P95: Alimentar | R95: Não | S95: Não | T95: Não | U95: - | V95: - | W95: Não informada | X95: Não Informada | Y95: Não | AA95: 2019-11-01 | AB95: 8801.16 | AC95: 11678.16 | AD95: 20479.32 | AE95: 8229.09 | AF95: 10919.08 | AG95: 19148.17 | AH95: 572.07 | AI95: 759.08 | AJ95: 1331.15 | AK95: 0 | AL95: 0 | AM95: 0 | AN95: 19148.17 | AO95: 23 | AP95: 0 | AQ95: 0 | AR95: 0 | AS95: 0 | AU95: 2020-04-02 | AV95: 20920.55 | AW95: 19560.72 | AX95: 1359.83 | AY95: 0 | AZ95: 19560.72 | BA95: 0 | BB95: 0 | BC95: 0 | BD95: 0
B96: 9359 | C96: 2019/0375307-2 | D96: 2019-12-12 | F96: MS 6.019/DF | G96: 1998-10-22 | H96: Administrativo - Servidor Público Civil - Sistema Remuneratório e Benefícios | I96: 2007-12-10 | K96: Instituto Nacional do Seguro Social - INSS | L96: Instituto Nacional do Seguro Social - INSS | N96: Reajuste Salarial - Resíduo de 3,17% | O96: Dedução de Honorários Contratuais | P96: Alimentar | R96: Não | S96: Não | T96: Não | U96: - | V96: - | W96: Não informada | X96: Não Informada | Y96: Não | AA96: 2019-11-01 | AB96: 3207.81 | AC96: 4688.34 | AD96: 7896.15 | AE96: 2999.31 | AF96: 4383.6 | AG96: 7382.91 | AH96: 208.5 | AI96: 304.74 | AJ96: 513.24 | AK96: 0 | AL96: 0 | AM96: 0 | AN96: 7382.91 | AO96: 23 | AP96: 0 | AQ96: 0 | AR96: 0 | AS96: 0 | AU96: 2020-04-02 | AV96: 8066.27 | AW96: 7541.98 | AX96: 524.29 | AY96: 0 | AZ96: 7541.98 | BA96: 0 | BB96: 0 | BC96: 0 | BD96: 0
B97: 9360 | C97: 2019/0375309-6 | D97: 2019-12-12 | F97: MS 6.019/DF | G97: 1998-10-22 | H97: Administrativo - Servidor Público Civil - Sistema Remuneratório e Benefícios | I97: 2007-12-10 | K97: Instituto Nacional do Seguro Social - INSS | L97: Instituto Nacional do Seguro Social - INSS | N97: Reajuste Salarial - Resíduo de 3,17% | O97: Dedução de Honorários Contratuais | P97: Alimentar | R97: Não | S97: Não | T97: Não | U97: - | V97: - | W97: Não informada | X97: Não Informada | Y97: Não | AA97: 2019-11-01 | AB97: 1182.54 | AC97: 1620.08 | AD97: 2802.62 | AE97: 1105.68 | AF97: 1514.77 | AG97: 2620.45 | AH97: 76.86 | AI97: 105.31 | AJ97: 182.17 | AK97: 0 | AL97: 0 | AM97: 0 | AN97: 2620.45 | AO97: 23 | AP97: 0 | AQ97: 0 | AR97: 0 | AS97: 0 | AU97: 2020-04-02 | AV97: 2863 | AW97: 2676.91 | AX97: 186.09 | AY97: 0 | AZ97: 2676.91 | BA97: 0 | BB97: 0 | BC97: 0 | BD97: 0
B98: 9361 | C98: 2019/0375313-6 | D98: 2019-12-12 | F98: MS 6.019/DF | G98: 1998-10-22 | H98: Administrativo - Servidor Público Civil - Sistema Remuneratório e Benefícios | I98: 2007-12-10 | K98: Instituto Nacional do Seguro Social - INSS | L98: Instituto Nacional do Seguro Social - INSS | N98: Reajuste Salarial - Resíduo de 3,17% | O98: Dedução de Honorários Contratuais | P98: Alimentar | R98: Não | S98: Não | T98: Não | U98: - | V98: - | W98: Não informada | X98: Não Informada | Y98: Não | AA98: 2019-11-01 | AB98: 3644.85 | AC98: 4888.27 | AD98: 8533.12 | AE98: 3407.94 | AF98: 4570.53 | AG98: 7978.47 | AH98: 236.91 | AI98: 317.74 | AJ98: 554.65 | AK98: 0 | AL98: 0 | AM98: 0 | AN98: 7978.47 | AO98: 23 | AP98: 0 | AQ98: 0 | AR98: 0 | AS98: 0 | AU98: 2020-04-02 | AV98: 8716.97 | AW98: 8150.37 | AX98: 566.6 | AY98: 0 | AZ98: 8150.37 | BA98: 0 | BB98: 0 | BC98: 0 | BD98: 0
B99: 9362 | C99: 2019/0375316-1 | D99: 2019-12-12 | F99: MS 6.019/DF | G99: 1998-10-22 | H99: Administrativo - Servidor Público Civil - Sistema Remuneratório e Benefícios | I99: 2007-12-10 | K99: Instituto Nacional do Seguro Social - INSS | L99: Instituto Nacional do Seguro Social - INSS | N99: Reajuste Salarial - Resíduo de 3,17% | O99: Dedução de Honorários Contratuais | P99: Alimentar | R99: Não | S99: Não | T99: Não | U99: - | V99: - | W99: Não informada | X99: Não Informada | Y99: Não | AA99: 2019-11-01 | AB99: 3277.09 | AC99: 4652.93 | AD99: 7930.02 | AE99: 3064.08 | AF99: 4350.49 | AG99: 7414.57 | AH99: 213.01 | AI99: 302.44 | AJ99: 515.45 | AK99: 0 | AL99: 0 | AM99: 0 | AN99: 7414.57 | AO99: 23 | AP99: 0 | AQ99: 0 | AR99: 0 | AS99: 0 | AU99: 2020-04-02 | AV99: 8100.87 | AW99: 7574.32 | AX99: 526.55 | AY99: 0 | AZ99: 7574.32 | BA99: 0 | BB99: 0 | BC99: 0 | BD99: 0
B100: 9365 | C100: 2019/0376403-0 | D100: 2019-12-13 | F100: MS 6.019/DF | G100: 1998-10-22 | H100: Administrativo - Servidor Público Civil - Sistema Remuneratório e Benefícios | I100: 2007-12-10 | K100: Instituto Nacional do Seguro Social - INSS | L100: Instituto Nacional do Seguro Social - INSS | N100: Reajuste Salarial - Resíduo de 3,17% | O100: Dedução de Honorários Contratuais | P100: Alimentar | R100: Não | S100: Não | T100: Não | U100: - | V100: - | W100: Não informada | X100: Não Informada | Y100: Não | AA100: 2019-11-01 | AB100: 1980.89 | AC100: 2836.62 | AD100: 4817.51 | AE100: 1852.14 | AF100: 2652.24 | AG100: 4504.38 | AH100: 128.75 | AI100: 184.38 | AJ100: 313.13 | AK100: 0 | AL100: 0 | AM100: 0 | AN100: 4504.38 | AO100: 23 | AP100: 0 | AQ100: 0 | AR100: 0 | AS100: 0 | AU100: 2020-04-02 | AV100: 4921.3 | AW100: 4601.43 | AX100: 319.87 | AY100: 0 | AZ100: 4601.43 | BA100: 0 | BB100: 0 | BC100: 0 | BD100: 0
B101: 9370 | C101: 2019/0376426-8 | D101: 2019-12-13 | F101: MS 6.019/DF | G101: 1998-10-22 | H101: Administrativo - Servidor Público Civil - Sistema Remuneratório e Benefícios | I101: 2007-12-10 | K101: Instituto Nacional do Seguro Social - INSS | L101: Instituto Nacional do Seguro Social - INSS | N101: Reajuste Salarial - Resíduo de 3,17% | O101: Dedução de Honorários Contratuais | P101: Alimentar | R101: Não | S101: Não | T101: Não | U101: - | V101: - | W101: Não informada | X101: Não Informada | Y101: Não | AA101: 2019-11-01 | AB101: 7297.76 | AC101: 9784.51 | AD101: 17082.27 | AE101: 6823.41 | AF101: 9148.52 | AG101: 15971.93 | AH101: 474.35 | AI101: 635.99 | AJ101: 1110.34 | AK101: 0 | AL101: 0 | AM101: 0 | AN101: 15971.93 | AO101: 23 | AP101: 0 | AQ101: 0 | AR101: 0 | AS101: 0 | AU101: 2020-04-02 | AV101: 17450.31 | AW101: 16316.05 | AX101: 1134.26 | AY101: 0 | AZ101: 16316.05 | BA101: 0 | BB101: 0 | BC101: 0 | BD101: 0
A102: segunda | B102: 9371 | C102: 2019/0376437-0 | D102: 2019-12-13 | F102: MS 6.019/DF | G102: 1998-10-22 | H102: Administrativo - Servidor Público Civil - Sistema Remuneratório e Benefícios | I102: 2007-12-10 | K102: Instituto Nacional do Seguro Social - INSS | L102: Instituto Nacional do Seguro Social - INSS | N102: Reajuste Salarial - Resíduo de 3,17% | O102: Dedução de Honorários Contratuais | P102: Alimentar | R102: Não | S102: Não | T102: Não | U102: - | V102: - | W102: Não informada | X102: Não Informada | Y102: Não | AA102: 2019-11-01 | AB102: 8189.47 | AC102: 11498.9 | AD102: 19688.37 | AE102: 7657.16 | AF102: 10751.47 | AG102: 18408.63 | AH102: 532.31 | AI102: 747.43 | AJ102: 1279.74 | AK102: 0 | AL102: 0 | AM102: 0 | AN102: 18408.63 | AO102: 23 | AP102: 0 | AQ102: 0 | AR102: 0 | AS102: 0 | AU102: 2020-04-02 | AV102: 20112.56 | AW102: 18805.25 | AX102: 1307.31 | AY102: 0 | AZ102: 18805.25 | BA102: 0 | BB102: 0 | BC102: 0 | BD102: 0
B103: 9372 | C103: 2019/0376455-9 | D103: 2019-12-13 | F103: MS 6.019/DF | G103: 1998-10-22 | H103: Administrativo - Servidor Público Civil - Sistema Remuneratório e Benefícios | I103: 2007-12-10 | K103: Instituto Nacional do Seguro Social - INSS | L103: Instituto Nacional do Seguro Social - INSS | N103: Reajuste Salarial - Resíduo de 3,17% | O103: Dedução de Honorários Contratuais | P103: Alimentar | R103: Não | S103: Não | T103: Não | U103: - | V103: - | W103: Não informada | X103: Não Informada | Y103: Não | AA103: 2019-11-01 | AB103: 8672.09 | AC103: 11567.67 | AD103: 20239.76 | AE103: 8108.41 | AF103: 10815.77 | AG103: 18924.18 | AH103: 563.68 | AI103: 751.9 | AJ103: 1315.58 | AK103: 0 | AL103: 0 | AM103: 0 | AN103: 18924.18 | AO103: 23 | AP103: 0 | AQ103: 0 | AR103: 0 | AS103: 0 | AU103: 2020-04-02 | AV103: 20675.83 | AW103: 19331.91 | AX103: 1343.92 | AY103: 0 | AZ103: 19331.91 | BA103: 0 | BB103: 0 | BC103: 0 | BD103: 0
B104: 9375 | C104: 2019/0376697-2 | D104: 2019-12-13 | F104: MS 6.019/DF | G104: 1998-10-22 | H104: Administrativo - Servidor Público Civil - Sistema Remuneratório e Benefícios | I104: 2007-12-10 | K104: Instituto Nacional do Seguro Social - INSS | L104: Instituto Nacional do Seguro Social - INSS | N104: Reajuste Salarial - Resíduo de 3,17% | O104: Dedução de Honorários Contratuais | P104: Alimentar | R104: Não | S104: Não | T104: Não | U104: - | V104: - | W104: Não informada | X104: Não Informada | Y104: Não | AA104: 2019-11-01 | AB104: 3553.88 | AC104: 4991.75 | AD104: 8545.63 | AE104: 3322.88 | AF104: 4667.29 | AG104: 7990.17 | AH104: 231 | AI104: 324.46 | AJ104: 555.46 | AK104: 0 | AL104: 0 | AM104: 0 | AN104: 7990.17 | AO104: 23 | AP104: 0 | AQ104: 0 | AR104: 0 | AS104: 0 | AU104: 2020-04-02 | AV104: 8729.75 | AW104: 8162.33 | AX104: 567.42 | AY104: 0 | AZ104: 8162.33 | BA104: 0 | BB104: 0 | BC104: 0 | BD104: 0
B105: 9378 | C105: 2019/0376739-9 | D105: 2019-12-13 | F105: MS 6.019/DF | G105: 1998-10-22 | H105: Administrativo - Servidor Público Civil - Sistema Remuneratório e Benefícios | I105: 2007-12-10 | K105: Instituto Nacional do Seguro Social - INSS | L105: Instituto Nacional do Seguro Social - INSS | N105: Reajuste Salarial - Resíduo de 3,17% | O105: Dedução de Honorários Contratuais | P105: Alimentar | R105: Não | S105: Não | T105: Não | U105: - | V105: - | W105: Não informada | X105: Não Informada | Y105: Não | AA105: 2019-11-01 | AB105: 3293.2 | AC105: 5175.79 | AD105: 8468.99 | AE105: 3079.15 | AF105: 4839.36 | AG105: 7918.51 | AH105: 214.05 | AI105: 336.43 | AJ105: 550.48 | AK105: 0 | AL105: 0 | AM105: 0 | AN105: 7918.51 | AO105: 23 | AP105: 0 | AQ105: 0 | AR105: 0 | AS105: 0 | AU105: 2020-04-02 | AV105: 8651.45 | AW105: 8089.11 | AX105: 562.34 | AY105: 0 | AZ105: 8089.11 | BA105: 0 | BB105: 0 | BC105: 0 | BD105: 0
B106: 9379 | C106: 2019/0376741-5 | D106: 2019-12-13 | F106: MS 6.019/DF | G106: 1998-10-22 | H106: Administrativo - Servidor Público Civil - Sistema Remuneratório e Benefícios | I106: 2007-12-10 | K106: Instituto Nacional do Seguro Social - INSS | L106: Instituto Nacional do Seguro Social - INSS | N106: Reajuste Salarial - Resíduo de 3,17% | O106: Dedução de Honorários Contratuais | P106: Alimentar | R106: Não | S106: Não | T106: Não | U106: - | V106: - | W106: Não informada | X106: Não Informada | Y106: Não | AA106: 2019-11-01 | AB106: 4606.51 | AC106: 6084.72 | AD106: 10691.23 | AE106: 4307.09 | AF106: 5689.22 | AG106: 9996.31 | AH106: 299.42 | AI106: 395.5 | AJ106: 694.92 | AK106: 0 | AL106: 0 | AM106: 0 | AN106: 9996.31 | AO106: 23 | AP106: 0 | AQ106: 0 | AR106: 0 | AS106: 0 | AU106: 2020-04-02 | AV106: 10921.57 | AW106: 10211.68 | AX106: 709.89 | AY106: 0 | AZ106: 10211.68 | BA106: 0 | BB106: 0 | BC106: 0 | BD106: 0
B107: 9385 | C107: 2019/0376783-2 | D107: 2019-12-13 | F107: MS 6.019/DF | G107: 1998-10-22 | H107: Administrativo - Servidor Público Civil - Sistema Remuneratório e Benefícios | I107: 2007-12-10 | K107: Instituto Nacional do Seguro Social - INSS | L107: Instituto Nacional do Seguro Social - INSS | N107: Reajuste Salarial - Resíduo de 3,17% | O107: Dedução de Honorários Contratuais | P107: Alimentar | R107: Não | S107: Não | T107: Não | U107: - | V107: - | W107: Não informada | X107: Não Informada | Y107: Não | AA107: 2019-11-01 | AB107: 4986.93 | AC107: 7279.11 | AD107: 12266.04 | AE107: 4662.78 | AF107: 6805.97 | AG107: 11468.75 | AH107: 324.15 | AI107: 473.14 | AJ107: 797.29 | AK107: 0 | AL107: 0 | AM107: 0 | AN107: 11468.75 | AO107: 23 | AP107: 0 | AQ107: 0 | AR107: 0 | AS107: 0 | AU107: 2020-04-02 | AV107: 12530.31 | AW107: 11715.85 | AX107: 814.46 | AY107: 0 | AZ107: 11715.85 | BA107: 0 | BB107: 0 | BC107: 0 | BD107: 0
B108: 9386 | C108: 2019/0379441-2 | D108: 2019-12-16 | F108: MS 6.864/DF | G108: 2000-04-05 | H108: Administrativo - Servidor Público Civil - Sistema Remuneratório e Benefícios | I108: 2006-05-03 | K108: Instituto Nacional do Seguro Social - INSS | L108: Ministério do Planejamento, Orçamento e Gestão | N108: Reajuste 3,17% - Lei 8.880/94 | O108: Dedução de Honorários Contratuais | P108: Alimentar | R108: Não | S108: Não | T108: Não | U108: - | V108: - | W108: Não informada | X108: Não Informada | Y108: Não | AA108: 2019-12-01 | AB108: 15248.4 | AC108: 33678.17 | AD108: 48926.57 | AE108: 14333.5 | AF108: 31657.48 | AG108: 45990.98 | AH108: 914.9 | AI108: 2020.69 | AJ108: 2935.59 | AK108: 0 | AL108: 0 | AM108: 0 | AN108: 45990.98 | AO108: 32 | AP108: 0 | AQ108: 0 | AR108: 0 | AS108: 0 | AU108: 2020-04-02 | AV108: 49910.84 | AW108: 46916.2 | AX108: 2994.64 | AY108: 0 | AZ108: 46916.2 | BA108: 0 | BB108: 0 | BC108: 0 | BD108: 0
B109: 9389 | C109: 2019/0379457-4 | D109: 2019-12-16 | F109: MS 6.019/DF | G109: 1998-10-22 | H109: Administrativo - Servidor Público Civil - Sistema Remuneratório e Benefícios | I109: 2007-12-10 | K109: Instituto Nacional do Seguro Social - INSS | L109: Instituto Nacional do Seguro Social - INSS | N109: Reajuste Salarial - Resíduo de 3,17% | O109: Dedução de Honorários Contratuais | P109: Alimentar | R109: Não | S109: Não | T109: Não | U109: - | V109: - | W109: Não informada | X109: Não Informada | Y109: Não | AA109: 2019-12-01 | AB109: 4595.5 | AC109: 6197.8 | AD109: 10793.3 | AE109: 4296.8 | AF109: 5794.94 | AG109: 10091.74 | AH109: 298.7 | AI109: 402.86 | AJ109: 701.56 | AK109: 0 | AL109: 0 | AM109: 0 | AN109: 10091.74 | AO109: 23 | AP109: 0 | AQ109: 0 | AR109: 0 | AS109: 0 | AU109: 2020-04-02 | AV109: 11010.43 | AW109: 10294.76 | AX109: 715.67 | AY109: 0 | AZ109: 10294.76 | BA109: 0 | BB109: 0 | BC109: 0 | BD109: 0
B110: 9394 | C110: 2019/0379473-9 | D110: 2019-12-16 | F110: MS 6.019/DF | G110: 1998-10-22 | H110: Administrativo - Servidor Público Civil - Sistema Remuneratório e Benefícios | I110: 2007-12-10 | K110: Instituto Nacional do Seguro Social - INSS | L110: Instituto Nacional do Seguro Social - INSS | N110: Reajuste Salarial - Resíduo de 3,17% | O110: Dedução de Honorários Contratuais | P110: Alimentar | R110: Não | S110: Não | T110: Não | U110: - | V110: - | W110: Não informada | X110: Não Informada | Y110: Não | AA110: 2019-12-01 | AB110: 3055.83 | AC110: 4335.09 | AD110: 7390.92 | AE110: 2857.21 | AF110: 4053.31 | AG110: 6910.52 | AH110: 198.62 | AI110: 281.78 | AJ110: 480.4 | AK110: 0 | AL110: 0 | AM110: 0 | AN110: 6910.52 | AO110: 8 | AP110: 0 | AQ110: 0 | AR110: 0 | AS110: 0 | AU110: 2020-04-02 | AV110: 7539.6 | AW110: 7049.54 | AX110: 490.06 | AY110: 0 | AZ110: 7049.54 | BA110: 0 | BB110: 0 | BC110: 0 | BD110: 0
B111: 9397 | C111: 2019/0379482-8 | D111: 2019-12-16 | F111: MS 6.019/DF | G111: 1998-10-22 | H111: Administrativo - Servidor Público Civil - Sistema Remuneratório e Benefícios | I111: 2007-12-10 | K111: Instituto Nacional do Seguro Social - INSS | L111: Instituto Nacional do Seguro Social - INSS | N111: Reajuste Salarial - Resíduo de 3,17% | O111: Dedução de Honorários Contratuais | P111: Alimentar | R111: Não | S111: Não | T111: Não | U111: - | V111: - | W111: Não informada | X111: Não Informada | Y111: Não | AA111: 2019-12-01 | AB111: 1846.49 | AC111: 2505.05 | AD111: 4351.54 | AE111: 1726.47 | AF111: 2342.22 | AG111: 4068.69 | AH111: 120.02 | AI111: 162.83 | AJ111: 282.85 | AK111: 0 | AL111: 0 | AM111: 0 | AN111: 4068.69 | AO111: 23 | AP111: 0 | AQ111: 0 | AR111: 0 | AS111: 0 | AU111: 2020-04-02 | AV111: 4439.08 | AW111: 4150.54 | AX111: 288.54 | AY111: 0 | AZ111: 4150.54 | BA111: 0 | BB111: 0 | BC111: 0 | BD111: 0
B112: 9403 | C112: 2019/0379493-0 | D112: 2019-12-16 | F112: MS 6.019/DF | G112: 1998-10-22 | H112: Administrativo - Servidor Público Civil - Sistema Remuneratório e Benefícios | I112: 2007-12-10 | K112: Instituto Nacional do Seguro Social - INSS | L112: Instituto Nacional do Seguro Social - INSS | N112: Reajuste Salarial - Resíduo de 3,17% | O112: Dedução de Honorários Contratuais | P112: Alimentar | R112: Não | S112: Não | T112: Não | U112: - | V112: - | W112: Não informada | X112: Não Informada | Y112: Não | AA112: 2019-12-01 | AB112: 1920.37 | AC112: 2636.6 | AD112: 4556.97 | AE112: 1795.55 | AF112: 2465.22 | AG112: 4260.77 | AH112: 124.82 | AI112: 171.38 | AJ112: 296.2 | AK112: 0 | AL112: 0 | AM112: 0 | AN112: 4260.77 | AO112: 23 | AP112: 0 | AQ112: 0 | AR112: 0 | AS112: 0 | AU112: 2020-04-02 | AV112: 4648.64 | AW112: 4346.49 | AX112: 302.15 | AY112: 0 | AZ112: 4346.49 | BA112: 0 | BB112: 0 | BC112: 0 | BD112: 0
B113: 9406 | C113: 2019/0379497-8 | D113: 2019-12-16 | F113: MS 6.019/DF | G113: 1998-10-22 | H113: Administrativo - Servidor Público Civil - Sistema Remuneratório e Benefícios | I113: 2007-12-10 | K113: Instituto Nacional do Seguro Social - INSS | L113: Instituto Nacional do Seguro Social - INSS | N113: Reajuste Salarial - Resíduo de 3,17% | O113: Dedução de Honorários Contratuais | P113: Alimentar | R113: Não | S113: Não | T113: Não | U113: - | V113: - | W113: Não informada | X113: Não Informada | Y113: Não | AA113: 2019-12-01 | AB113: 8121.94 | AC113: 11107.62 | AD113: 19229.56 | AE113: 7594.02 | AF113: 10385.62 | AG113: 17979.64 | AH113: 527.92 | AI113: 722 | AJ113: 1249.92 | AK113: 0 | AL113: 0 | AM113: 0 | AN113: 17979.64 | AO113: 23 | AP113: 0 | AQ113: 0 | AR113: 0 | AS113: 0 | AU113: 2020-04-02 | AV113: 19616.4 | AW113: 18341.34 | AX113: 1275.06 | AY113: 0 | AZ113: 18341.34 | BA113: 0 | BB113: 0 | BC113: 0 | BD113: 0
B114: 9409 | C114: 2019/0379500-5 | D114: 2019-12-16 | F114: MS 6.019/DF | G114: 1998-10-22 | H114: Administrativo - Servidor Público Civil - Sistema Remuneratório e Benefícios | I114: 2007-12-10 | K114: Instituto Nacional do Seguro Social - INSS | L114: Instituto Nacional do Seguro Social - INSS | N114: Reajuste Salarial - Resíduo de 3,17% | O114: Dedução de Honorários Contratuais | P114: Alimentar | R114: Não | S114: Não | T114: Não | U114: - | V114: - | W114: Não informada | X114: Não Informada | Y114: Não | AA114: 2019-12-01 | AB114: 7648.88 | AC114: 11395.45 | AD114: 19044.33 | AE114: 7151.71 | AF114: 10654.74 | AG114: 17806.45 | AH114: 497.17 | AI114: 740.71 | AJ114: 1237.88 | AK114: 0 | AL114: 0 | AM114: 0 | AN114: 17806.45 | AO114: 23 | AP114: 0 | AQ114: 0 | AR114: 0 | AS114: 0 | AU114: 2020-04-02 | AV114: 19427.45 | AW114: 18164.67 | AX114: 1262.78 | AY114: 0 | AZ114: 18164.67 | BA114: 0 | BB114: 0 | BC114: 0 | BD114: 0
B115: 9410 | C115: 2019/0379501-7 | D115: 2019-12-16 | F115: MS 6.019/DF | G115: 1998-10-22 | H115: Administrativo - Servidor Público Civil - Sistema Remuneratório e Benefícios | I115: 2007-12-10 | K115: Instituto Nacional do Seguro Social - INSS | L115: Instituto Nacional do Seguro Social - INSS | N115: Reajuste Salarial - Resíduo de 3,17% | O115: Dedução de Honorários Contratuais | P115: Alimentar | R115: Não | S115: Não | T115: Não | U115: - | V115: - | W115: Não informada | X115: Não Informada | Y115: Não | AA115: 2019-12-01 | AB115: 992.55 | AC115: 1430.1 | AD115: 2422.65 | AE115: 928.04 | AF115: 1337.14 | AG115: 2265.18 | AH115: 64.51 | AI115: 92.96 | AJ115: 157.47 | AK115: 0 | AL115: 0 | AM115: 0 | AN115: 2265.18 | AO115: 23 | AP115: 0 | AQ115: 0 | AR115: 0 | AS115: 0 | AU115: 2020-04-02 | AV115: 2471.38 | AW115: 2310.75 | AX115: 160.63 | AY115: 0 | AZ115: 2310.75 | BA115: 0 | BB115: 0 | BC115: 0 | BD115: 0
B116: 9411 | C116: 2019/0379502-9 | D116: 2019-12-16 | F116: MS 6.019/DF | G116: 1998-10-22 | H116: Administrativo - Servidor Público Civil - Sistema Remuneratório e Benefícios | I116: 2007-12-10 | K116: Instituto Nacional do Seguro Social - INSS | L116: Instituto Nacional do Seguro Social - INSS | N116: Reajuste Salarial - Resíduo de 3,17% | O116: Dedução de Honorários Contratuais | P116: Alimentar | R116: Não | S116: Não | T116: Não | U116: - | V116: - | W116: Não informada | X116: Não Informada | Y116: Não | AA116: 2019-12-01 | AB116: 992.55 | AC116: 1430.1 | AD116: 2422.65 | AE116: 928.04 | AF116: 1337.14 | AG116: 2265.18 | AH116: 64.51 | AI116: 92.96 | AJ116: 157.47 | AK116: 0 | AL116: 0 | AM116: 0 | AN116: 2265.18 | AO116: 23 | AP116: 0 | AQ116: 0 | AR116: 0 | AS116: 0 | AU116: 2020-04-02 | AV116: 2471.38 | AW116: 2310.75 | AX116: 160.63 | AY116: 0 | AZ116: 2310.75 | BA116: 0 | BB116: 0 | BC116: 0 | BD116: 0
B117: 9416 | C117: 2019/0379507-8 | D117: 2019-12-16 | F117: MS 6.019/DF | G117: 1998-10-22 | H117: Administrativo - Servidor Público Civil - Sistema Remuneratório e Benefícios | I117: 2007-12-10 | K117: Instituto Nacional do Seguro Social - INSS | L117: Instituto Nacional do Seguro Social - INSS | N117: Reajuste Salarial - Resíduo de 3,17% | O117: Dedução de Honorários Contratuais | P117: Alimentar | R117: Não | S117: Não | T117: Não | U117: - | V117: - | W117: Não informada | X117: Não Informada | Y117: Não | AA117: 2019-12-01 | AB117: 4587.62 | AC117: 6269.11 | AD117: 10856.73 | AE117: 4289.43 | AF117: 5861.62 | AG117: 10151.05 | AH117: 298.19 | AI117: 407.49 | AJ117: 705.68 | AK117: 0 | AL117: 0 | AM117: 0 | AN117: 10151.05 | AO117: 23 | AP117: 0 | AQ117: 0 | AR117: 0 | AS117: 0 | AU117: 2020-04-02 | AV117: 11075.13 | AW117: 10355.26 | AX117: 719.87 | AY117: 0 | AZ117: 10355.26 | BA117: 0 | BB117: 0 | BC117: 0 | BD117: 0
B118: 9417 | C118: 2019/0379508-0 | D118: 2019-12-16 | F118: MS 6.019/DF | G118: 1998-10-22 | H118: Administrativo - Servidor Público Civil - Sistema Remuneratório e Benefícios | I118: 2007-12-10 | K118: Instituto Nacional do Seguro Social - INSS | L118: Instituto Nacional do Seguro Social - INSS | N118: Reajuste Salarial - Resíduo de 3,17% | O118: Dedução de Honorários Contratuais | P118: Alimentar | R118: Não | S118: Não | T118: Não | U118: - | V118: - | W118: Não informada | X118: Não Informada | Y118: Não | AA118: 2019-12-01 | AB118: 1252.22 | AC118: 1679.78 | AD118: 2932 | AE118: 1170.83 | AF118: 1570.59 | AG118: 2741.42 | AH118: 81.39 | AI118: 109.19 | AJ118: 190.58 | AK118: 0 | AL118: 0 | AM118: 0 | AN118: 2741.42 | AO118: 23 | AP118: 0 | AQ118: 0 | AR118: 0 | AS118: 0 | AU118: 2020-04-02 | AV118: 2990.98 | AW118: 2796.57 | AX118: 194.41 | AY118: 0 | AZ118: 2796.57 | BA118: 0 | BB118: 0 | BC118: 0 | BD118: 0
B119: 9418 | C119: 2019/0379509-1 | D119: 2019-12-16 | F119: MS 6.019/DF | G119: 1998-10-22 | H119: Administrativo - Servidor Público Civil - Sistema Remuneratório e Benefícios | I119: 2007-12-10 | K119: Instituto Nacional do Seguro Social - INSS | L119: Instituto Nacional do Seguro Social - INSS | N119: Reajuste Salarial - Resíduo de 3,17% | O119: Dedução de Honorários Contratuais | P119: Alimentar | R119: Não | S119: Não | T119: Não | U119: - | V119: - | W119: Não informada | X119: Não Informada | Y119: Não | AA119: 2019-12-01 | AB119: 1385.51 | AC119: 1795.62 | AD119: 3181.13 | AE119: 1295.46 | AF119: 1678.9 | AG119: 2974.36 | AH119: 90.05 | AI119: 116.72 | AJ119: 206.77 | AK119: 0 | AL119: 0 | AM119: 0 | AN119: 2974.36 | AO119: 23 | AP119: 0 | AQ119: 0 | AR119: 0 | AS119: 0 | AU119: 2020-04-02 | AV119: 3245.12 | AW119: 3034.2 | AX119: 210.92 | AY119: 0 | AZ119: 3034.2 | BA119: 0 | BB119: 0 | BC119: 0 | BD119: 0
B120: 9419 | C120: 2019/0379510-6 | D120: 2019-12-16 | F120: MS 6.019/DF | G120: 1998-10-22 | H120: Administrativo - Servidor Público Civil - Sistema Remuneratório e Benefícios | I120: 2007-12-10 | K120: Instituto Nacional do Seguro Social - INSS | L120: Instituto Nacional do Seguro Social - INSS | N120: Reajuste Salarial - Resíduo de 3,17% | O120: Dedução de Honorários Contratuais | P120: Alimentar | R120: Não | S120: Não | T120: Não | U120: - | V120: - | W120: Não informada | X120: Não Informada | Y120: Não | AA120: 2019-12-01 | AB120: 2106.41 | AC120: 2943.54 | AD120: 5049.95 | AE120: 1969.5 | AF120: 2752.21 | AG120: 4721.71 | AH120: 136.91 | AI120: 191.33 | AJ120: 328.24 | AK120: 0 | AL120: 0 | AM120: 0 | AN120: 4721.71 | AO120: 23 | AP120: 0 | AQ120: 0 | AR120: 0 | AS120: 0 | AU120: 2020-04-02 | AV120: 5151.54 | AW120: 4816.7 | AX120: 334.84 | AY120: 0 | AZ120: 4816.7 | BA120: 0 | BB120: 0 | BC120: 0 | BD120: 0
B121: 9420 | C121: 2019/0379511-8 | D121: 2019-12-16 | F121: MS 6.019/DF | G121: 1998-10-22 | H121: Administrativo - Servidor Público Civil - Sistema Remuneratório e Benefícios | I121: 2007-12-10 | K121: Instituto Nacional do Seguro Social - INSS | L121: Instituto Nacional do Seguro Social - INSS | N121: Reajuste Salarial - Resíduo de 3,17% | O121: Dedução de Honorários Contratuais | P121: Alimentar | R121: Não | S121: Não | T121: Não | U121: - | V121: - | W121: Não informada | X121: Não Informada | Y121: Não | AA121: 2019-12-01 | AB121: 8748.52 | AC121: 11899.6 | AD121: 20648.12 | AE121: 8179.87 | AF121: 11126.13 | AG121: 19306 | AH121: 568.65 | AI121: 773.47 | AJ121: 1342.12 | AK121: 0 | AL121: 0 | AM121: 0 | AN121: 19306 | AO121: 23 | AP121: 0 | AQ121: 0 | AR121: 0 | AS121: 0 | AU121: 2020-04-02 | AV121: 21063.5 | AW121: 19694.39 | AX121: 1369.11 | AY121: 0 | AZ121: 19694.39 | BA121: 0 | BB121: 0 | BC121: 0 | BD121: 0
B122: 9424 | C122: 2019/0379515-5 | D122: 2019-12-16 | F122: MS 6.019/DF | G122: 1998-10-22 | H122: Administrativo - Servidor Público Civil - Sistema Remuneratório e Benefícios | I122: 2007-12-10 | K122: Instituto Nacional do Seguro Social - INSS | L122: Instituto Nacional do Seguro Social - INSS | N122: Reajuste Salarial - Resíduo de 3,17% | O122: Dedução de Honorários Contratuais | P122: Alimentar | R122: Não | S122: Não | T122: Não | U122: - | V122: - | W122: Não informada | X122: Não Informada | Y122: Não | AA122: 2019-12-01 | AB122: 8158.15 | AC122: 11338.21 | AD122: 19496.36 | AE122: 7627.88 | AF122: 10601.22 | AG122: 18229.1 | AH122: 530.27 | AI122: 736.99 | AJ122: 1267.26 | AK122: 0 | AL122: 0 | AM122: 0 | AN122: 18229.1 | AO122: 23 | AP122: 0 | AQ122: 0 | AR122: 0 | AS122: 0 | AU122: 2020-04-02 | AV122: 19888.57 | AW122: 18595.82 | AX122: 1292.75 | AY122: 0 | AZ122: 18595.82 | BA122: 0 | BB122: 0 | BC122: 0 | BD122: 0
B123: 9430 | C123: 2019/0379521-9 | D123: 2019-12-16 | F123: MS 6.019/DF | G123: 1998-10-22 | H123: Administrativo - Servidor Público Civil - Sistema Remuneratório e Benefícios | I123: 2007-12-10 | K123: Instituto Nacional do Seguro Social - INSS | L123: Instituto Nacional do Seguro Social - INSS | N123: Reajuste Salarial - Resíduo de 3,17% | O123: Dedução de Honorários Contratuais | P123: Alimentar | R123: Não | S123: Não | T123: Não | U123: - | V123: - | W123: Não informada | X123: Não Informada | Y123: Não | AA123: 2019-12-01 | AB123: 9145.66 | AC123: 12297.02 | AD123: 21442.68 | AE123: 8551.2 | AF123: 11497.71 | AG123: 20048.91 | AH123: 594.46 | AI123: 799.31 | AJ123: 1393.77 | AK123: 0 | AL123: 0 | AM123: 0 | AN123: 20048.91 | AO123: 23 | AP123: 0 | AQ123: 0 | AR123: 0 | AS123: 0 | AU123: 2020-04-02 | AV123: 21874.05 | AW123: 20452.25 | AX123: 1421.8 | AY123: 0 | AZ123: 20452.25 | BA123: 0 | BB123: 0 | BC123: 0 | BD123: 0
B124: 9431 | C124: 2019/0379522-0 | D124: 2019-12-16 | F124: MS 6.019/DF | G124: 1998-10-22 | H124: Administrativo - Servidor Público Civil - Sistema Remuneratório e Benefícios | I124: 2007-12-10 | K124: Instituto Nacional do Seguro Social - INSS | L124: Instituto Nacional do Seguro Social - INSS | N124: Reajuste Salarial - Resíduo de 3,17% | O124: Dedução de Honorários Contratuais | P124: Alimentar | R124: Não | S124: Não | T124: Não | U124: - | V124: - | W124: Não informada | X124: Não Informada | Y124: Não | AA124: 2019-12-01 | AB124: 4899.41 | AC124: 6471.38 | AD124: 11370.79 | AE124: 4580.95 | AF124: 6050.74 | AG124: 10631.69 | AH124: 318.46 | AI124: 420.64 | AJ124: 739.1 | AK124: 0 | AL124: 0 | AM124: 0 | AN124: 10631.69 | AO124: 23 | AP124: 0 | AQ124: 0 | AR124: 0 | AS124: 0 | AU124: 2020-04-02 | AV124: 11599.54 | AW124: 10845.58 | AX124: 753.96 | AY124: 0 | AZ124: 10845.58 | BA124: 0 | BB124: 0 | BC124: 0 | BD124: 0
B125: 9432 | C125: 2019/0379523-2 | D125: 2019-12-16 | F125: MS 6.019/DF | G125: 1998-10-22 | H125: Administrativo - Servidor Público Civil - Sistema Remuneratório e Benefícios | I125: 2007-12-10 | K125: Instituto Nacional do Seguro Social - INSS | L125: Instituto Nacional do Seguro Social - INSS | N125: Reajuste Salarial - Resíduo de 3,17% | O125: Dedução de Honorários Contratuais | P125: Alimentar | R125: Não | S125: Não | T125: Não | U125: - | V125: - | W125: Não informada | X125: Não Informada | Y125: Não | AA125: 2019-12-01 | AB125: 7903.16 | AC125: 11333.68 | AD125: 19236.84 | AE125: 7389.46 | AF125: 10596.99 | AG125: 17986.45 | AH125: 513.7 | AI125: 736.69 | AJ125: 1250.39 | AK125: 0 | AL125: 0 | AM125: 0 | AN125: 17986.45 | AO125: 23 | AP125: 0 | AQ125: 0 | AR125: 0 | AS125: 0 | AU125: 2020-04-02 | AV125: 19623.83 | AW125: 18348.29 | AX125: 1275.54 | AY125: 0 | AZ125: 18348.29 | BA125: 0 | BB125: 0 | BC125: 0 | BD125: 0
B126: 9434 | C126: 2019/0379525-6 | D126: 2019-12-16 | F126: MS 6.019/DF | G126: 1998-10-22 | H126: Administrativo - Servidor Público Civil - Sistema Remuneratório e Benefícios | I126: 2007-12-10 | K126: Instituto Nacional do Seguro Social - INSS | L126: Instituto Nacional do Seguro Social - INSS | N126: Reajuste Salarial - Resíduo de 3,17% | O126: Dedução de Honorários Contratuais | P126: Alimentar | R126: Não | S126: Não | T126: Não | U126: - | V126: - | W126: Não informada | X126: Não Informada | Y126: Não | AA126: 2019-12-01 | AB126: 3818.63 | AC126: 5148.15 | AD126: 8966.78 | AE126: 3570.42 | AF126: 4813.52 | AG126: 8383.94 | AH126: 248.21 | AI126: 334.63 | AJ126: 582.84 | AK126: 0 | AL126: 0 | AM126: 0 | AN126: 8383.94 | AO126: 23 | AP126: 0 | AQ126: 0 | AR126: 0 | AS126: 0 | AU126: 2020-04-02 | AV126: 9147.16 | AW126: 8552.6 | AX126: 594.56 | AY126: 0 | AZ126: 8552.6 | BA126: 0 | BB126: 0 | BC126: 0 | BD126: 0
B127: 9437 | C127: 2019/0379528-1 | D127: 2019-12-16 | F127: MS 6.019/DF | G127: 1998-10-22 | H127: Administrativo - Servidor Público Civil - Sistema Remuneratório e Benefícios | I127: 2007-12-10 | K127: Instituto Nacional do Seguro Social - INSS | L127: Instituto Nacional do Seguro Social - INSS | N127: Reajuste Salarial - Resíduo de 3,17% | O127: Dedução de Honorários Contratuais | P127: Alimentar | R127: Não | S127: Não | T127: Não | U127: - | V127: - | W127: Não informada | X127: Não Informada | Y127: Não | AA127: 2019-12-01 | AB127: 4220.37 | AC127: 7634.6 | AD127: 11854.97 | AE127: 3946.05 | AF127: 7138.35 | AG127: 11084.4 | AH127: 274.32 | AI127: 496.25 | AJ127: 770.57 | AK127: 0 | AL127: 0 | AM127: 0 | AN127: 11084.4 | AO127: 23 | AP127: 0 | AQ127: 0 | AR127: 0 | AS127: 0 | AU127: 2020-04-02 | AV127: 12093.46 | AW127: 11307.39 | AX127: 786.07 | AY127: 0 | AZ127: 11307.39 | BA127: 0 | BB127: 0 | BC127: 0 | BD127: 0
B128: 9441 | C128: 2019/0379532-1 | D128: 2019-12-16 | F128: MS 6.019/DF | G128: 1998-10-22 | H128: Administrativo - Servidor Público Civil - Sistema Remuneratório e Benefícios | I128: 2007-12-10 | K128: Instituto Nacional do Seguro Social - INSS | L128: Instituto Nacional do Seguro Social - INSS | N128: Reajuste Salarial - Resíduo de 3,17% | O128: Dedução de Honorários Contratuais | P128: Alimentar | R128: Não | S128: Não | T128: Não | U128: - | V128: - | W128: Não informada | X128: Não Informada | Y128: Não | AA128: 2019-12-01 | AB128: 3462.8 | AC128: 5020.74 | AD128: 8483.54 | AE128: 3237.72 | AF128: 4694.39 | AG128: 7932.11 | AH128: 225.08 | AI128: 326.35 | AJ128: 551.43 | AK128: 0 | AL128: 0 | AM128: 0 | AN128: 7932.11 | AO128: 16 | AP128: 0 | AQ128: 0 | AR128: 0 | AS128: 0 | AU128: 2020-04-02 | AV128: 8654.2 | AW128: 8091.68 | AX128: 562.52 | AY128: 0 | AZ128: 8091.68 | BA128: 0 | BB128: 0 | BC128: 0 | BD128: 0
B129: 9443 | C129: 2019/0379534-5 | D129: 2019-12-16 | F129: MS 6.019/DF | G129: 1998-10-22 | H129: Administrativo - Servidor Público Civil - Sistema Remuneratório e Benefícios | I129: 2007-12-10 | K129: Instituto Nacional do Seguro Social - INSS | L129: Instituto Nacional do Seguro Social - INSS | N129: Reajuste Salarial - Resíduo de 3,17% | O129: Dedução de Honorários Contratuais | P129: Alimentar | R129: Não | S129: Não | T129: Não | U129: - | V129: - | W129: Não informada | X129: Não Informada | Y129: Não | AA129: 2019-12-01 | AB129: 3648.89 | AC129: 4902.74 | AD129: 8551.63 | AE129: 3411.72 | AF129: 4584.06 | AG129: 7995.78 | AH129: 237.17 | AI129: 318.68 | AJ129: 555.85 | AK129: 0 | AL129: 0 | AM129: 0 | AN129: 7995.78 | AO129: 23 | AP129: 0 | AQ129: 0 | AR129: 0 | AS129: 0 | AU129: 2020-04-02 | AV129: 8723.66 | AW129: 8156.63 | AX129: 567.03 | AY129: 0 | AZ129: 8156.63 | BA129: 0 | BB129: 0 | BC129: 0 | BD129: 0
B130: 9445 | C130: 2019/0379536-9 | D130: 2019-12-17 | F130: MS 6.019/DF | G130: 1998-10-22 | H130: Administrativo - Servidor Público Civil - Sistema Remuneratório e Benefícios | I130: 2007-12-10 | K130: Instituto Nacional do Seguro Social - INSS | L130: Instituto Nacional do Seguro Social - INSS | N130: Reajuste Salarial - Resíduo de 3,17% | O130: Dedução de Honorários Contratuais | P130: Alimentar | R130: Não | S130: Não | T130: Não | U130: - | V130: - | W130: Não informada | X130: Não Informada | Y130: Não | AA130: 2019-12-01 | AB130: 6210.28 | AC130: 8289.83 | AD130: 14500.11 | AE130: 5806.62 | AF130: 7750.99 | AG130: 13557.61 | AH130: 403.66 | AI130: 538.84 | AJ130: 942.5 | AK130: 0 | AL130: 0 | AM130: 0 | AN130: 13557.61 | AO130: 14 | AP130: 0 | AQ130: 0 | AR130: 0 | AS130: 0 | AU130: 2020-04-02 | AV130: 14791.81 | AW130: 13830.35 | AX130: 961.46 | AY130: 0 | AZ130: 13830.35 | BA130: 0 | BB130: 0 | BC130: 0 | BD130: 0
B131: 9447 | C131: 2019/0379538-2 | D131: 2019-12-17 | F131: MS 6.019/DF | G131: 1998-10-22 | H131: Administrativo - Servidor Público Civil - Sistema Remuneratório e Benefícios | I131: 2007-12-10 | K131: Instituto Nacional do Seguro Social - INSS | L131: Instituto Nacional do Seguro Social - INSS | N131: Reajuste Salarial - Resíduo de 3,17% | O131: Dedução de Honorários Contratuais | P131: Alimentar | R131: Não | S131: Não | T131: Não | U131: - | V131: - | W131: Não informada | X131: Não Informada | Y131: Não | AA131: 2019-12-01 | AB131: 4166.34 | AC131: 5956.01 | AD131: 10122.35 | AE131: 3895.53 | AF131: 5568.87 | AG131: 9464.4 | AH131: 270.81 | AI131: 387.14 | AJ131: 657.95 | AK131: 0 | AL131: 0 | AM131: 0 | AN131: 9464.4 | AO131: 16 | AP131: 0 | AQ131: 0 | AR131: 0 | AS131: 0 | AU131: 2020-04-02 | AV131: 10325.98 | AW131: 9654.8 | AX131: 671.18 | AY131: 0 | AZ131: 9654.8 | BA131: 0 | BB131: 0 | BC131: 0 | BD131: 0
B132: 9448 | C132: 2019/0379539-4 | D132: 2019-12-17 | F132: MS 6.019/DF | G132: 1998-10-22 | H132: Administrativo - Servidor Público Civil - Sistema Remuneratório e Benefícios | I132: 2007-12-10 | K132: Instituto Nacional do Seguro Social - INSS | L132: Instituto Nacional do Seguro Social - INSS | N132: Reajuste Salarial - Resíduo de 3,17% | O132: Dedução de Honorários Contratuais | P132: Alimentar | R132: Não | S132: Não | T132: Não | U132: - | V132: - | W132: Não informada | X132: Não Informada | Y132: Não | AA132: 2019-12-01 | AB132: 6709.22 | AC132: 9902.4 | AD132: 16611.62 | AE132: 6273.13 | AF132: 9258.74 | AG132: 15531.87 | AH132: 436.09 | AI132: 643.66 | AJ132: 1079.75 | AK132: 0 | AL132: 0 | AM132: 0 | AN132: 15531.87 | AO132: 23 | AP132: 0 | AQ132: 0 | AR132: 0 | AS132: 0 | AU132: 2020-04-02 | AV132: 16945.8 | AW132: 15844.33 | AX132: 1101.47 | AY132: 0 | AZ132: 15844.33 | BA132: 0 | BB132: 0 | BC132: 0 | BD132: 0
B133: 9450 | C133: 2019/0379541-0 | D133: 2019-12-17 | F133: MS 6.019/DF | G133: 1998-10-22 | H133: Administrativo - Servidor Público Civil - Sistema Remuneratório e Benefícios | I133: 2007-12-10 | K133: Instituto Nacional do Seguro Social - INSS | L133: Instituto Nacional do Seguro Social - INSS | N133: Reajuste Salarial - Resíduo de 3,17% | O133: Dedução de Honorários Contratuais | P133: Alimentar | R133: Não | S133: Não | T133: Não | U133: - | V133: - | W133: Não informada | X133: Não Informada | Y133: Não | AA133: 2019-12-01 | AB133: 9122.63 | AC133: 12187.08 | AD133: 21309.71 | AE133: 8529.66 | AF133: 11394.92 | AG133: 19924.58 | AH133: 592.97 | AI133: 792.16 | AJ133: 1385.13 | AK133: 0 | AL133: 0 | AM133: 0 | AN133: 19924.58 | AO133: 23 | AP133: 0 | AQ133: 0 | AR133: 0 | AS133: 0 | AU133: 2020-04-02 | AV133: 21738.4 | AW133: 20325.41 | AX133: 1412.99 | AY133: 0 | AZ133: 20325.41 | BA133: 0 | BB133: 0 | BC133: 0 | BD133: 0
B134: 9452 | C134: 2019/0379543-4 | D134: 2019-12-17 | F134: MS 6.019/DF | G134: 1998-10-22 | H134: Administrativo - Servidor Público Civil - Sistema Remuneratório e Benefícios | I134: 2007-12-10 | K134: Instituto Nacional do Seguro Social - INSS | L134: Instituto Nacional do Seguro Social - INSS | N134: Reajuste Salarial - Resíduo de 3,17% | O134: Dedução de Honorários Contratuais | P134: Alimentar | R134: Não | S134: Não | T134: Não | U134: - | V134: - | W134: Não informada | X134: Não Informada | Y134: Não | AA134: 2019-12-01 | AB134: 9635.8 | AC134: 12747.58 | AD134: 22383.38 | AE134: 9009.48 | AF134: 11918.99 | AG134: 20928.47 | AH134: 626.32 | AI134: 828.59 | AJ134: 1454.91 | AK134: 0 | AL134: 0 | AM134: 0 | AN134: 20928.47 | AO134: 23 | AP134: 0 | AQ134: 0 | AR134: 0 | AS134: 0 | AU134: 2020-04-02 | AV134: 22833.67 | AW134: 21349.5 | AX134: 1484.17 | AY134: 0 | AZ134: 21349.5 | BA134: 0 | BB134: 0 | BC134: 0 | BD134: 0
B135: 9453 | C135: 2019/0379544-6 | D135: 2019-12-17 | F135: MS 6.019/DF | G135: 1998-10-22 | H135: Administrativo - Servidor Público Civil - Sistema Remuneratório e Benefícios | I135: 2007-12-10 | K135: Instituto Nacional do Seguro Social - INSS | L135: Instituto Nacional do Seguro Social - INSS | N135: Reajuste Salarial - Resíduo de 3,17% | O135: Dedução de Honorários Contratuais | P135: Alimentar | R135: Não | S135: Não | T135: Não | U135: - | V135: - | W135: Não informada | X135: Não Informada | Y135: Não | AA135: 2019-12-01 | AB135: 7931.49 | AC135: 11403.69 | AD135: 19335.18 | AE135: 7415.95 | AF135: 10662.45 | AG135: 18078.4 | AH135: 515.54 | AI135: 741.24 | AJ135: 1256.78 | AK135: 0 | AL135: 0 | AM135: 0 | AN135: 18078.4 | AO135: 23 | AP135: 0 | AQ135: 0 | AR135: 0 | AS135: 0 | AU135: 2020-04-02 | AV135: 19724.15 | AW135: 18442.09 | AX135: 1282.06 | AY135: 0 | AZ135: 18442.09 | BA135: 0 | BB135: 0 | BC135: 0 | BD135: 0
B136: 9454 | C136: 2019/0379545-8 | D136: 2019-12-17 | F136: MS 6.019/DF | G136: 1998-10-22 | H136: Administrativo - Servidor Público Civil - Sistema Remuneratório e Benefícios | I136: 2007-12-10 | K136: Instituto Nacional do Seguro Social - INSS | L136: Instituto Nacional do Seguro Social - INSS | N136: Reajuste Salarial - Resíduo de 3,17% | O136: Dedução de Honorários Contratuais | P136: Alimentar | R136: Não | S136: Não | T136: Não | U136: - | V136: - | W136: Não informada | X136: Não Informada | Y136: Não | AA136: 2019-12-01 | AB136: 4606.51 | AC136: 6097.94 | AD136: 10704.45 | AE136: 4307.09 | AF136: 5701.58 | AG136: 10008.67 | AH136: 299.42 | AI136: 396.36 | AJ136: 695.78 | AK136: 0 | AL136: 0 | AM136: 0 | AN136: 10008.67 | AO136: 23 | AP136: 0 | AQ136: 0 | AR136: 0 | AS136: 0 | AU136: 2020-04-02 | AV136: 10919.79 | AW136: 10210.02 | AX136: 709.77 | AY136: 0 | AZ136: 10210.02 | BA136: 0 | BB136: 0 | BC136: 0 | BD136: 0
B137: 9455 | C137: 2019/0379546-0 | D137: 2019-12-17 | F137: MS 6.019/DF | G137: 1998-10-22 | H137: Administrativo - Servidor Público Civil - Sistema Remuneratório e Benefícios | I137: 2007-12-10 | K137: Instituto Nacional do Seguro Social - INSS | L137: Instituto Nacional do Seguro Social - INSS | N137: Reajuste Salarial - Resíduo de 3,17% | O137: Dedução de Honorários Contratuais | P137: Alimentar | R137: Não | S137: Não | T137: Não | U137: - | V137: - | W137: Não informada | X137: Não Informada | Y137: Não | AA137: 2019-12-01 | AB137: 6415.51 | AC137: 9380 | AD137: 15795.51 | AE137: 5998.51 | AF137: 8770.3 | AG137: 14768.81 | AH137: 417 | AI137: 609.7 | AJ137: 1026.7 | AK137: 0 | AL137: 0 | AM137: 0 | AN137: 14768.81 | AO137: 23 | AP137: 0 | AQ137: 0 | AR137: 0 | AS137: 0 | AU137: 2020-04-02 | AV137: 16113.27 | AW137: 15065.92 | AX137: 1047.35 | AY137: 0 | AZ137: 15065.92 | BA137: 0 | BB137: 0 | BC137: 0 | BD137: 0
B138: 9463 | C138: 2019/0380621-8 | D138: 2019-12-17 | F138: MS 6.722/DF | G138: 1999-12-07 | H138: Administrativo - Servidor Público Civil - Sistema Remuneratório e Benefícios - Gratificações da Lei 8.112/1990 | I138: 2002-06-24 | K138: UNIÃO | L138: Ministério do Planejamento, Orçamento e Gestão | N138: Gratificações do Art. 4º da Lei 9.266/96 | O138: Dedução de Honorários Contratuais | P138: Alimentar | R138: Não | S138: Não | T138: Não | U138: - | V138: - | W138: Não informada | X138: Não Informada | Y138: Não | AA138: 2019-12-01 | AB138: 14306.03 | AC138: 11741.84 | AD138: 26047.87 | AE138: 11444.83 | AF138: 9393.47 | AG138: 20838.3 | AH138: 2861.2 | AI138: 2348.37 | AJ138: 5209.57 | AK138: 0 | AL138: 0 | AM138: 0 | AN138: 20838.3 | AO138: 39 | AP138: 0 | AQ138: 0 | AR138: 0 | AS138: 0 | AU138: 2020-04-02 | AV138: 26571.88 | AW138: 21257.51 | AX138: 5314.37 | AY138: 0 | AZ138: 21257.51 | BA138: 0 | BB138: 0 | BC138: 0 | BD138: 0
B139: 9466 | C139: 2019/0380639-3 | D139: 2019-12-17 | F139: MS 6.019/DF | G139: 1998-10-22 | H139: Administrativo - Servidor Público Civil - Sistema Remuneratório e Benefícios | I139: 2007-12-10 | K139: Instituto Nacional do Seguro Social - INSS | L139: Instituto Nacional do Seguro Social - INSS | N139: Reajuste Salarial - Resíduo de 3,17% | O139: Dedução de Honorários Contratuais | P139: Alimentar | R139: Não | S139: Não | T139: Não | U139: - | V139: - | W139: Não informada | X139: Não Informada | Y139: Não | AA139: 2019-12-01 | AB139: 3949.84 | AC139: 5655.99 | AD139: 9605.83 | AE139: 3693.11 | AF139: 5288.35 | AG139: 8981.46 | AH139: 256.73 | AI139: 367.64 | AJ139: 624.37 | AK139: 0 | AL139: 0 | AM139: 0 | AN139: 8981.46 | AO139: 23 | AP139: 0 | AQ139: 0 | AR139: 0 | AS139: 0 | AU139: 2020-04-02 | AV139: 9799.07 | AW139: 9162.14 | AX139: 636.93 | AY139: 0 | AZ139: 9162.14 | BA139: 0 | BB139: 0 | BC139: 0 | BD139: 0
B140: 9469 | C140: 2019/0380664-7 | D140: 2019-12-17 | F140: MS 6.019/DF | G140: 1998-10-22 | H140: Administrativo - Servidor Público Civil - Sistema Remuneratório e Benefícios | I140: 2007-12-10 | K140: Instituto Nacional do Seguro Social - INSS | L140: Instituto Nacional do Seguro Social - INSS | N140: Reajuste Salarial - Resíduo de 3,17% | O140: Dedução de Honorários Contratuais | P140: Alimentar | R140: Não | S140: Não | T140: Não | U140: - | V140: - | W140: Não informada | X140: Não Informada | Y140: Não | AA140: 2019-12-01 | AB140: 6258.58 | AC140: 9140.55 | AD140: 15399.13 | AE140: 5851.78 | AF140: 8546.41 | AG140: 14398.19 | AH140: 406.8 | AI140: 594.14 | AJ140: 1000.94 | AK140: 0 | AL140: 0 | AM140: 0 | AN140: 14398.19 | AO140: 23 | AP140: 0 | AQ140: 0 | AR140: 0 | AS140: 0 | AU140: 2020-04-02 | AV140: 15708.92 | AW140: 14687.85 | AX140: 1021.07 | AY140: 0 | AZ140: 14687.85 | BA140: 0 | BB140: 0 | BC140: 0 | BD140: 0
B141: 9470 | C141: 2019/0380670-0 | D141: 2019-12-17 | F141: MS 6.019/DF | G141: 1998-10-22 | H141: Administrativo - Servidor Público Civil - Sistema Remuneratório e Benefícios | I141: 2007-12-10 | K141: Instituto Nacional do Seguro Social - INSS | L141: Instituto Nacional do Seguro Social - INSS | N141: Reajuste Salarial - Resíduo de 3,17% | O141: Dedução de Honorários Contratuais | P141: Alimentar | R141: Não | S141: Não | T141: Não | U141: - | V141: - | W141: Não informada | X141: Não Informada | Y141: Não | AA141: 2019-12-01 | AB141: 7920.2 | AC141: 10523.7 | AD141: 18443.9 | AE141: 7405.39 | AF141: 9839.66 | AG141: 17245.05 | AH141: 514.81 | AI141: 684.04 | AJ141: 1198.85 | AK141: 0 | AL141: 0 | AM141: 0 | AN141: 17245.05 | AO141: 23 | AP141: 0 | AQ141: 0 | AR141: 0 | AS141: 0 | AU141: 2020-04-02 | AV141: 18814.94 | AW141: 17591.98 | AX141: 1222.96 | AY141: 0 | AZ141: 17591.98 | BA141: 0 | BB141: 0 | BC141: 0 | BD141: 0
B142: 9472 | C142: 2019/0380727-7 | D142: 2019-12-17 | F142: MS 6.019/DF | G142: 1998-10-22 | H142: Administrativo - Servidor Público Civil - Sistema Remuneratório e Benefícios | I142: 2007-12-10 | K142: Instituto Nacional do Seguro Social - INSS | L142: Instituto Nacional do Seguro Social - INSS | N142: Reajuste Salarial - Resíduo de 3,17% | O142: Dedução de Honorários Contratuais | P142: Alimentar | R142: Não | S142: Não | T142: Não | U142: - | V142: - | W142: Não informada | X142: Não Informada | Y142: Não | AA142: 2019-12-01 | AB142: 7892.75 | AC142: 11404.42 | AD142: 19297.17 | AE142: 7379.73 | AF142: 10663.13 | AG142: 18042.86 | AH142: 513.02 | AI142: 741.29 | AJ142: 1254.31 | AK142: 0 | AL142: 0 | AM142: 0 | AN142: 18042.86 | AO142: 23 | AP142: 0 | AQ142: 0 | AR142: 0 | AS142: 0 | AU142: 2020-04-02 | AV142: 19685.37 | AW142: 18405.83 | AX142: 1279.54 | AY142: 0 | AZ142: 18405.83 | BA142: 0 | BB142: 0 | BC142: 0 | BD142: 0
B143: 9475 | C143: 2019/0380738-0 | D143: 2019-12-17 | F143: MS 6.019/DF | G143: 1998-10-22 | H143: Administrativo - Servidor Público Civil - Sistema Remuneratório e Benefícios | I143: 2007-12-10 | K143: Instituto Nacional do Seguro Social - INSS | L143: Instituto Nacional do Seguro Social - INSS | N143: Reajuste Salarial - Resíduo de 3,17% | O143: Dedução de Honorários Contratuais | P143: Alimentar | R143: Não | S143: Não | T143: Não | U143: - | V143: - | W143: Não informada | X143: Não Informada | Y143: Não | AA143: 2019-12-01 | AB143: 7938.01 | AC143: 11436.97 | AD143: 19374.98 | AE143: 7422.04 | AF143: 10693.57 | AG143: 18115.61 | AH143: 515.97 | AI143: 743.4 | AJ143: 1259.37 | AK143: 0 | AL143: 0 | AM143: 0 | AN143: 18115.61 | AO143: 23 | AP143: 0 | AQ143: 0 | AR143: 0 | AS143: 0 | AU143: 2020-04-02 | AV143: 19764.75 | AW143: 18480.05 | AX143: 1284.7 | AY143: 0 | AZ143: 18480.05 | BA143: 0 | BB143: 0 | BC143: 0 | BD143: 0
B144: 9476 | C144: 2019/0380741-8 | D144: 2019-12-17 | F144: MS 6.019/DF | G144: 1998-10-22 | H144: Administrativo - Servidor Público Civil - Sistema Remuneratório e Benefícios | I144: 2007-12-10 | K144: Instituto Nacional do Seguro Social - INSS | L144: Instituto Nacional do Seguro Social - INSS | N144: Reajuste Salarial - Resíduo de 3,17% | O144: Dedução de Honorários Contratuais | P144: Alimentar | R144: Não | S144: Não | T144: Não | U144: - | V144: - | W144: Não informada | X144: Não Informada | Y144: Não | AA144: 2019-12-01 | AB144: 5681.84 | AC144: 9307.49 | AD144: 14989.33 | AE144: 5312.53 | AF144: 8702.5 | AG144: 14015.03 | AH144: 369.31 | AI144: 604.99 | AJ144: 974.3 | AK144: 0 | AL144: 0 | AM144: 0 | AN144: 14015.03 | AO144: 23 | AP144: 0 | AQ144: 0 | AR144: 0 | AS144: 0 | AU144: 2020-04-02 | AV144: 15290.87 | AW144: 14296.97 | AX144: 993.9 | AY144: 0 | AZ144: 14296.97 | BA144: 0 | BB144: 0 | BC144: 0 | BD144: 0
B145: 9483 | C145: 2019/0381232-5 | D145: 2019-12-17 | F145: MS 6.019/DF | G145: 1998-10-22 | H145: Administrativo - Servidor Público Civil - Sistema Remuneratório e Benefícios | I145: 2007-12-10 | K145: Instituto Nacional do Seguro Social - INSS | L145: Instituto Nacional do Seguro Social - INSS | N145: Reajuste Salarial - Resíduo de 3,17% | O145: Dedução de Honorários Contratuais | P145: Alimentar | R145: Não | S145: Não | T145: Não | U145: - | V145: - | W145: Não informada | X145: Não Informada | Y145: Não | AA145: 2019-12-01 | AB145: 6329.38 | AC145: 9125.69 | AD145: 15455.07 | AE145: 5917.98 | AF145: 8532.52 | AG145: 14450.5 | AH145: 411.4 | AI145: 593.17 | AJ145: 1004.57 | AK145: 0 | AL145: 0 | AM145: 0 | AN145: 14450.5 | AO145: 23 | AP145: 0 | AQ145: 0 | AR145: 0 | AS145: 0 | AU145: 2020-04-02 | AV145: 15765.98 | AW145: 14741.21 | AX145: 1024.77 | AY145: 0 | AZ145: 14741.21 | BA145: 0 | BB145: 0 | BC145: 0 | BD145: 0
B146: 9484 | C146: 2019/0381233-7 | D146: 2019-12-17 | F146: MS 6.019/DF | G146: 1998-10-22 | H146: Administrativo - Servidor Público Civil - Sistema Remuneratório e Benefícios | I146: 2007-12-10 | K146: Instituto Nacional do Seguro Social - INSS | L146: Instituto Nacional do Seguro Social - INSS | N146: Reajuste Salarial - Resíduo de 3,17% | O146: Dedução de Honorários Contratuais | P146: Alimentar | R146: Não | S146: Não | T146: Não | U146: - | V146: - | W146: Não informada | X146: Não Informada | Y146: Não | AA146: 2019-12-01 | AB146: 7912.81 | AC146: 11394.66 | AD146: 19307.47 | AE146: 7398.48 | AF146: 10654.01 | AG146: 18052.49 | AH146: 514.33 | AI146: 740.65 | AJ146: 1254.98 | AK146: 0 | AL146: 0 | AM146: 0 | AN146: 18052.49 | AO146: 23 | AP146: 0 | AQ146: 0 | AR146: 0 | AS146: 0 | AU146: 2020-04-02 | AV146: 19695.88 | AW146: 18415.66 | AX146: 1280.22 | AY146: 0 | AZ146: 18415.66 | BA146: 0 | BB146: 0 | BC146: 0 | BD146: 0
B147: 9486 | C147: 2019/0381239-8 | D147: 2019-12-17 | F147: MS 6.019/DF | G147: 1998-10-22 | H147: Administrativo - Servidor Público Civil - Sistema Remuneratório e Benefícios | I147: 2007-12-10 | K147: Instituto Nacional do Seguro Social - INSS | L147: Instituto Nacional do Seguro Social - INSS | N147: Reajuste Salarial - Resíduo de 3,17% | O147: Dedução de Honorários Contratuais | P147: Alimentar | R147: Não | S147: Não | T147: Não | U147: - | V147: - | W147: Não informada | X147: Não Informada | Y147: Não | AA147: 2019-12-01 | AB147: 2231.18 | AC147: 2936.27 | AD147: 5167.45 | AE147: 2086.16 | AF147: 2745.41 | AG147: 4831.57 | AH147: 145.02 | AI147: 190.86 | AJ147: 335.88 | AK147: 0 | AL147: 0 | AM147: 0 | AN147: 4831.57 | AO147: 23 | AP147: 0 | AQ147: 0 | AR147: 0 | AS147: 0 | AU147: 2020-04-02 | AV147: 5271.4 | AW147: 4928.77 | AX147: 342.63 | AY147: 0 | AZ147: 4928.77 | BA147: 0 | BB147: 0 | BC147: 0 | BD147: 0
B148: 9487 | C148: 2019/0381240-2 | D148: 2019-12-17 | F148: MS 6.019/DF | G148: 1998-10-22 | H148: Administrativo - Servidor Público Civil - Sistema Remuneratório e Benefícios | I148: 2007-12-10 | K148: Instituto Nacional do Seguro Social - INSS | L148: Instituto Nacional do Seguro Social - INSS | N148: Reajuste Salarial - Resíduo de 3,17% | O148: Dedução de Honorários Contratuais | P148: Alimentar | R148: Não | S148: Não | T148: Não | U148: - | V148: - | W148: Não informada | X148: Não Informada | Y148: Não | AA148: 2019-12-01 | AB148: 3644.85 | AC148: 4898.73 | AD148: 8543.58 | AE148: 3407.94 | AF148: 4580.31 | AG148: 7988.25 | AH148: 236.91 | AI148: 318.42 | AJ148: 555.33 | AK148: 0 | AL148: 0 | AM148: 0 | AN148: 7988.25 | AO148: 23 | AP148: 0 | AQ148: 0 | AR148: 0 | AS148: 0 | AU148: 2020-04-02 | AV148: 8715.45 | AW148: 8148.95 | AX148: 566.5 | AY148: 0 | AZ148: 8148.95 | BA148: 0 | BB148: 0 | BC148: 0 | BD148: 0
B149: 9491 | C149: 2019/0381264-1 | D149: 2019-12-17 | F149: MS 6.019/DF | G149: 1998-10-22 | H149: Administrativo - Servidor Público Civil - Sistema Remuneratório e Benefícios | I149: 2007-12-10 | K149: Instituto Nacional do Seguro Social - INSS | L149: Instituto Nacional do Seguro Social - INSS | N149: Reajuste Salarial - Resíduo de 3,17% | O149: Dedução de Honorários Contratuais | P149: Alimentar | R149: Não | S149: Não | T149: Não | U149: - | V149: - | W149: Não informada | X149: Não Informada | Y149: Não | AA149: 2019-12-01 | AB149: 8193.27 | AC149: 10620.76 | AD149: 18814.03 | AE149: 7660.71 | AF149: 9930.41 | AG149: 17591.12 | AH149: 532.56 | AI149: 690.35 | AJ149: 1222.91 | AK149: 0 | AL149: 0 | AM149: 0 | AN149: 17591.12 | AO149: 23 | AP149: 0 | AQ149: 0 | AR149: 0 | AS149: 0 | AU149: 2020-04-02 | AV149: 19192.51 | AW149: 17945 | AX149: 1247.51 | AY149: 0 | AZ149: 17945 | BA149: 0 | BB149: 0 | BC149: 0 | BD149: 0
B150: 9509 | C150: 2019/0381568-3 | D150: 2019-12-17 | F150: MS 6.019/DF | G150: 1998-10-22 | H150: Administrativo - Servidor Público Civil - Sistema Remuneratório e Benefícios | I150: 2007-12-10 | K150: Instituto Nacional do Seguro Social - INSS | L150: Instituto Nacional do Seguro Social - INSS | N150: Reajuste Salarial - Resíduo de 3,17% | O150: Dedução de Honorários Contratuais | P150: Alimentar | R150: Não | S150: Não | T150: Não | U150: - | V150: - | W150: Não informada | X150: Não Informada | Y150: Não | AA150: 2019-12-01 | AB150: 441.38 | AC150: 968.41 | AD150: 1409.79 | AE150: 412.7 | AF150: 905.46 | AG150: 1318.16 | AH150: 28.68 | AI150: 62.95 | AJ150: 91.63 | AK150: 0 | AL150: 0 | AM150: 0 | AN150: 1318.16 | AO150: 6 | AP150: 48.55 | AQ150: 441.38 | AR150: 48.55 | AS150: 97.1 | AU150: 2020-04-02 | AV150: 1438.15 | AW150: 1344.68 | AX150: 93.47 | AY150: 0 | AZ150: 1344.68 | BA150: 49.52 | BB150: 450.25 | BC150: 49.52 | BD150: 99.04
B151: 9541 | C151: 2019/0381756-5 | D151: 2019-12-17 | F151: MS 10.438/DF | G151: 2005-02-22 | H151: Administrativo - Militar - Pensão | I151: 2007-09-13 | K151: UNIÃO | L151: - | N151: Honorários de sucumbência - Cota de 50% | O151: X X X | P151: Alimentar | R151: Não | S151: Não | T151: Não | U151: - | V151: - | W151: Não informada | X151: Não Informada | Y151: Não | AA151: 2019-12-01 | AB151: 20324.14 | AC151: 0 | AD151: 20324.14 | AE151: 20324.14 | AF151: 0 | AG151: 20324.14 | AH151: 0 | AI151: 0 | AJ151: 0 | AK151: 0 | AL151: 0 | AM151: 0 | AN151: 0 | AO151: 0 | AP151: 0 | AQ151: 0 | AR151: 0 | AS151: 0 | AU151: 2020-04-02 | AV151: 20733 | AW151: 20733 | AX151: 0 | AY151: 0 | AZ151: 0 | BA151: 0 | BB151: 0 | BC151: 0 | BD151: 0
B152: 9545 | C152: 2019/0381782-0 | D152: 2019-12-17 | F152: MS 6.019/DF | G152: 1998-10-22 | H152: Administrativo - Servidor Público Civil - Sistema Remuneratório e Benefícios | I152: 2007-12-10 | K152: Instituto Nacional do Seguro Social - INSS | L152: Instituto Nacional do Seguro Social - INSS | N152: Reajuste Salarial - Resíduo de 3,17% | O152: Dedução de Honorários Contratuais | P152: Alimentar | R152: Não | S152: Não | T152: Não | U152: - | V152: - | W152: Não informada | X152: Não Informada | Y152: Não | AA152: 2019-12-01 | AB152: 8078.68 | AC152: 10988.92 | AD152: 19067.6 | AE152: 7553.57 | AF152: 10274.64 | AG152: 17828.21 | AH152: 525.11 | AI152: 714.28 | AJ152: 1239.39 | AK152: 0 | AL152: 0 | AM152: 0 | AN152: 17828.21 | AO152: 23 | AP152: 888.65 | AQ152: 8078.68 | AR152: 888.65 | AS152: 1777.3 | AU152: 2020-04-02 | AV152: 19451.19 | AW152: 18186.87 | AX152: 1264.32 | AY152: 0 | AZ152: 18186.87 | BA152: 906.53 | BB152: 8241.2 | BC152: 906.53 | BD152: 1813.06
B153: 9549 | C153: 2019/0381805-7 | D153: 2019-12-17 | F153: MS 6.019/DF | G153: 1998-10-22 | H153: Administrativo - Servidor Público Civil - Sistema Remuneratório e Benefícios | I153: 2007-12-10 | K153: Instituto Nacional do Seguro Social - INSS | L153: Instituto Nacional do Seguro Social - INSS | N153: Reajuste Salarial - Resíduo de 3,17% | O153: Dedução de Honorários Contratuais | P153: Alimentar | R153: Não | S153: Não | T153: Não | U153: - | V153: - | W153: Não informada | X153: Não Informada | Y153: Não | AA153: 2019-12-01 | AB153: 7941.97 | AC153: 11449.44 | AD153: 19391.41 | AE153: 7425.75 | AF153: 10705.22 | AG153: 18130.97 | AH153: 516.22 | AI153: 744.22 | AJ153: 1260.44 | AK153: 0 | AL153: 0 | AM153: 0 | AN153: 18130.97 | AO153: 23 | AP153: 0 | AQ153: 0 | AR153: 0 | AS153: 0 | AU153: 2020-04-02 | AV153: 19781.51 | AW153: 18495.72 | AX153: 1285.79 | AY153: 0 | AZ153: 18495.72 | BA153: 0 | BB153: 0 | BC153: 0 | BD153: 0
B154: 9559 | C154: 2019/0383013-3 | D154: 2019-12-18 | F154: MS 6.019/DF | G154: 1998-10-22 | H154: Administrativo - Servidor Público Civil - Sistema Remuneratório e Benefícios | I154: 2007-12-10 | K154: Instituto Nacional do Seguro Social - INSS | L154: Instituto Nacional do Seguro Social - INSS | N154: Reajuste Salarial - Resíduo de 3,17% | O154: Dedução de Honorários Contratuais | P154: Alimentar | R154: Não | S154: Não | T154: Não | U154: - | V154: - | W154: Não informada | X154: Não Informada | Y154: Não | AA154: 2019-12-01 | AB154: 3156.19 | AC154: 7514.02 | AD154: 10670.21 | AE154: 2951.04 | AF154: 7025.61 | AG154: 9976.65 | AH154: 205.15 | AI154: 488.41 | AJ154: 693.56 | AK154: 0 | AL154: 0 | AM154: 0 | AN154: 9976.65 | AO154: 23 | AP154: 347.18 | AQ154: 3156.19 | AR154: 347.18 | AS154: 694.36 | AU154: 2020-04-02 | AV154: 10884.86 | AW154: 10177.35 | AX154: 707.51 | AY154: 0 | AZ154: 10177.35 | BA154: 354.16 | BB154: 3219.68 | BC154: 354.16 | BD154: 708.32
B155: 9565 | C155: 2019/0383322-7 | D155: 2019-12-18 | F155: MS 6.019/DF | G155: 1998-10-22 | H155: Administrativo - Servidor Público Civil - Sistema Remuneratório e Benefícios | I155: 2007-12-10 | K155: Instituto Nacional do Seguro Social - INSS | L155: Instituto Nacional do Seguro Social - INSS | N155: Reajuste Salarial - Resíduo de 3,17% | O155: Dedução de Honorários Contratuais | P155: Alimentar | R155: Não | S155: Não | T155: Não | U155: - | V155: - | W155: Não informada | X155: Não Informada | Y155: Não | AA155: 2019-12-01 | AB155: 5241.08 | AC155: 7506.52 | AD155: 12747.6 | AE155: 4900.41 | AF155: 7018.6 | AG155: 11919.01 | AH155: 340.67 | AI155: 487.92 | AJ155: 828.59 | AK155: 0 | AL155: 0 | AM155: 0 | AN155: 11919.01 | AO155: 20 | AP155: 576.51 | AQ155: 5241.08 | AR155: 576.51 | AS155: 1153.02 | AU155: 2020-04-02 | AV155: 13004.04 | AW155: 12158.79 | AX155: 845.25 | AY155: 0 | AZ155: 12158.79 | BA155: 588.11 | BB155: 5346.51 | BC155: 588.11 | BD155: 1176.22
B156: 9571 | C156: 2019/0383404-7 | D156: 2019-12-18 | F156: MS 4.149/DF | G156: 1995-07-20 | H156: Administrativo - Servidor Público Civil - Sistema Remuneratório e Benefícios | I156: 1998-09-23 | K156: UNIÃO | L156: INCRA | N156: Diferença de remuneração - 3,17% | O156: Dedução de Honorários Contratuais | P156: Alimentar | R156: Não | S156: Não | T156: Não | U156: - | V156: - | W156: Não informada | X156: Não Informada | Y156: Não | AA156: 2019-12-01 | AB156: 681.95 | AC156: 5093.47 | AD156: 5775.42 | AE156: 613.76 | AF156: 4584.12 | AG156: 5197.88 | AH156: 68.19 | AI156: 509.35 | AJ156: 577.54 | AK156: 0 | AL156: 0 | AM156: 0 | AN156: 5197.88 | AO156: 85 | AP156: 75.01 | AQ156: 681.95 | AR156: 75.01 | AS156: 150.02 | AU156: 2020-04-02 | AV156: 5891.6 | AW156: 5302.45 | AX156: 589.15 | AY156: 0 | AZ156: 5302.45 | BA156: 76.52 | BB156: 695.66 | BC156: 76.52 | BD156: 153.04
B157: 9575 | C157: 2019/0383430-2 | D157: 2019-12-18 | F157: MS 4.149/DF | G157: 1995-07-20 | H157: Administrativo - Servidor Público Civil - Sistema Remuneratório e Benefícios | I157: 1998-09-23 | K157: UNIÃO | L157: INCRA | N157: Diferença de remuneração - 3,17% | O157: Dedução de Honorários Contratuais | P157: Alimentar | R157: Não | S157: Não | T157: Não | U157: - | V157: - | W157: Não informada | X157: Não Informada | Y157: Não | AA157: 2019-12-01 | AB157: 29.9 | AC157: 3003.39 | AD157: 3033.29 | AE157: 26.91 | AF157: 2703.06 | AG157: 2729.97 | AH157: 2.99 | AI157: 300.33 | AJ157: 303.32 | AK157: 0 | AL157: 0 | AM157: 0 | AN157: 2729.97 | AO157: 59 | AP157: 3.28 | AQ157: 29.9 | AR157: 3.28 | AS157: 6.56 | AU157: 2020-04-02 | AV157: 3094.31 | AW157: 2784.89 | AX157: 309.42 | AY157: 0 | AZ157: 2784.89 | BA157: 3.35 | BB157: 30.5 | BC157: 3.35 | BD157: 6.7
B158: 9584 | C158: 2019/0383520-0 | D158: 2019-12-18 | F158: MS 4.149/DF | G158: 1995-07-20 | H158: Administrativo - Servidor Público Civil - Sistema Remuneratório e Benefícios | I158: 1998-09-23 | K158: UNIÃO | L158: INCRA | N158: Diferença de remuneração - 3,17% | O158: Dedução de Honorários Contratuais | P158: Alimentar | R158: Não | S158: Não | T158: Não | U158: - | V158: - | W158: Não informada | X158: Não Informada | Y158: Não | AA158: 2019-12-01 | AB158: 0 | AC158: 1751.53 | AD158: 1751.53 | AE158: 0 | AF158: 1576.38 | AG158: 1576.38 | AH158: 0 | AI158: 175.15 | AJ158: 175.15 | AK158: 0 | AL158: 0 | AM158: 0 | AN158: 1576.38 | AO158: 65 | AP158: 0 | AQ158: 0 | AR158: 0 | AS158: 0 | AU158: 2020-04-02 | AV158: 1786.76 | AW158: 1608.09 | AX158: 178.67 | AY158: 0 | AZ158: 1608.09 | BA158: 0 | BB158: 0 | BC158: 0 | BD158: 0
B159: 9588 | C159: 2019/0383546-2 | D159: 2019-12-18 | F159: MS 4.149/DF | G159: 1995-07-20 | H159: Administrativo - Servidor Público Civil - Sistema Remuneratório e Benefícios | I159: 1998-09-23 | K159: UNIÃO | L159: INCRA | N159: Diferença de remuneração - 3,17% | O159: Dedução de Honorários Contratuais | P159: Alimentar | R159: Não | S159: Não | T159: Não | U159: - | V159: - | W159: Não informada | X159: Não Informada | Y159: Não | AA159: 2019-12-01 | AB159: 10.7 | AC159: 2965.15 | AD159: 2975.85 | AE159: 9.63 | AF159: 2668.64 | AG159: 2678.27 | AH159: 1.07 | AI159: 296.51 | AJ159: 297.58 | AK159: 0 | AL159: 0 | AM159: 0 | AN159: 2678.27 | AO159: 59 | AP159: 1.17 | AQ159: 10.7 | AR159: 1.17 | AS159: 2.34 | AU159: 2020-04-02 | AV159: 3035.71 | AW159: 2732.15 | AX159: 303.56 | AY159: 0 | AZ159: 2732.15 | BA159: 1.2 | BB159: 10.91 | BC159: 1.2 | BD159: 2.4
B160: 9594 | C160: 2019/0383622-1 | D160: 2019-12-18 | F160: MS 10.438/DF | G160: 2005-02-22 | H160: Administrativo - Militar - Pensão | I160: 2007-09-13 | K160: UNIÃO | L160: - | N160: Honorários de sucumbência | O160: X X X | P160: Alimentar | R160: Não | S160: Não | T160: Não | U160: - | V160: - | W160: Não informada | X160: Não Informada | Y160: Não | AA160: 2019-12-01 | AB160: 18.23 | AC160: 0 | AD160: 18.23 | AE160: 18.23 | AF160: 0 | AG160: 18.23 | AH160: 0 | AI160: 0 | AJ160: 0 | AK160: 0 | AL160: 0 | AM160: 0 | AN160: 0 | AO160: 0 | AP160: 0 | AQ160: 0 | AR160: 0 | AS160: 0 | AU160: 2020-04-02 | AV160: 18.59 | AW160: 18.59 | AX160: 0 | AY160: 0 | AZ160: 0 | BA160: 0 | BB160: 0 | BC160: 0 | BD160: 0
B161: 9598 | C161: 2019/0384023-1 | D161: 2019-12-19 | F161: MS 6.019/DF | G161: 1998-10-22 | H161: Administrativo - Servidor Público Civil - Sistema Remuneratório e Benefícios | I161: 2007-12-10 | K161: Instituto Nacional do Seguro Social - INSS | L161: Instituto Nacional do Seguro Social - INSS | N161: Reajuste Salarial - Resíduo de 3,17% | O161: Dedução de Honorários Contratuais | P161: Alimentar | R161: Não | S161: Não | T161: Não | U161: - | V161: - | W161: Não informada | X161: Não Informada | Y161: Não | AA161: 2019-12-01 | AB161: 6348.22 | AC161: 9059.77 | AD161: 15407.99 | AE161: 5935.59 | AF161: 8470.89 | AG161: 14406.48 | AH161: 412.63 | AI161: 588.88 | AJ161: 1001.51 | AK161: 0 | AL161: 0 | AM161: 0 | AN161: 14406.48 | AO161: 23 | AP161: 0 | AQ161: 0 | AR161: 0 | AS161: 0 | AU161: 2020-04-02 | AV161: 15717.95 | AW161: 14696.3 | AX161: 1021.65 | AY161: 0 | AZ161: 14696.3 | BA161: 0 | BB161: 0 | BC161: 0 | BD161: 0
B162: 9613 | C162: 2019/0384060-0 | D162: 2019-12-19 | F162: MS 10.424/DF | G162: 2005-02-17 | H162: Administrativo - Servidor Público Civil - Sistema Remuneratório e Benefícios - Gratificações | I162: 2005-10-27 | K162: UNIÃO | L162: Ministério do Planejamento, Orçamento e Gestão | N162: Gratificação Específica de Atividade Docente - GEAD | O162: Dedução de Honorários Contratuais | P162: Alimentar | R162: Não | S162: Não | T162: Não | U162: - | V162: - | W162: Não informada | X162: Não Informada | Y162: Não | AA162: 2019-12-01 | AB162: 3464.96 | AC162: 2857.95 | AD162: 6322.91 | AE162: 3083.82 | AF162: 2543.57 | AG162: 5627.39 | AH162: 381.14 | AI162: 314.38 | AJ162: 695.52 | AK162: 0 | AL162: 0 | AM162: 0 | AN162: 5627.39 | AO162: 9 | AP162: 381.14 | AQ162: 3464.96 | AR162: 381.14 | AS162: 762.28 | AU162: 2020-04-02 | AV162: 6450.11 | AW162: 5740.6 | AX162: 709.51 | AY162: 0 | AZ162: 5740.6 | BA162: 388.81 | BB162: 3534.66 | BC162: 388.81 | BD162: 777.62
B163: 9617 | C163: 2019/0384071-2 | D163: 2019-12-19 | F163: MS 10.424/DF | G163: 2005-02-17 | H163: Administrativo - Servidor Público Civil - Sistema Remuneratório e Benefícios - Gratificações | I163: 2005-10-27 | K163: UNIÃO | L163: Ministério do Planejamento, Orçamento e Gestão | N163: Gratificação Específica de Atividade Docente - GEAD | O163: Dedução de Honorários Contratuais | P163: Alimentar | R163: Não | S163: Não | T163: Não | U163: - | V163: - | W163: Não informada | X163: Não Informada | Y163: Não | AA163: 2019-12-01 | AB163: 3464.96 | AC163: 2857.95 | AD163: 6322.91 | AE163: 3083.82 | AF163: 2543.57 | AG163: 5627.39 | AH163: 381.14 | AI163: 314.38 | AJ163: 695.52 | AK163: 0 | AL163: 0 | AM163: 0 | AN163: 5627.39 | AO163: 9 | AP163: 381.14 | AQ163: 3464.96 | AR163: 381.14 | AS163: 762.28 | AU163: 2020-04-02 | AV163: 6450.11 | AW163: 5740.6 | AX163: 709.51 | AY163: 0 | AZ163: 5740.6 | BA163: 388.81 | BB163: 3534.66 | BC163: 388.81 | BD163: 777.62
B164: 9621 | C164: 2019/0384079-7 | D164: 2019-12-19 | F164: MS 10.424/DF | G164: 2005-02-17 | H164: Administrativo - Servidor Público Civil - Sistema Remuneratório e Benefícios - Gratificações | I164: 2005-10-27 | K164: UNIÃO | L164: Ministério do Planejamento, Orçamento e Gestão | N164: Gratificação Específica de Atividade Docente - GEAD | O164: Dedução de Honorários Contratuais | P164: Alimentar | R164: Não | S164: Não | T164: Não | U164: - | V164: - | W164: Não informada | X164: Não Informada | Y164: Não | AA164: 2019-12-01 | AB164: 3464.96 | AC164: 2857.95 | AD164: 6322.91 | AE164: 3083.82 | AF164: 2543.57 | AG164: 5627.39 | AH164: 381.14 | AI164: 314.38 | AJ164: 695.52 | AK164: 0 | AL164: 0 | AM164: 0 | AN164: 5627.39 | AO164: 9 | AP164: 381.14 | AQ164: 3464.96 | AR164: 381.14 | AS164: 762.28 | AU164: 2020-04-02 | AV164: 6450.11 | AW164: 5740.6 | AX164: 709.51 | AY164: 0 | AZ164: 5740.6 | BA164: 388.81 | BB164: 3534.66 | BC164: 388.81 | BD164: 777.62
B165: 9624 | C165: 2019/0384085-0 | D165: 2019-12-19 | F165: MS 10.424/DF | G165: 2005-02-17 | H165: Administrativo - Servidor Público Civil - Sistema Remuneratório e Benefícios - Gratificações | I165: 2005-10-27 | K165: UNIÃO | L165: - | N165: Honorários de sucumbência | O165: X X X | P165: Alimentar | R165: Não | S165: Não | T165: Não | U165: - | V165: - | W165: Não informada | X165: Não Informada | Y165: Não | AA165: 2019-12-01 | AB165: 121.47 | AC165: 0 | AD165: 121.47 | AE165: 121.47 | AF165: 0 | AG165: 121.47 | AH165: 0 | AI165: 0 | AJ165: 0 | AK165: 0 | AL165: 0 | AM165: 0 | AN165: 0 | AO165: 0 | AP165: 0 | AQ165: 0 | AR165: 0 | AS165: 0 | AU165: 2020-04-02 | AV165: 123.91 | AW165: 123.91 | AX165: 0 | AY165: 0 | AZ165: 0 | BA165: 0 | BB165: 0 | BC165: 0 | BD165: 0
B166: 9625 | C166: 2019/0385111-2 | D166: 2019-12-19 | F166: MS 6.019/DF | G166: 1998-10-22 | H166: Administrativo - Servidor Público Civil - Sistema Remuneratório e Benefícios | I166: 2007-12-10 | K166: Instituto Nacional do Seguro Social - INSS | L166: Instituto Nacional do Seguro Social - INSS | N166: Reajuste Salarial - Resíduo de 3,17% | O166: Dedução de Honorários Contratuais | P166: Alimentar | R166: Não | S166: Não | T166: Não | U166: - | V166: - | W166: Não informada | X166: Não Informada | Y166: Não | AA166: 2019-12-01 | AB166: 8313.11 | AC166: 11811.69 | AD166: 20124.8 | AE166: 7772.76 | AF166: 11043.93 | AG166: 18816.69 | AH166: 540.35 | AI166: 767.76 | AJ166: 1308.11 | AK166: 0 | AL166: 0 | AM166: 0 | AN166: 18816.69 | AO166: 23 | AP166: 0 | AQ166: 0 | AR166: 0 | AS166: 0 | AU166: 2020-04-02 | AV166: 20529.65 | AW166: 19195.23 | AX166: 1334.42 | AY166: 0 | AZ166: 19195.23 | BA166: 0 | BB166: 0 | BC166: 0 | BD166: 0
B167: 9646 | C167: 2019/0385346-0 | D167: 2019-12-19 | F167: MS 6.318/DF | G167: 1999-04-30 | H167: Administrativo - Servidor Público Civil - Reajustes de Remuneração, Proventos ou Pensão - Índice da URV Lei 8.880/1994 | I167: 2003-02-17 | K167: UNIÃO | L167: Ministério da Fazenda | N167: Reajuste 3,17% | O167: Dedução de Honorários Contratuais | P167: Alimentar | R167: Não | S167: Não | T167: Não | U167: - | V167: - | W167: Não informada | X167: Não Informada | Y167: Não | AA167: 2019-12-01 | AB167: 3951.6 | AC167: 5426.62 | AD167: 9378.22 | AE167: 3635.48 | AF167: 4992.49 | AG167: 8627.97 | AH167: 197.58 | AI167: 271.33 | AJ167: 468.91 | AK167: 118.54 | AL167: 162.8 | AM167: 281.34 | AN167: 8627.97 | AO167: 19 | AP167: 434.67 | AQ167: 3951.6 | AR167: 434.67 | AS167: 869.34 | AU167: 2020-04-02 | AV167: 9566.88 | AW167: 8801.55 | AX167: 478.34 | AY167: 286.99 | AZ167: 8801.55 | BA167: 443.41 | BB167: 4031.09 | BC167: 443.41 | BD167: 886.82
B168: 9648 | C168: 2019/0385352-4 | D168: 2019-12-19 | F168: MS 6.318/DF | G168: 1999-04-30 | H168: Administrativo - Servidor Público Civil - Reajustes de Remuneração, Proventos ou Pensão - Índice da URV Lei 8.880/1994 | I168: 2003-02-17 | K168: UNIÃO | L168: Ministério da Fazenda | N168: Reajuste 3,17% | O168: Dedução de Honorários Contratuais | P168: Alimentar | R168: Não | S168: Não | T168: Não | U168: - | V168: - | W168: Não informada | X168: Não Informada | Y168: Não | AA168: 2019-12-01 | AB168: 2348.03 | AC168: 4276.8 | AD168: 6624.83 | AE168: 2160.19 | AF168: 3934.66 | AG168: 6094.85 | AH168: 117.4 | AI168: 213.84 | AJ168: 331.24 | AK168: 70.44 | AL168: 128.3 | AM168: 198.74 | AN168: 6094.85 | AO168: 19 | AP168: 258.28 | AQ168: 2348.03 | AR168: 258.28 | AS168: 516.56 | AU168: 2020-04-02 | AV168: 6758.1 | AW168: 6217.47 | AX168: 337.9 | AY168: 202.73 | AZ168: 6217.47 | BA168: 263.47 | BB168: 2395.26 | BC168: 263.47 | BD168: 526.94
B169: 9649 | C169: 2019/0385355-0 | D169: 2019-12-19 | F169: MS 6.318/DF | G169: 1999-04-30 | H169: Administrativo - Servidor Público Civil - Reajustes de Remuneração, Proventos ou Pensão - Índice da URV Lei 8.880/1994 | I169: 2003-02-17 | K169: UNIÃO | L169: Ministério da Fazenda | N169: Reajuste 3,17% | O169: Dedução de Honorários Contratuais | P169: Alimentar | R169: Não | S169: Não | T169: Não | U169: - | V169: - | W169: Não informada | X169: Não Informada | Y169: Não | AA169: 2019-12-01 | AB169: 2077.17 | AC169: 3999.51 | AD169: 6076.68 | AE169: 1911.01 | AF169: 3679.54 | AG169: 5590.55 | AH169: 103.85 | AI169: 199.98 | AJ169: 303.83 | AK169: 62.31 | AL169: 119.99 | AM169: 182.3 | AN169: 5590.55 | AO169: 19 | AP169: 228.48 | AQ169: 2077.17 | AR169: 228.48 | AS169: 456.96 | AU169: 2020-04-02 | AV169: 6198.92 | AW169: 5703.02 | AX169: 309.94 | AY169: 185.96 | AZ169: 5703.02 | BA169: 233.08 | BB169: 2118.95 | BC169: 233.08 | BD169: 466.16
B170: 9656 | C170: 2019/0385618-6 | D170: 2019-12-19 | F170: MS 6.318/DF | G170: 1999-04-30 | H170: Administrativo - Servidor Público Civil - Reajustes de Remuneração, Proventos ou Pensão - Índice da URV Lei 8.880/1994 | I170: 2003-02-17 | K170: UNIÃO | L170: Ministério da Fazenda | N170: Reajuste 3,17% | O170: Dedução de Honorários Contratuais | P170: Alimentar | R170: Não | S170: Não | T170: Não | U170: - | V170: - | W170: Não informada | X170: Não Informada | Y170: Não | AA170: 2019-12-01 | AB170: 5271.49 | AC170: 6701.39 | AD170: 11972.88 | AE170: 4849.78 | AF170: 6165.28 | AG170: 11015.06 | AH170: 263.57 | AI170: 335.07 | AJ170: 598.64 | AK170: 158.14 | AL170: 201.04 | AM170: 359.18 | AN170: 11015.06 | AO170: 19 | AP170: 579.86 | AQ170: 5271.49 | AR170: 579.86 | AS170: 1159.72 | AU170: 2020-04-02 | AV170: 12213.74 | AW170: 11236.66 | AX170: 610.68 | AY170: 366.4 | AZ170: 11236.66 | BA170: 591.52 | BB170: 5377.53 | BC170: 591.52 | BD170: 1183.04
B171: 9657 | C171: 2019/0385619-8 | D171: 2019-12-19 | F171: MS 6.318/DF | G171: 1999-04-30 | H171: Administrativo - Servidor Público Civil - Reajustes de Remuneração, Proventos ou Pensão - Índice da URV Lei 8.880/1994 | I171: 2003-02-17 | K171: UNIÃO | L171: Ministério da Fazenda | N171: Reajuste 3,17% | O171: Dedução de Honorários Contratuais | P171: Alimentar | R171: Não | S171: Não | T171: Não | U171: - | V171: - | W171: Não informada | X171: Não Informada | Y171: Não | AA171: 2019-12-01 | AB171: 2176.58 | AC171: 4103.58 | AD171: 6280.16 | AE171: 2002.47 | AF171: 3775.29 | AG171: 5777.76 | AH171: 108.82 | AI171: 205.18 | AJ171: 314 | AK171: 65.29 | AL171: 123.11 | AM171: 188.4 | AN171: 5777.76 | AO171: 19 | AP171: 239.42 | AQ171: 2176.58 | AR171: 239.42 | AS171: 478.84 | AU171: 2020-04-02 | AV171: 6406.5 | AW171: 5894 | AX171: 320.31 | AY171: 192.19 | AZ171: 5894 | BA171: 244.23 | BB171: 2220.36 | BC171: 244.23 | BD171: 488.46
B172: 9663 | C172: 2019/0385625-1 | D172: 2019-12-19 | F172: MS 6.318/DF | G172: 1999-04-30 | H172: Administrativo - Servidor Público Civil - Reajustes de Remuneração, Proventos ou Pensão - Índice da URV Lei 8.880/1994 | I172: 2003-02-17 | K172: UNIÃO | L172: Ministério da Fazenda | N172: Reajuste 3,17% | O172: Dedução de Honorários Contratuais | P172: Alimentar | R172: Não | S172: Não | T172: Não | U172: - | V172: - | W172: Não informada | X172: Não Informada | Y172: Não | AA172: 2019-12-01 | AB172: 3897.15 | AC172: 5359.89 | AD172: 9257.04 | AE172: 3585.39 | AF172: 4931.09 | AG172: 8516.48 | AH172: 194.85 | AI172: 268 | AJ172: 462.85 | AK172: 116.91 | AL172: 160.8 | AM172: 277.71 | AN172: 8516.48 | AO172: 19 | AP172: 428.68 | AQ172: 3897.15 | AR172: 428.68 | AS172: 857.36 | AU172: 2020-04-02 | AV172: 9443.26 | AW172: 8687.81 | AX172: 472.16 | AY172: 283.29 | AZ172: 8687.81 | BA172: 437.31 | BB172: 3975.55 | BC172: 437.31 | BD172: 874.62
B173: 9668 | C173: 2019/0385630-3 | D173: 2019-12-19 | F173: MS 6.318/DF | G173: 1999-04-30 | H173: Administrativo - Servidor Público Civil - Reajustes de Remuneração, Proventos ou Pensão - Índice da URV Lei 8.880/1994 | I173: 2003-02-17 | K173: UNIÃO | L173: Ministério da Fazenda | N173: Reajuste 3,17% | O173: Dedução de Honorários Contratuais | P173: Alimentar | R173: Não | S173: Não | T173: Não | U173: - | V173: - | W173: Não informada | X173: Não Informada | Y173: Não | AA173: 2019-12-01 | AB173: 2076.55 | AC173: 3998.06 | AD173: 6074.61 | AE173: 1910.44 | AF173: 3678.21 | AG173: 5588.65 | AH173: 103.82 | AI173: 199.91 | AJ173: 303.73 | AK173: 62.29 | AL173: 119.94 | AM173: 182.23 | AN173: 5588.65 | AO173: 19 | AP173: 228.42 | AQ173: 2076.55 | AR173: 228.42 | AS173: 456.84 | AU173: 2020-04-02 | AV173: 6196.81 | AW173: 5701.08 | AX173: 309.84 | AY173: 185.89 | AZ173: 5701.08 | BA173: 233.01 | BB173: 2118.32 | BC173: 233.01 | BD173: 466.02
B174: 9671 | C174: 2019/0385633-9 | D174: 2019-12-19 | F174: MS 6.318/DF | G174: 1999-04-30 | H174: Administrativo - Servidor Público Civil - Reajustes de Remuneração, Proventos ou Pensão - Índice da URV Lei 8.880/1994 | I174: 2003-02-17 | K174: UNIÃO | L174: Ministério da Fazenda | N174: Reajuste 3,17% | O174: Dedução de Honorários Contratuais | P174: Alimentar | R174: Não | S174: Não | T174: Não | U174: - | V174: - | W174: Não informada | X174: Não Informada | Y174: Não | AA174: 2019-12-01 | AB174: 2078.46 | AC174: 4000.9 | AD174: 6079.36 | AE174: 1912.19 | AF174: 3680.83 | AG174: 5593.02 | AH174: 103.92 | AI174: 200.04 | AJ174: 303.96 | AK174: 62.35 | AL174: 120.03 | AM174: 182.38 | AN174: 5593.02 | AO174: 19 | AP174: 228.63 | AQ174: 2078.46 | AR174: 228.63 | AS174: 457.26 | AU174: 2020-04-02 | AV174: 6201.66 | AW174: 5705.55 | AX174: 310.07 | AY174: 186.04 | AZ174: 5705.55 | BA174: 233.22 | BB174: 2120.27 | BC174: 233.22 | BD174: 466.44
B175: 9672 | C175: 2019/0385634-0 | D175: 2019-12-19 | F175: MS 6.318/DF | G175: 1999-04-30 | H175: Administrativo - Servidor Público Civil - Reajustes de Remuneração, Proventos ou Pensão - Índice da URV Lei 8.880/1994 | I175: 2003-02-17 | K175: UNIÃO | L175: Ministério da Fazenda | N175: Reajuste 3,17% | O175: Dedução de Honorários Contratuais | P175: Alimentar | R175: Não | S175: Não | T175: Não | U175: - | V175: - | W175: Não informada | X175: Não Informada | Y175: Não | AA175: 2019-12-01 | AB175: 2077.18 | AC175: 4002.35 | AD175: 6079.53 | AE175: 1911.02 | AF175: 3682.16 | AG175: 5593.18 | AH175: 103.85 | AI175: 200.12 | AJ175: 303.97 | AK175: 62.31 | AL175: 120.07 | AM175: 182.38 | AN175: 5593.18 | AO175: 19 | AP175: 228.48 | AQ175: 2077.18 | AR175: 228.48 | AS175: 456.96 | AU175: 2020-04-02 | AV175: 6201.83 | AW175: 5705.71 | AX175: 310.08 | AY175: 186.04 | AZ175: 5705.71 | BA175: 233.08 | BB175: 2118.96 | BC175: 233.08 | BD175: 466.16
B176: 9673 | C176: 2019/0385635-2 | D176: 2019-12-19 | F176: MS 6.318/DF | G176: 1999-04-30 | H176: Administrativo - Servidor Público Civil - Reajustes de Remuneração, Proventos ou Pensão - Índice da URV Lei 8.880/1994 | I176: 2003-02-17 | K176: UNIÃO | L176: Ministério da Fazenda | N176: Reajuste 3,17% | O176: Dedução de Honorários Contratuais | P176: Alimentar | R176: Não | S176: Não | T176: Não | U176: - | V176: - | W176: Não informada | X176: Não Informada | Y176: Não | AA176: 2019-12-01 | AB176: 2423.38 | AC176: 4642.48 | AD176: 7065.86 | AE176: 2229.52 | AF176: 4271.08 | AG176: 6500.6 | AH176: 121.16 | AI176: 232.13 | AJ176: 353.29 | AK176: 72.7 | AL176: 139.27 | AM176: 211.97 | AN176: 6500.6 | AO176: 21 | AP176: 266.57 | AQ176: 2423.38 | AR176: 266.57 | AS176: 533.14 | AU176: 2020-04-02 | AV176: 7208 | AW176: 6631.38 | AX176: 360.39 | AY176: 216.23 | AZ176: 6631.38 | BA176: 271.93 | BB176: 2472.13 | BC176: 271.93 | BD176: 543.86
B177: 9674 | C177: 2019/0385636-4 | D177: 2019-12-19 | F177: MS 6.318/DF | G177: 1999-04-30 | H177: Administrativo - Servidor Público Civil - Reajustes de Remuneração, Proventos ou Pensão - Índice da URV Lei 8.880/1994 | I177: 2003-02-17 | K177: UNIÃO | L177: Ministério da Fazenda | N177: Reajuste 3,17% | O177: Dedução de Honorários Contratuais | P177: Alimentar | R177: Não | S177: Não | T177: Não | U177: - | V177: - | W177: Não informada | X177: Não Informada | Y177: Não | AA177: 2019-12-01 | AB177: 1189.01 | AC177: 2469.37 | AD177: 3658.38 | AE177: 1093.89 | AF177: 2271.83 | AG177: 3365.72 | AH177: 59.45 | AI177: 123.46 | AJ177: 182.91 | AK177: 35.67 | AL177: 74.08 | AM177: 109.75 | AN177: 3365.72 | AO177: 14 | AP177: 130.79 | AQ177: 1189.01 | AR177: 130.79 | AS177: 261.58 | AU177: 2020-04-02 | AV177: 3731.97 | AW177: 3433.44 | AX177: 186.58 | AY177: 111.95 | AZ177: 3433.44 | BA177: 133.42 | BB177: 1212.92 | BC177: 133.42 | BD177: 266.84
B178: 9675 | C178: 2019/0385637-6 | D178: 2019-12-19 | F178: MS 6.318/DF | G178: 1999-04-30 | H178: Administrativo - Servidor Público Civil - Reajustes de Remuneração, Proventos ou Pensão - Índice da URV Lei 8.880/1994 | I178: 2003-02-17 | K178: UNIÃO | L178: Ministério da Fazenda | N178: Reajuste 3,17% | O178: Dedução de Honorários Contratuais | P178: Alimentar | R178: Não | S178: Não | T178: Não | U178: - | V178: - | W178: Não informada | X178: Não Informada | Y178: Não | AA178: 2019-12-01 | AB178: 2062.64 | AC178: 3946.15 | AD178: 6008.79 | AE178: 1897.64 | AF178: 3630.46 | AG178: 5528.1 | AH178: 103.13 | AI178: 197.3 | AJ178: 300.43 | AK178: 61.87 | AL178: 118.39 | AM178: 180.26 | AN178: 5528.1 | AO178: 19 | AP178: 226.89 | AQ178: 2062.64 | AR178: 226.89 | AS178: 453.78 | AU178: 2020-04-02 | AV178: 6129.67 | AW178: 5639.32 | AX178: 306.47 | AY178: 183.88 | AZ178: 5639.32 | BA178: 231.45 | BB178: 2104.13 | BC178: 231.45 | BD178: 462.9
B179: 9676 | C179: 2019/0385638-8 | D179: 2019-12-19 | F179: MS 6.318/DF | G179: 1999-04-30 | H179: Administrativo - Servidor Público Civil - Reajustes de Remuneração, Proventos ou Pensão - Índice da URV Lei 8.880/1994 | I179: 2003-02-17 | K179: UNIÃO | L179: Ministério da Fazenda | N179: Reajuste 3,17% | O179: Dedução de Honorários Contratuais | P179: Alimentar | R179: Não | S179: Não | T179: Não | U179: - | V179: - | W179: Não informada | X179: Não Informada | Y179: Não | AA179: 2019-12-01 | AB179: 2150.53 | AC179: 4158.37 | AD179: 6308.9 | AE179: 1978.5 | AF179: 3825.7 | AG179: 5804.2 | AH179: 107.52 | AI179: 207.92 | AJ179: 315.44 | AK179: 64.51 | AL179: 124.75 | AM179: 189.26 | AN179: 5804.2 | AO179: 19 | AP179: 236.55 | AQ179: 2150.53 | AR179: 236.55 | AS179: 473.1 | AU179: 2020-04-02 | AV179: 6435.81 | AW179: 5920.97 | AX179: 321.78 | AY179: 193.06 | AZ179: 5920.97 | BA179: 241.31 | BB179: 2193.79 | BC179: 241.31 | BD179: 482.62
B180: 9678 | C180: 2019/0385640-4 | D180: 2019-12-19 | F180: MS 6.318/DF | G180: 1999-04-30 | H180: Administrativo - Servidor Público Civil - Reajustes de Remuneração, Proventos ou Pensão - Índice da URV Lei 8.880/1994 | I180: 2003-02-17 | K180: UNIÃO | L180: Ministério da Fazenda | N180: Reajuste 3,17% | O180: Dedução de Honorários Contratuais | P180: Alimentar | R180: Não | S180: Não | T180: Não | U180: - | V180: - | W180: Não informada | X180: Não Informada | Y180: Não | AA180: 2019-12-01 | AB180: 2077.18 | AC180: 4002.35 | AD180: 6079.53 | AE180: 1911.02 | AF180: 3682.16 | AG180: 5593.18 | AH180: 103.85 | AI180: 200.12 | AJ180: 303.97 | AK180: 62.31 | AL180: 120.07 | AM180: 182.38 | AN180: 5593.18 | AO180: 19 | AP180: 228.48 | AQ180: 2077.18 | AR180: 228.48 | AS180: 456.96 | AU180: 2020-04-02 | AV180: 6201.83 | AW180: 5705.71 | AX180: 310.08 | AY180: 186.04 | AZ180: 5705.71 | BA180: 233.08 | BB180: 2118.96 | BC180: 233.08 | BD180: 466.16
B181: 9680 | C181: 2019/0385806-8 | D181: 2019-12-19 | F181: MS 6.318/DF | G181: 1999-04-30 | H181: Administrativo - Servidor Público Civil - Reajustes de Remuneração, Proventos ou Pensão - Índice da URV Lei 8.880/1994 | I181: 2003-02-17 | K181: UNIÃO | L181: Ministério da Fazenda | N181: Reajuste 3,17% | O181: Dedução de Honorários Contratuais | P181: Alimentar | R181: Não | S181: Não | T181: Não | U181: - | V181: - | W181: Não informada | X181: Não Informada | Y181: Não | AA181: 2019-12-01 | AB181: 1284.93 | AC181: 3294 | AD181: 4578.93 | AE181: 1182.15 | AF181: 3030.48 | AG181: 4212.63 | AH181: 64.24 | AI181: 164.7 | AJ181: 228.94 | AK181: 38.54 | AL181: 98.82 | AM181: 137.36 | AN181: 4212.63 | AO181: 18 | AP181: 141.34 | AQ181: 1284.93 | AR181: 141.34 | AS181: 282.68 | AU181: 2020-04-02 | AV181: 4671.04 | AW181: 4297.38 | AX181: 233.54 | AY181: 140.12 | AZ181: 4297.38 | BA181: 144.18 | BB181: 1310.77 | BC181: 144.18 | BD181: 288.36
B182: 9684 | C182: 2019/0385830-0 | D182: 2019-12-19 | F182: MS 6.318/DF | G182: 1999-04-30 | H182: Administrativo - Servidor Público Civil - Reajustes de Remuneração, Proventos ou Pensão - Índice da URV Lei 8.880/1994 | I182: 2003-02-17 | K182: UNIÃO | L182: Ministério da Fazenda | N182: Reajuste 3,17% | O182: Dedução de Honorários Contratuais | P182: Alimentar | R182: Não | S182: Não | T182: Não | U182: - | V182: - | W182: Não informada | X182: Não Informada | Y182: Não | AA182: 2019-12-01 | AB182: 3817.96 | AC182: 5280.2 | AD182: 9098.16 | AE182: 3512.54 | AF182: 4857.78 | AG182: 8370.32 | AH182: 190.89 | AI182: 264.01 | AJ182: 454.9 | AK182: 114.53 | AL182: 158.41 | AM182: 272.94 | AN182: 8370.32 | AO182: 19 | AP182: 419.97 | AQ182: 3817.96 | AR182: 419.97 | AS182: 839.94 | AU182: 2020-04-02 | AV182: 9281.19 | AW182: 8538.71 | AX182: 464.05 | AY182: 278.43 | AZ182: 8538.71 | BA182: 428.42 | BB182: 3894.76 | BC182: 428.42 | BD182: 856.84
B183: 9706 | C183: 2019/0385910-6 | D183: 2019-12-19 | F183: MS 6.318/DF | G183: 1999-04-30 | H183: Administrativo - Servidor Público Civil - Reajustes de Remuneração, Proventos ou Pensão - Índice da URV Lei 8.880/1994 | I183: 2003-02-17 | K183: UNIÃO | L183: Ministério da Fazenda | N183: Reajuste 3,17% | O183: Dedução de Honorários Contratuais | P183: Alimentar | R183: Não | S183: Não | T183: Não | U183: - | V183: - | W183: Não informada | X183: Não Informada | Y183: Não | AA183: 2019-12-01 | AB183: 2049.82 | AC183: 3934.33 | AD183: 5984.15 | AE183: 1885.84 | AF183: 3619.59 | AG183: 5505.43 | AH183: 102.49 | AI183: 196.71 | AJ183: 299.2 | AK183: 61.49 | AL183: 118.03 | AM183: 179.52 | AN183: 5505.43 | AO183: 19 | AP183: 225.48 | AQ183: 2049.82 | AR183: 225.48 | AS183: 450.96 | AU183: 2020-04-02 | AV183: 6104.53 | AW183: 5616.19 | AX183: 305.21 | AY183: 183.13 | AZ183: 5616.19 | BA183: 230.01 | BB183: 2091.05 | BC183: 230.01 | BD183: 460.02
B184: 9708 | C184: 2019/0385913-1 | D184: 2019-12-19 | F184: MS 6.318/DF | G184: 1999-04-30 | H184: Administrativo - Servidor Público Civil - Reajustes de Remuneração, Proventos ou Pensão - Índice da URV Lei 8.880/1994 | I184: 2003-02-17 | K184: UNIÃO | L184: Ministério da Fazenda | N184: Reajuste 3,17% | O184: Dedução de Honorários Contratuais | P184: Alimentar | R184: Não | S184: Não | T184: Não | U184: - | V184: - | W184: Não informada | X184: Não Informada | Y184: Não | AA184: 2019-12-01 | AB184: 5497.78 | AC184: 7867.53 | AD184: 13365.31 | AE184: 5057.97 | AF184: 7238.13 | AG184: 12296.1 | AH184: 274.88 | AI184: 393.38 | AJ184: 668.26 | AK184: 164.93 | AL184: 236.02 | AM184: 400.95 | AN184: 12296.1 | AO184: 19 | AP184: 604.75 | AQ184: 5497.78 | AR184: 604.75 | AS184: 1209.5 | AU184: 2020-04-02 | AV184: 13634.18 | AW184: 12543.47 | AX184: 681.7 | AY184: 409.01 | AZ184: 12543.47 | BA184: 616.92 | BB184: 5608.38 | BC184: 616.92 | BD184: 1233.84
B185: 9712 | C185: 2019/0385922-0 | D185: 2019-12-19 | F185: MS 6.318/DF | G185: 1999-04-30 | H185: Administrativo - Servidor Público Civil - Reajustes de Remuneração, Proventos ou Pensão - Índice da URV Lei 8.880/1994 | I185: 2003-02-17 | K185: UNIÃO | L185: Ministério da Fazenda | N185: Reajuste 3,17% | O185: Dedução de Honorários Contratuais | P185: Alimentar | R185: Não | S185: Não | T185: Não | U185: - | V185: - | W185: Não informada | X185: Não Informada | Y185: Não | AA185: 2019-12-01 | AB185: 3975.24 | AC185: 5424.28 | AD185: 9399.52 | AE185: 3657.23 | AF185: 4990.34 | AG185: 8647.57 | AH185: 198.76 | AI185: 271.21 | AJ185: 469.97 | AK185: 119.25 | AL185: 162.73 | AM185: 281.98 | AN185: 8647.57 | AO185: 19 | AP185: 437.27 | AQ185: 3975.24 | AR185: 437.27 | AS185: 874.54 | AU185: 2020-04-02 | AV185: 9588.61 | AW185: 8821.54 | AX185: 479.42 | AY185: 287.65 | AZ185: 8821.54 | BA185: 446.07 | BB185: 4055.21 | BC185: 446.07 | BD185: 892.14
B186: 9716 | C186: 2019/0385931-0 | D186: 2019-12-19 | F186: MS 6.318/DF | G186: 1999-04-30 | H186: Administrativo - Servidor Público Civil - Reajustes de Remuneração, Proventos ou Pensão - Índice da URV Lei 8.880/1994 | I186: 2003-02-17 | K186: UNIÃO | L186: Ministério da Fazenda | N186: Reajuste 3,17% | O186: Dedução de Honorários Contratuais | P186: Alimentar | R186: Não | S186: Não | T186: Não | U186: - | V186: - | W186: Não informada | X186: Não Informada | Y186: Não | AA186: 2019-12-01 | AB186: 3947.52 | AC186: 5419.15 | AD186: 9366.67 | AE186: 3631.73 | AF186: 4985.61 | AG186: 8617.34 | AH186: 197.37 | AI186: 270.96 | AJ186: 468.33 | AK186: 118.42 | AL186: 162.58 | AM186: 281 | AN186: 8617.34 | AO186: 19 | AP186: 434.22 | AQ186: 3947.52 | AR186: 434.22 | AS186: 868.44 | AU186: 2020-04-02 | AV186: 9555.1 | AW186: 8790.7 | AX186: 477.75 | AY186: 286.65 | AZ186: 8790.7 | BA186: 442.96 | BB186: 4026.93 | BC186: 442.96 | BD186: 885.92
B187: 9717 | C187: 2019/0385932-1 | D187: 2019-12-19 | F187: MS 6.318/DF | G187: 1999-04-30 | H187: Administrativo - Servidor Público Civil - Reajustes de Remuneração, Proventos ou Pensão - Índice da URV Lei 8.880/1994 | I187: 2003-02-17 | K187: UNIÃO | L187: - | N187: Honorários de sucumbência | O187: X X X | P187: Alimentar | R187: Não | S187: Não | T187: Não | U187: - | V187: - | W187: Não informada | X187: Não Informada | Y187: Não | AA187: 2019-12-01 | AB187: 3703.22 | AC187: 0 | AD187: 3703.22 | AE187: 3703.22 | AF187: 0 | AG187: 3703.22 | AH187: 0 | AI187: 0 | AJ187: 0 | AK187: 0 | AL187: 0 | AM187: 0 | AN187: 0 | AO187: 0 | AP187: 0 | AQ187: 0 | AR187: 0 | AS187: 0 | AU187: 2020-04-02 | AV187: 3777.71 | AW187: 3777.71 | AX187: 0 | AY187: 0 | AZ187: 0 | BA187: 0 | BB187: 0 | BC187: 0 | BD187: 0
B188: 9720 | C188: 2019/0385940-9 | D188: 2019-12-19 | F188: MS 6.318/DF | G188: 1999-04-30 | H188: Administrativo - Servidor Público Civil - Reajustes de Remuneração, Proventos ou Pensão - Índice da URV Lei 8.880/1994 | I188: 2003-02-17 | K188: UNIÃO | L188: Ministério da Fazenda | N188: Reajuste 3,17% | O188: Dedução de Honorários Contratuais | P188: Alimentar | R188: Não | S188: Não | T188: Não | U188: - | V188: - | W188: Não informada | X188: Não Informada | Y188: Não | AA188: 2019-12-01 | AB188: 2083.53 | AC188: 4015.39 | AD188: 6098.92 | AE188: 1916.86 | AF188: 3694.16 | AG188: 5611.02 | AH188: 104.17 | AI188: 200.77 | AJ188: 304.94 | AK188: 62.5 | AL188: 120.46 | AM188: 182.96 | AN188: 5611.02 | AO188: 19 | AP188: 229.18 | AQ188: 2083.53 | AR188: 229.18 | AS188: 458.36 | AU188: 2020-04-02 | AV188: 6221.61 | AW188: 5723.9 | AX188: 311.07 | AY188: 186.64 | AZ188: 5723.9 | BA188: 233.79 | BB188: 2125.44 | BC188: 233.79 | BD188: 467.58
B189: 9723 | C189: 2019/0385947-1 | D189: 2019-12-19 | F189: MS 6.318/DF | G189: 1999-04-30 | H189: Administrativo - Servidor Público Civil - Reajustes de Remuneração, Proventos ou Pensão - Índice da URV Lei 8.880/1994 | I189: 2003-02-17 | K189: UNIÃO | L189: Ministério da Fazenda | N189: Reajuste 3,17% | O189: Dedução de Honorários Contratuais | P189: Alimentar | R189: Não | S189: Não | T189: Não | U189: - | V189: - | W189: Não informada | X189: Não Informada | Y189: Não | AA189: 2019-12-01 | AB189: 1583.65 | AC189: 3774.5 | AD189: 5358.15 | AE189: 1456.97 | AF189: 3472.54 | AG189: 4929.51 | AH189: 79.18 | AI189: 188.72 | AJ189: 267.9 | AK189: 47.5 | AL189: 113.24 | AM189: 160.74 | AN189: 4929.51 | AO189: 19 | AP189: 174.2 | AQ189: 1583.65 | AR189: 174.2 | AS189: 348.4 | AU189: 2020-04-02 | AV189: 5465.94 | AW189: 5028.69 | AX189: 273.28 | AY189: 163.97 | AZ189: 5028.69 | BA189: 177.7 | BB189: 1615.5 | BC189: 177.7 | BD189: 355.4
B190: 9724 | C190: 2019/0385937-0 | D190: 2019-12-19 | F190: MS 6.318/DF | G190: 1999-04-30 | H190: Administrativo - Servidor Público Civil - Reajustes de Remuneração, Proventos ou Pensão - Índice da URV Lei 8.880/1994 | I190: 2003-02-17 | K190: UNIÃO | L190: Ministério da Fazenda | N190: Reajuste 3,17% | O190: Dedução de Honorários Contratuais | P190: Alimentar | R190: Não | S190: Não | T190: Não | U190: - | V190: - | W190: Não informada | X190: Não Informada | Y190: Não | AA190: 2019-12-01 | AB190: 3817.96 | AC190: 5280.2 | AD190: 9098.16 | AE190: 3512.54 | AF190: 4857.78 | AG190: 8370.32 | AH190: 190.89 | AI190: 264.01 | AJ190: 454.9 | AK190: 114.53 | AL190: 158.41 | AM190: 272.94 | AN190: 8370.32 | AO190: 19 | AP190: 419.97 | AQ190: 3817.96 | AR190: 419.97 | AS190: 839.94 | AU190: 2020-04-02 | AV190: 9281.19 | AW190: 8538.71 | AX190: 464.05 | AY190: 278.43 | AZ190: 8538.71 | BA190: 428.42 | BB190: 3894.76 | BC190: 428.42 | BD190: 856.84
B191: 9088 | C191: 2019/0359838-4 | D191: 2019-11-29 | F191: MS 7.386/DF | G191: 2001-01-31 | H191: Administrativo - Servidor Público Civil - Sistema Remuneratório e Benefícios - Gratificações da Lei 8.112/1990 | I191: 2003-12-04 | K191: UNIÃO | L191: Ministério do Planejamento, Orçamento e Gestão | N191: Gratificação de Operações Especiais - GOE | O191: Dedução de Honorários Contratuais | P191: Alimentar | R191: Não | S191: Não | T191: Não | U191: - | V191: - | W191: Não informada | X191: Não Informada | Y191: Não | AA191: 2019-11-01 | AB191: 3268.18 | AC191: 4366.32 | AD191: 7634.5 | AE191: 2287.74 | AF191: 3056.42 | AG191: 5344.16 | AH191: 490.22 | AI191: 654.95 | AJ191: 1145.17 | AK191: 490.22 | AL191: 654.95 | AM191: 1145.17 | AN191: 5344.16 | AO191: 28 | AP191: 0 | AQ191: 0 | AR191: 0 | AS191: 0 | AU191: 2020-04-02 | AV191: 7798.98 | AW191: 5459.3 | AX191: 1169.84 | AY191: 1169.84 | AZ191: 5459.3 | BA191: 0 | BB191: 0 | BC191: 0 | BD191: 0
B192: 9090 | C192: 2019/0359845-0 | D192: 2019-11-29 | F192: MS 7.386/DF | G192: 2001-01-31 | H192: Administrativo - Servidor Público Civil - Sistema Remuneratório e Benefícios - Gratificações da Lei 8.112/1990 | I192: 2003-12-04 | K192: UNIÃO | L192: Ministério do Planejamento, Orçamento e Gestão | N192: Gratificação de Operações Especiais - GOE | O192: Dedução de Honorários Contratuais | P192: Alimentar | R192: Não | S192: Não | T192: Não | U192: - | V192: - | W192: Não informada | X192: Não Informada | Y192: Não | AA192: 2019-11-01 | AB192: 8189.27 | AC192: 10799.72 | AD192: 18988.99 | AE192: 5732.49 | AF192: 7559.82 | AG192: 13292.31 | AH192: 1228.39 | AI192: 1619.95 | AJ192: 2848.34 | AK192: 1228.39 | AL192: 1619.95 | AM192: 2848.34 | AN192: 13292.31 | AO192: 50 | AP192: 0 | AQ192: 0 | AR192: 0 | AS192: 0 | AU192: 2020-04-02 | AV192: 19398.11 | AW192: 13578.71 | AX192: 2909.7 | AY192: 2909.7 | AZ192: 13578.71 | BA192: 0 | BB192: 0 | BC192: 0 | BD192: 0
B193: 9707 | C193: 2019/0385904-2 | D193: 2019-12-19 | F193: MS 10.424/DF | G193: 2005-02-17 | H193: Administrativo - Servidor Público Civil - Sistema Remuneratório e Benefícios - Gratificações | I193: 2005-10-27 | K193: UNIÃO | L193: Ministério do Planejamento, Orçamento e Gestão | N193: Gratificação Específica de Atividade Docente - GEAD | O193: Dedução de Honorários Contratuais | P193: Alimentar | R193: Não | S193: Não | T193: Não | U193: - | V193: - | W193: Não informada | X193: Não Informada | Y193: Não | AA193: 2019-12-01 | AB193: 13489.84 | AC193: 11126.79 | AD193: 24616.63 | AE193: 12005.96 | AF193: 9902.85 | AG193: 21908.81 | AH193: 1483.88 | AI193: 1223.94 | AJ193: 2707.82 | AK193: 0 | AL193: 0 | AM193: 0 | AN193: 21908.81 | AO193: 9 | AP193: 1483.88 | AQ193: 13489.84 | AR193: 1483.88 | AS193: 2967.76 | AU193: 2020-04-02 | AV193: 25111.85 | AW193: 22349.56 | AX193: 2762.29 | AY193: 0 | AZ193: 22349.56 | BA193: 1513.73 | BB193: 13761.22 | BC193: 1513.73 | BD193: 3027.46
AA195: T O T A I S | AB195: =SUM(AB9:AB193) -> 1007121.81 | AC195: =SUM(AC9:AC193) -> 1261719.64 | AD195: =SUM(AD9:AD193) -> 2268841.45 | AE195: =SUM(AE9:AE193) -> 924848.64 | AF195: =SUM(AF9:AF193) -> 1162267.69 | AG195: =SUM(AG9:AG193) -> 2087116.33 | AH195: =SUM(AH9:AH193) -> 78637.23 | AI195: =SUM(AI9:AI193) -> 94015.71 | AJ195: =SUM(AJ9:AJ193) -> 172652.94 | AK195: =SUM(AK9:AK193) -> 3635.94 | AL195: =SUM(AL9:AL193) -> 5436.24 | AM195: =SUM(AM9:AM193) -> 9072.18 | AN195: =SUM(AN9:AN193) -> 2062825.73 | AO195: =SUM(AO9:AO193) -> 3761 | AP195: =SUM(AP9:AP193) -> 42271.14 | AQ195: =SUM(AQ9:AQ193) -> 384287.5 | AR195: =SUM(AR9:AR193) -> 42271.14 | AS195: =SUM(AS9:AS193) -> 39286.28 | AV195: =SUM(AV9:AV193) -> 2316382.27 | AW195: =SUM(AW9:AW193) -> 2130839.28 | AX195: =SUM(AX9:AX193) -> 176282.73 | AY195: =SUM(AY9:AY193) -> 9260.26 | AZ195: =SUM(AZ9:AZ193) -> 2106059.87 | BA195: =SUM(BA9:BA193) -> 43165.78 | BB195: =SUM(BB9:BB193) -> 392417.79 | BC195: =SUM(BC9:BC193) -> 43165.78 | BD195: =SUM(BD9:BD193) -> 40100.06
